Body,Body Name,Posted Fiscal Date,Amount,Transaction Number,Supplier Name,Directorate,Service,Activity,Cost Centre Name,Subjective Name
http://opendatacommunities.org/doc/london-borough-council/havering,London Borough of Havering,30/08/2017,1830.40,AUG17L13,Jenx Ltd,Adults,Adult Services,Prevention,PD Equipment,"PURCHASE - EQUIPMENT, FURNITURE AND MATERIALS"
http://opendatacommunities.org/doc/london-borough-council/havering,London Borough of Havering,23/08/2017,480.00,AUG17L14,The Camden Society,Adults,Adult Services,Learning Disabilities,Learning Disability Support,DAYCARE - PRIVATE CONTRACTORS PAYMENT
http://opendatacommunities.org/doc/london-borough-council/havering,London Borough of Havering,20/08/2017,4943.00,AUG17L87,London Borough of Redbridge,Adults,Adult Services,Health & Social Care Other,Asst Dir Adult Services,PAYMENT TO OTHER LOCAL AUTHORITIES
http://opendatacommunities.org/doc/london-borough-council/havering,London Borough of Havering,12/08/2017,1416.50,AUG17L126,Mullis & Peake LLP,Adults,Adult Services,Adult Services Business Management,Social Services Income,LEGAL FEES
http://opendatacommunities.org/doc/london-borough-council/havering,London Borough of Havering,16/08/2017,1210.00,AUG17L127,Mullis & Peake LLP,Adults,Adult Services,Adult Services Business Management,Social Services Income,LEGAL FEES
http://opendatacommunities.org/doc/london-borough-council/havering,London Borough of Havering,06/08/2017,12500.00,AUG17L147,The Sycamore Trust,Adults,Adult Services,Strategy and Commissioning,Learning Disabilities Commissioning,PRIVATE CONTRACTORS PAYMENT - OTHER
http://opendatacommunities.org/doc/london-borough-council/havering,London Borough of Havering,31/08/2017,948.10,AUG17L172,Serco Ltd,Adults,Adult Services,Learning Disabilities,Yew Tree Lodge Day Centre,PRIVATE CONTRACTORS PAYMENT - OTHER
http://opendatacommunities.org/doc/london-borough-council/havering,London Borough of Havering,09/08/2017,600.00,AUG17L259,University of Kent,Childrens,Safeguarding - Quality and Assurance,Learning and Development,Social Work Improvement Team,STAFF DEVELOPMENT AND TRAINING
http://opendatacommunities.org/doc/london-borough-council/havering,London Borough of Havering,07/08/2017,1195.88,AUG17L262,Marula House Ltd,Adults,Mental Health,Mental Health - Non Section 75,Mental Health Support,HOME CARE - PRIVATE CONTRACTORS PAYMENT
http://opendatacommunities.org/doc/london-borough-council/havering,London Borough of Havering,07/08/2017,2959.88,AUG17L263,Marula House Ltd,Adults,Mental Health,Mental Health - Non Section 75,Mental Health Support,HOME CARE - PRIVATE CONTRACTORS PAYMENT
http://opendatacommunities.org/doc/london-borough-council/havering,London Borough of Havering,07/08/2017,1568.00,AUG17L264,Marula House Ltd,Adults,Mental Health,Mental Health - Non Section 75,Mental Health Support,SUPPORTED OTHER ACCOMMODATION - PRIVATE CONTRACTORS PAYMENT
http://opendatacommunities.org/doc/london-borough-council/havering,London Borough of Havering,05/08/2017,1700.00,AUG17L265,Voiceability,Adults,Adult Services,Strategy and Commissioning,Healthwatch,PRIVATE CONTRACTORS PAYMENT - OTHER
http://opendatacommunities.org/doc/london-borough-council/havering,London Borough of Havering,07/08/2017,402.68,AUG17L269,Headway East London,Adults,Adult Services,Adult Community Team,Support for Social Isolation - Other,DAYCARE - PRIVATE CONTRACTORS PAYMENT
http://opendatacommunities.org/doc/london-borough-council/havering,London Borough of Havering,07/08/2017,8480.00,AUG17L272,CAS Learning Disabilities Ltd,Adults,Adult Services,Learning Disabilities,Learning Disability Support,RESIDENTIAL PLACEMENTS - PRIVATE CONTRACTORS PAYMENT
http://opendatacommunities.org/doc/london-borough-council/havering,London Borough of Havering,16/08/2017,25239.62,AUG17L295,NHS Havering CCG,Adults,Adult Services,Adult Community Team,Physical Support,RESIDENTIAL PLACEMENTS - PRIVATE CONTRACTORS PAYMENT
http://opendatacommunities.org/doc/london-borough-council/havering,London Borough of Havering,16/08/2017,26142.86,AUG17L296,NHS Havering CCG,Adults,Adult Services,Adult Community Team,Support with Memory & Cognition,NURSING HOMES - PRIVATE CONTRACTORS PAYMENT
http://opendatacommunities.org/doc/london-borough-council/havering,London Borough of Havering,16/08/2017,-6091.02,AUG17L297,NHS Havering CCG,Adults,Adult Services,Adult Community Team,Physical Support,RESIDENTIAL PLACEMENTS - PRIVATE CONTRACTORS PAYMENT
http://opendatacommunities.org/doc/london-borough-council/havering,London Borough of Havering,16/08/2017,7407.10,AUG17L298,NHS Havering CCG,Adults,Adult Services,Adult Community Team,Support with Memory & Cognition,NURSING HOMES - PRIVATE CONTRACTORS PAYMENT
http://opendatacommunities.org/doc/london-borough-council/havering,London Borough of Havering,16/08/2017,3354.00,AUG17L299,NHS Havering CCG,Adults,Mental Health,Mental Health - Non Section 75,Mental Health Support,NURSING HOMES - PRIVATE CONTRACTORS PAYMENT
http://opendatacommunities.org/doc/london-borough-council/havering,London Borough of Havering,16/08/2017,5031.00,AUG17L300,NHS Havering CCG,Adults,Adult Services,Adult Community Team,Support with Memory & Cognition,NURSING HOMES - PRIVATE CONTRACTORS PAYMENT
http://opendatacommunities.org/doc/london-borough-council/havering,London Borough of Havering,16/08/2017,6430.50,AUG17L301,NHS Havering CCG,Adults,Adult Services,Adult Community Team,Physical Support,RESIDENTIAL PLACEMENTS - PRIVATE CONTRACTORS PAYMENT
http://opendatacommunities.org/doc/london-borough-council/havering,London Borough of Havering,16/08/2017,-20012.20,AUG17L302,NHS Havering CCG,Adults,Adult Services,Adult Community Team,Support with Memory & Cognition,NURSING HOMES - PRIVATE CONTRACTORS PAYMENT
http://opendatacommunities.org/doc/london-borough-council/havering,London Borough of Havering,16/08/2017,-3354.00,AUG17L303,NHS Havering CCG,Adults,Mental Health,Mental Health - Non Section 75,Mental Health Support,NURSING HOMES - PRIVATE CONTRACTORS PAYMENT
http://opendatacommunities.org/doc/london-borough-council/havering,London Borough of Havering,16/08/2017,-2247.37,AUG17L304,NHS Havering CCG,Adults,Adult Services,Adult Community Team,Support with Memory & Cognition,NURSING HOMES - PRIVATE CONTRACTORS PAYMENT
http://opendatacommunities.org/doc/london-borough-council/havering,London Borough of Havering,16/08/2017,-16321.39,AUG17L305,NHS Havering CCG,Adults,Adult Services,Adult Community Team,Support with Memory & Cognition,NURSING HOMES - PRIVATE CONTRACTORS PAYMENT
http://opendatacommunities.org/doc/london-borough-council/havering,London Borough of Havering,16/08/2017,6359.05,AUG17L306,NHS Havering CCG,Adults,Adult Services,Adult Community Team,Physical Support,RESIDENTIAL PLACEMENTS - PRIVATE CONTRACTORS PAYMENT
http://opendatacommunities.org/doc/london-borough-council/havering,London Borough of Havering,16/08/2017,4975.10,AUG17L307,NHS Havering CCG,Adults,Adult Services,Adult Community Team,Support with Memory & Cognition,NURSING HOMES - PRIVATE CONTRACTORS PAYMENT
http://opendatacommunities.org/doc/london-borough-council/havering,London Borough of Havering,16/08/2017,707.14,AUG17L332,Maison Moti Ltd,Adults,Mental Health,Mental Health - Non Section 75,Mental Health Support,SUPPORTED OTHER ACCOMMODATION - PRIVATE CONTRACTORS PAYMENT
http://opendatacommunities.org/doc/london-borough-council/havering,London Borough of Havering,16/08/2017,5558.30,AUG17L376,NHS Barking & Dagenham CCG,Adults,Adult Services,Adult Community Team,Physical Support,NURSING HOMES - PRIVATE CONTRACTORS PAYMENT
http://opendatacommunities.org/doc/london-borough-council/havering,London Borough of Havering,16/08/2017,2882.96,AUG17L377,NHS Barking & Dagenham CCG,Adults,Adult Services,Adult Community Team,Support with Memory & Cognition,NURSING HOMES - PRIVATE CONTRACTORS PAYMENT
http://opendatacommunities.org/doc/london-borough-council/havering,London Borough of Havering,16/08/2017,5000.00,AUG17L384,HAS Technology Ltd T/A CM2000,Adults,Adult Services,Health & Social Care Other,Asst Dir Adult Services,ICT SOFTWARE
http://opendatacommunities.org/doc/london-borough-council/havering,London Borough of Havering,16/08/2017,9000.00,AUG17L385,HAS Technology Ltd T/A CM2000,Adults,Adult Services,Health & Social Care Other,Asst Dir Adult Services,ICT SOFTWARE
http://opendatacommunities.org/doc/london-borough-council/havering,London Borough of Havering,30/08/2017,1960.00,AUG17L419,Action First iPeople Ltd,Adults,Adult Services,Adult Safeguarding,Adult Protection,PRIVATE CONTRACTORS PAYMENT - OTHER
http://opendatacommunities.org/doc/london-borough-council/havering,London Borough of Havering,30/08/2017,980.00,AUG17L420,Action First iPeople Ltd,Adults,Adult Services,Adult Safeguarding,Adult Protection,PRIVATE CONTRACTORS PAYMENT - OTHER
http://opendatacommunities.org/doc/london-borough-council/havering,London Borough of Havering,30/08/2017,630.00,AUG17L421,Action First iPeople Ltd,Adults,Adult Services,Adult Safeguarding,Adult Protection,PRIVATE CONTRACTORS PAYMENT - OTHER
http://opendatacommunities.org/doc/london-borough-council/havering,London Borough of Havering,30/08/2017,1260.00,AUG17L422,Action First iPeople Ltd,Adults,Adult Services,Adult Safeguarding,Adult Protection,PRIVATE CONTRACTORS PAYMENT - OTHER
http://opendatacommunities.org/doc/london-borough-council/havering,London Borough of Havering,07/08/2017,5916.00,AUG17L425,Action On Hearing Loss,Adults,Adult Services,Learning Disabilities,Learning Disability Support,RESIDENTIAL PLACEMENTS - PRIVATE CONTRACTORS PAYMENT
http://opendatacommunities.org/doc/london-borough-council/havering,London Borough of Havering,07/08/2017,5144.00,AUG17L426,Action On Hearing Loss,Adults,Adult Services,Learning Disabilities,Sensory Support,RESIDENTIAL PLACEMENTS - PRIVATE CONTRACTORS PAYMENT
http://opendatacommunities.org/doc/london-borough-council/havering,London Borough of Havering,30/08/2017,1138.10,AUG17L449,Mears Care Ltd,Adults,Adult Services,Adult Community Team,Physical Support,HOME CARE - PRIVATE CONTRACTORS PAYMENT
http://opendatacommunities.org/doc/london-borough-council/havering,London Borough of Havering,30/08/2017,1116.19,AUG17L450,Mears Care Ltd,Adults,Adult Services,Adult Community Team,Physical Support,HOME CARE - PRIVATE CONTRACTORS PAYMENT
http://opendatacommunities.org/doc/london-borough-council/havering,London Borough of Havering,30/08/2017,810.80,AUG17L451,Mears Care Ltd,Adults,Adult Services,Adult Community Team,Physical Support,HOME CARE - PRIVATE CONTRACTORS PAYMENT
http://opendatacommunities.org/doc/london-borough-council/havering,London Borough of Havering,30/08/2017,574.62,AUG17L452,Mears Care Ltd,Adults,Adult Services,Adult Community Team,Support with Memory & Cognition,HOME CARE - PRIVATE CONTRACTORS PAYMENT
http://opendatacommunities.org/doc/london-borough-council/havering,London Borough of Havering,30/08/2017,757.22,AUG17L453,Mears Care Ltd,Adults,Adult Services,Adult Community Team,Physical Support,HOME CARE - PRIVATE CONTRACTORS PAYMENT
http://opendatacommunities.org/doc/london-borough-council/havering,London Borough of Havering,30/08/2017,722.41,AUG17L454,Mears Care Ltd,Adults,Adult Services,Adult Community Team,Physical Support,HOME CARE - PRIVATE CONTRACTORS PAYMENT
http://opendatacommunities.org/doc/london-borough-council/havering,London Borough of Havering,30/08/2017,560.90,AUG17L455,Mears Care Ltd,Adults,Adult Services,Adult Community Team,Physical Support,HOME CARE - PRIVATE CONTRACTORS PAYMENT
http://opendatacommunities.org/doc/london-borough-council/havering,London Borough of Havering,30/08/2017,3024.04,AUG17L456,Mears Care Ltd,Adults,Adult Services,Adult Community Team,Physical Support,HOME CARE - PRIVATE CONTRACTORS PAYMENT
http://opendatacommunities.org/doc/london-borough-council/havering,London Borough of Havering,30/08/2017,804.94,AUG17L457,Mears Care Ltd,Adults,Adult Services,Adult Community Team,Physical Support,HOME CARE - PRIVATE CONTRACTORS PAYMENT
http://opendatacommunities.org/doc/london-borough-council/havering,London Borough of Havering,30/08/2017,680.25,AUG17L458,Mears Care Ltd,Adults,Adult Services,Adult Community Team,Physical Support,HOME CARE - PRIVATE CONTRACTORS PAYMENT
http://opendatacommunities.org/doc/london-borough-council/havering,London Borough of Havering,30/08/2017,451.33,AUG17L459,Mears Care Ltd,Adults,Adult Services,Adult Community Team,Physical Support,HOME CARE - PRIVATE CONTRACTORS PAYMENT
http://opendatacommunities.org/doc/london-borough-council/havering,London Borough of Havering,30/08/2017,474.20,AUG17L460,Mears Care Ltd,Adults,Adult Services,Adult Community Team,Physical Support,HOME CARE - PRIVATE CONTRACTORS PAYMENT
http://opendatacommunities.org/doc/london-borough-council/havering,London Borough of Havering,30/08/2017,566.97,AUG17L461,Mears Care Ltd,Adults,Adult Services,Adult Community Team,Support for Social Isolation - Other,HOME CARE - PRIVATE CONTRACTORS PAYMENT
http://opendatacommunities.org/doc/london-borough-council/havering,London Borough of Havering,30/08/2017,580.63,AUG17L462,Mears Care Ltd,Adults,Adult Services,Adult Community Team,Physical Support,HOME CARE - PRIVATE CONTRACTORS PAYMENT
http://opendatacommunities.org/doc/london-borough-council/havering,London Borough of Havering,30/08/2017,846.72,AUG17L463,Mears Care Ltd,Adults,Adult Services,Adult Community Team,Physical Support,HOME CARE - PRIVATE CONTRACTORS PAYMENT
http://opendatacommunities.org/doc/london-borough-council/havering,London Borough of Havering,30/08/2017,543.89,AUG17L464,Mears Care Ltd,Adults,Adult Services,Adult Community Team,Physical Support,HOME CARE - PRIVATE CONTRACTORS PAYMENT
http://opendatacommunities.org/doc/london-borough-council/havering,London Borough of Havering,30/08/2017,516.23,AUG17L465,Mears Care Ltd,Adults,Adult Services,Adult Community Team,Physical Support,HOME CARE - PRIVATE CONTRACTORS PAYMENT
http://opendatacommunities.org/doc/london-borough-council/havering,London Borough of Havering,30/08/2017,1039.35,AUG17L466,Mears Care Ltd,Adults,Adult Services,Adult Community Team,Physical Support,HOME CARE - PRIVATE CONTRACTORS PAYMENT
http://opendatacommunities.org/doc/london-borough-council/havering,London Borough of Havering,30/08/2017,748.16,AUG17L467,Mears Care Ltd,Adults,Adult Services,Adult Community Team,Physical Support,HOME CARE - PRIVATE CONTRACTORS PAYMENT
http://opendatacommunities.org/doc/london-borough-council/havering,London Borough of Havering,30/08/2017,618.70,AUG17L468,Mears Care Ltd,Adults,Adult Services,Adult Community Team,Physical Support,HOME CARE - PRIVATE CONTRACTORS PAYMENT
http://opendatacommunities.org/doc/london-borough-council/havering,London Borough of Havering,30/08/2017,2731.33,AUG17L469,Mears Care Ltd,Adults,Adult Services,Adult Community Team,Physical Support,HOME CARE - PRIVATE CONTRACTORS PAYMENT
http://opendatacommunities.org/doc/london-borough-council/havering,London Borough of Havering,30/08/2017,911.67,AUG17L470,Mears Care Ltd,Adults,Adult Services,Adult Community Team,Physical Support,HOME CARE - PRIVATE CONTRACTORS PAYMENT
http://opendatacommunities.org/doc/london-borough-council/havering,London Borough of Havering,30/08/2017,1003.58,AUG17L471,Mears Care Ltd,Adults,Adult Services,Adult Community Team,Physical Support,HOME CARE - PRIVATE CONTRACTORS PAYMENT
http://opendatacommunities.org/doc/london-borough-council/havering,London Borough of Havering,30/08/2017,806.57,AUG17L472,Mears Care Ltd,Adults,Adult Services,Adult Community Team,Physical Support,HOME CARE - PRIVATE CONTRACTORS PAYMENT
http://opendatacommunities.org/doc/london-borough-council/havering,London Borough of Havering,30/08/2017,868.22,AUG17L473,Mears Care Ltd,Adults,Adult Services,Adult Community Team,Physical Support,HOME CARE - PRIVATE CONTRACTORS PAYMENT
http://opendatacommunities.org/doc/london-borough-council/havering,London Borough of Havering,30/08/2017,551.89,AUG17L474,Mears Care Ltd,Adults,Adult Services,Adult Community Team,Physical Support,HOME CARE - PRIVATE CONTRACTORS PAYMENT
http://opendatacommunities.org/doc/london-borough-council/havering,London Borough of Havering,30/08/2017,2566.56,AUG17L475,Mears Care Ltd,Adults,Adult Services,Adult Community Team,Physical Support,HOME CARE - PRIVATE CONTRACTORS PAYMENT
http://opendatacommunities.org/doc/london-borough-council/havering,London Borough of Havering,30/08/2017,1062.04,AUG17L476,Mears Care Ltd,Adults,Adult Services,Adult Community Team,Physical Support,HOME CARE - PRIVATE CONTRACTORS PAYMENT
http://opendatacommunities.org/doc/london-borough-council/havering,London Borough of Havering,30/08/2017,419.20,AUG17L477,Mears Care Ltd,Adults,Adult Services,Adult Community Team,Physical Support,HOME CARE - PRIVATE CONTRACTORS PAYMENT
http://opendatacommunities.org/doc/london-borough-council/havering,London Borough of Havering,02/08/2017,2052.17,AUG17L478,Mears Care Ltd,Adults,Adult Services,Adult Community Team,Physical Support,HOME CARE - PRIVATE CONTRACTORS PAYMENT
http://opendatacommunities.org/doc/london-borough-council/havering,London Borough of Havering,02/08/2017,726.81,AUG17L479,Mears Care Ltd,Adults,Adult Services,Adult Community Team,Physical Support,HOME CARE - PRIVATE CONTRACTORS PAYMENT
http://opendatacommunities.org/doc/london-borough-council/havering,London Borough of Havering,30/08/2017,973.80,AUG17L480,Mears Care Ltd,Adults,Adult Services,Adult Community Team,Physical Support,HOME CARE - PRIVATE CONTRACTORS PAYMENT
http://opendatacommunities.org/doc/london-borough-council/havering,London Borough of Havering,02/08/2017,446.03,AUG17L481,Mears Care Ltd,Adults,Adult Services,Adult Community Team,Physical Support,HOME CARE - PRIVATE CONTRACTORS PAYMENT
http://opendatacommunities.org/doc/london-borough-council/havering,London Borough of Havering,02/08/2017,1385.34,AUG17L482,Mears Care Ltd,Adults,Adult Services,Adult Community Team,Physical Support,HOME CARE - PRIVATE CONTRACTORS PAYMENT
http://opendatacommunities.org/doc/london-borough-council/havering,London Borough of Havering,02/08/2017,921.55,AUG17L483,Mears Care Ltd,Adults,Adult Services,Adult Community Team,Physical Support,HOME CARE - PRIVATE CONTRACTORS PAYMENT
http://opendatacommunities.org/doc/london-borough-council/havering,London Borough of Havering,02/08/2017,669.71,AUG17L484,Mears Care Ltd,Adults,Adult Services,Adult Community Team,Support with Memory & Cognition,HOME CARE - PRIVATE CONTRACTORS PAYMENT
http://opendatacommunities.org/doc/london-borough-council/havering,London Borough of Havering,02/08/2017,914.48,AUG17L485,Mears Care Ltd,Adults,Adult Services,Adult Community Team,Physical Support,HOME CARE - PRIVATE CONTRACTORS PAYMENT
http://opendatacommunities.org/doc/london-borough-council/havering,London Borough of Havering,02/08/2017,673.52,AUG17L486,Mears Care Ltd,Adults,Adult Services,Adult Community Team,Physical Support,HOME CARE - PRIVATE CONTRACTORS PAYMENT
http://opendatacommunities.org/doc/london-borough-council/havering,London Borough of Havering,02/08/2017,3146.75,AUG17L487,Mears Care Ltd,Adults,Adult Services,Adult Community Team,Physical Support,HOME CARE - PRIVATE CONTRACTORS PAYMENT
http://opendatacommunities.org/doc/london-borough-council/havering,London Borough of Havering,02/08/2017,641.00,AUG17L488,Mears Care Ltd,Adults,Adult Services,Adult Community Team,Physical Support,HOME CARE - PRIVATE CONTRACTORS PAYMENT
http://opendatacommunities.org/doc/london-borough-council/havering,London Borough of Havering,02/08/2017,828.33,AUG17L489,Mears Care Ltd,Adults,Adult Services,Adult Community Team,Physical Support,HOME CARE - PRIVATE CONTRACTORS PAYMENT
http://opendatacommunities.org/doc/london-borough-council/havering,London Borough of Havering,02/08/2017,572.73,AUG17L490,Mears Care Ltd,Adults,Adult Services,Adult Community Team,Physical Support,HOME CARE - PRIVATE CONTRACTORS PAYMENT
http://opendatacommunities.org/doc/london-borough-council/havering,London Borough of Havering,02/08/2017,685.75,AUG17L491,Mears Care Ltd,Adults,Adult Services,Adult Community Team,Support for Social Isolation - Other,HOME CARE - PRIVATE CONTRACTORS PAYMENT
http://opendatacommunities.org/doc/london-borough-council/havering,London Borough of Havering,02/08/2017,635.19,AUG17L492,Mears Care Ltd,Adults,Adult Services,Adult Community Team,Physical Support,HOME CARE - PRIVATE CONTRACTORS PAYMENT
http://opendatacommunities.org/doc/london-borough-council/havering,London Borough of Havering,02/08/2017,1055.67,AUG17L493,Mears Care Ltd,Adults,Adult Services,Adult Community Team,Physical Support,HOME CARE - PRIVATE CONTRACTORS PAYMENT
http://opendatacommunities.org/doc/london-borough-council/havering,London Borough of Havering,02/08/2017,604.77,AUG17L494,Mears Care Ltd,Adults,Adult Services,Adult Community Team,Physical Support,HOME CARE - PRIVATE CONTRACTORS PAYMENT
http://opendatacommunities.org/doc/london-borough-council/havering,London Borough of Havering,02/08/2017,640.18,AUG17L495,Mears Care Ltd,Adults,Adult Services,Adult Community Team,Physical Support,HOME CARE - PRIVATE CONTRACTORS PAYMENT
http://opendatacommunities.org/doc/london-borough-council/havering,London Borough of Havering,02/08/2017,1336.56,AUG17L496,Mears Care Ltd,Adults,Adult Services,Adult Community Team,Physical Support,HOME CARE - PRIVATE CONTRACTORS PAYMENT
http://opendatacommunities.org/doc/london-borough-council/havering,London Borough of Havering,02/08/2017,721.47,AUG17L497,Mears Care Ltd,Adults,Adult Services,Adult Community Team,Physical Support,HOME CARE - PRIVATE CONTRACTORS PAYMENT
http://opendatacommunities.org/doc/london-borough-council/havering,London Borough of Havering,02/08/2017,738.05,AUG17L498,Mears Care Ltd,Adults,Adult Services,Adult Community Team,Physical Support,HOME CARE - PRIVATE CONTRACTORS PAYMENT
http://opendatacommunities.org/doc/london-borough-council/havering,London Borough of Havering,02/08/2017,4253.59,AUG17L499,Mears Care Ltd,Adults,Adult Services,Adult Community Team,Physical Support,HOME CARE - PRIVATE CONTRACTORS PAYMENT
http://opendatacommunities.org/doc/london-borough-council/havering,London Borough of Havering,02/08/2017,1333.16,AUG17L500,Mears Care Ltd,Adults,Adult Services,Adult Community Team,Physical Support,HOME CARE - PRIVATE CONTRACTORS PAYMENT
http://opendatacommunities.org/doc/london-borough-council/havering,London Borough of Havering,02/08/2017,1139.29,AUG17L501,Mears Care Ltd,Adults,Adult Services,Adult Community Team,Physical Support,HOME CARE - PRIVATE CONTRACTORS PAYMENT
http://opendatacommunities.org/doc/london-borough-council/havering,London Borough of Havering,02/08/2017,1140.83,AUG17L502,Mears Care Ltd,Adults,Adult Services,Adult Community Team,Physical Support,HOME CARE - PRIVATE CONTRACTORS PAYMENT
http://opendatacommunities.org/doc/london-borough-council/havering,London Borough of Havering,02/08/2017,802.66,AUG17L503,Mears Care Ltd,Adults,Adult Services,Adult Community Team,Physical Support,HOME CARE - PRIVATE CONTRACTORS PAYMENT
http://opendatacommunities.org/doc/london-borough-council/havering,London Borough of Havering,02/08/2017,582.61,AUG17L504,Mears Care Ltd,Adults,Adult Services,Adult Community Team,Physical Support,HOME CARE - PRIVATE CONTRACTORS PAYMENT
http://opendatacommunities.org/doc/london-borough-council/havering,London Borough of Havering,02/08/2017,1162.50,AUG17L505,Mears Care Ltd,Adults,Adult Services,Adult Community Team,Physical Support,HOME CARE - PRIVATE CONTRACTORS PAYMENT
http://opendatacommunities.org/doc/london-borough-council/havering,London Borough of Havering,02/08/2017,682.80,AUG17L506,Mears Care Ltd,Adults,Adult Services,Adult Community Team,Physical Support,HOME CARE - PRIVATE CONTRACTORS PAYMENT
http://opendatacommunities.org/doc/london-borough-council/havering,London Borough of Havering,02/08/2017,647.89,AUG17L507,Mears Care Ltd,Adults,Adult Services,Adult Community Team,Physical Support,HOME CARE - PRIVATE CONTRACTORS PAYMENT
http://opendatacommunities.org/doc/london-borough-council/havering,London Borough of Havering,02/08/2017,608.93,AUG17L508,Mears Care Ltd,Adults,Adult Services,Adult Community Team,Physical Support,HOME CARE - PRIVATE CONTRACTORS PAYMENT
http://opendatacommunities.org/doc/london-borough-council/havering,London Borough of Havering,30/08/2017,5512.84,AUG17L509,NAS Services Limited,Adults,Adult Services,Learning Disabilities,Learning Disability Support,HOME CARE - PRIVATE CONTRACTORS PAYMENT
http://opendatacommunities.org/doc/london-borough-council/havering,London Borough of Havering,30/08/2017,5512.84,AUG17L510,NAS Services Limited,Adults,Adult Services,Learning Disabilities,Learning Disability Support,HOME CARE - PRIVATE CONTRACTORS PAYMENT
http://opendatacommunities.org/doc/london-borough-council/havering,London Borough of Havering,30/08/2017,5512.84,AUG17L511,NAS Services Limited,Adults,Adult Services,Learning Disabilities,Learning Disability Support,HOME CARE - PRIVATE CONTRACTORS PAYMENT
http://opendatacommunities.org/doc/london-borough-council/havering,London Borough of Havering,30/08/2017,3937.74,AUG17L512,NAS Services Limited,Adults,Adult Services,Learning Disabilities,Learning Disability Support,HOME CARE - PRIVATE CONTRACTORS PAYMENT
http://opendatacommunities.org/doc/london-borough-council/havering,London Borough of Havering,30/08/2017,5512.84,AUG17L513,NAS Services Limited,Adults,Adult Services,Learning Disabilities,Learning Disability Support,HOME CARE - PRIVATE CONTRACTORS PAYMENT
http://opendatacommunities.org/doc/london-borough-council/havering,London Borough of Havering,30/08/2017,5512.84,AUG17L514,NAS Services Limited,Adults,Adult Services,Learning Disabilities,Learning Disability Support,HOME CARE - PRIVATE CONTRACTORS PAYMENT
http://opendatacommunities.org/doc/london-borough-council/havering,London Borough of Havering,07/08/2017,2045.96,AUG17L519,Bupa Care Homes - Hutton Village_a,Adults,Adult Services,Adult Community Team,Physical Support,NURSING HOMES - PRIVATE CONTRACTORS PAYMENT
http://opendatacommunities.org/doc/london-borough-council/havering,London Borough of Havering,07/08/2017,2181.84,AUG17L520,Bupa Care Homes - Hutton Village_a,Adults,Adult Services,Adult Community Team,Support with Memory & Cognition,RESIDENTIAL PLACEMENTS - PRIVATE CONTRACTORS PAYMENT
http://opendatacommunities.org/doc/london-borough-council/havering,London Borough of Havering,23/08/2017,1347.35,AUG17L521,Morepower Ltd t/a Aqs Homecare_a,Adults,Adult Services,Adult Community Team,Physical Support,HOME CARE - PRIVATE CONTRACTORS PAYMENT
http://opendatacommunities.org/doc/london-borough-council/havering,London Borough of Havering,23/08/2017,951.29,AUG17L522,Morepower Ltd t/a Aqs Homecare_a,Adults,Adult Services,Adult Community Team,Physical Support,HOME CARE - PRIVATE CONTRACTORS PAYMENT
http://opendatacommunities.org/doc/london-borough-council/havering,London Borough of Havering,23/08/2017,2181.90,AUG17L523,Morepower Ltd t/a Aqs Homecare_a,Adults,Adult Services,Adult Community Team,Physical Support,HOME CARE - PRIVATE CONTRACTORS PAYMENT
http://opendatacommunities.org/doc/london-borough-council/havering,London Borough of Havering,23/08/2017,775.88,AUG17L524,Morepower Ltd t/a Aqs Homecare_a,Adults,Adult Services,Adult Community Team,Physical Support,HOME CARE - PRIVATE CONTRACTORS PAYMENT
http://opendatacommunities.org/doc/london-borough-council/havering,London Borough of Havering,23/08/2017,540.21,AUG17L525,Morepower Ltd t/a Aqs Homecare_a,Adults,Adult Services,Adult Community Team,Physical Support,HOME CARE - PRIVATE CONTRACTORS PAYMENT
http://opendatacommunities.org/doc/london-borough-council/havering,London Borough of Havering,23/08/2017,1237.28,AUG17L526,Morepower Ltd t/a Aqs Homecare_a,Adults,Adult Services,Adult Community Team,Physical Support,HOME CARE - PRIVATE CONTRACTORS PAYMENT
http://opendatacommunities.org/doc/london-borough-council/havering,London Borough of Havering,23/08/2017,450.11,AUG17L527,Morepower Ltd t/a Aqs Homecare_a,Adults,Adult Services,Adult Community Team,Physical Support,HOME CARE - PRIVATE CONTRACTORS PAYMENT
http://opendatacommunities.org/doc/london-borough-council/havering,London Borough of Havering,23/08/2017,864.02,AUG17L528,Morepower Ltd t/a Aqs Homecare_a,Adults,Adult Services,Adult Community Team,Physical Support,HOME CARE - PRIVATE CONTRACTORS PAYMENT
http://opendatacommunities.org/doc/london-borough-council/havering,London Borough of Havering,23/08/2017,765.20,AUG17L529,Morepower Ltd t/a Aqs Homecare_a,Adults,Adult Services,Adult Community Team,Physical Support,HOME CARE - PRIVATE CONTRACTORS PAYMENT
http://opendatacommunities.org/doc/london-borough-council/havering,London Borough of Havering,23/08/2017,460.59,AUG17L530,Morepower Ltd t/a Aqs Homecare_a,Adults,Adult Services,Adult Community Team,Physical Support,HOME CARE - PRIVATE CONTRACTORS PAYMENT
http://opendatacommunities.org/doc/london-borough-council/havering,London Borough of Havering,23/08/2017,410.48,AUG17L531,Morepower Ltd t/a Aqs Homecare_a,Adults,Adult Services,Adult Community Team,Physical Support,HOME CARE - PRIVATE CONTRACTORS PAYMENT
http://opendatacommunities.org/doc/london-borough-council/havering,London Borough of Havering,23/08/2017,1310.72,AUG17L532,Morepower Ltd t/a Aqs Homecare_a,Adults,Adult Services,Adult Community Team,Physical Support,HOME CARE - PRIVATE CONTRACTORS PAYMENT
http://opendatacommunities.org/doc/london-borough-council/havering,London Borough of Havering,23/08/2017,948.47,AUG17L533,Morepower Ltd t/a Aqs Homecare_a,Adults,Adult Services,Adult Community Team,Support with Memory & Cognition,HOME CARE - PRIVATE CONTRACTORS PAYMENT
http://opendatacommunities.org/doc/london-borough-council/havering,London Borough of Havering,23/08/2017,516.14,AUG17L534,Morepower Ltd t/a Aqs Homecare_a,Adults,Adult Services,Adult Community Team,Physical Support,HOME CARE - PRIVATE CONTRACTORS PAYMENT
http://opendatacommunities.org/doc/london-borough-council/havering,London Borough of Havering,23/08/2017,490.23,AUG17L535,Morepower Ltd t/a Aqs Homecare_a,Adults,Adult Services,Adult Community Team,Physical Support,HOME CARE - PRIVATE CONTRACTORS PAYMENT
http://opendatacommunities.org/doc/london-borough-council/havering,London Borough of Havering,23/08/2017,1983.35,AUG17L536,Morepower Ltd t/a Aqs Homecare_a,Adults,Adult Services,Adult Community Team,Physical Support,HOME CARE - PRIVATE CONTRACTORS PAYMENT
http://opendatacommunities.org/doc/london-borough-council/havering,London Borough of Havering,23/08/2017,655.74,AUG17L537,Morepower Ltd t/a Aqs Homecare_a,Adults,Adult Services,Adult Community Team,Physical Support,HOME CARE - PRIVATE CONTRACTORS PAYMENT
http://opendatacommunities.org/doc/london-borough-council/havering,London Borough of Havering,23/08/2017,688.30,AUG17L538,Morepower Ltd t/a Aqs Homecare_a,Adults,Adult Services,Adult Community Team,Physical Support,HOME CARE - PRIVATE CONTRACTORS PAYMENT
http://opendatacommunities.org/doc/london-borough-council/havering,London Borough of Havering,23/08/2017,1331.94,AUG17L539,Morepower Ltd t/a Aqs Homecare_a,Adults,Adult Services,Adult Community Team,Physical Support,HOME CARE - PRIVATE CONTRACTORS PAYMENT
http://opendatacommunities.org/doc/london-borough-council/havering,London Borough of Havering,23/08/2017,678.76,AUG17L540,Morepower Ltd t/a Aqs Homecare_a,Adults,Adult Services,Adult Community Team,Physical Support,HOME CARE - PRIVATE CONTRACTORS PAYMENT
http://opendatacommunities.org/doc/london-borough-council/havering,London Borough of Havering,23/08/2017,440.80,AUG17L541,Morepower Ltd t/a Aqs Homecare_a,Adults,Adult Services,Adult Community Team,Physical Support,HOME CARE - PRIVATE CONTRACTORS PAYMENT
http://opendatacommunities.org/doc/london-borough-council/havering,London Borough of Havering,23/08/2017,1021.09,AUG17L542,Morepower Ltd t/a Aqs Homecare_a,Adults,Adult Services,Adult Community Team,Physical Support,HOME CARE - PRIVATE CONTRACTORS PAYMENT
http://opendatacommunities.org/doc/london-borough-council/havering,London Borough of Havering,23/08/2017,677.36,AUG17L543,Morepower Ltd t/a Aqs Homecare_a,Adults,Adult Services,Adult Community Team,Physical Support,HOME CARE - PRIVATE CONTRACTORS PAYMENT
http://opendatacommunities.org/doc/london-borough-council/havering,London Borough of Havering,23/08/2017,674.36,AUG17L544,Morepower Ltd t/a Aqs Homecare_a,Adults,Adult Services,Adult Community Team,Physical Support,HOME CARE - PRIVATE CONTRACTORS PAYMENT
http://opendatacommunities.org/doc/london-borough-council/havering,London Borough of Havering,23/08/2017,1125.37,AUG17L545,Morepower Ltd t/a Aqs Homecare_a,Adults,Adult Services,Adult Community Team,Physical Support,HOME CARE - PRIVATE CONTRACTORS PAYMENT
http://opendatacommunities.org/doc/london-borough-council/havering,London Borough of Havering,23/08/2017,880.30,AUG17L546,Morepower Ltd t/a Aqs Homecare_a,Adults,Adult Services,Adult Community Team,Physical Support,HOME CARE - PRIVATE CONTRACTORS PAYMENT
http://opendatacommunities.org/doc/london-borough-council/havering,London Borough of Havering,23/08/2017,424.91,AUG17L547,Morepower Ltd t/a Aqs Homecare_a,Adults,Adult Services,Adult Community Team,Physical Support,HOME CARE - PRIVATE CONTRACTORS PAYMENT
http://opendatacommunities.org/doc/london-borough-council/havering,London Borough of Havering,23/08/2017,1656.87,AUG17L548,Morepower Ltd t/a Aqs Homecare_a,Adults,Adult Services,Adult Community Team,Physical Support,HOME CARE - PRIVATE CONTRACTORS PAYMENT
http://opendatacommunities.org/doc/london-borough-council/havering,London Borough of Havering,23/08/2017,832.37,AUG17L549,Morepower Ltd t/a Aqs Homecare_a,Adults,Adult Services,Adult Community Team,Physical Support,HOME CARE - PRIVATE CONTRACTORS PAYMENT
http://opendatacommunities.org/doc/london-borough-council/havering,London Borough of Havering,07/08/2017,-3288.29,AUG17L550,Priory Supporting Care Ltd_a,Adults,Adult Services,Adult Community Team,Support with Memory & Cognition,RESIDENTIAL CARE INCOME
http://opendatacommunities.org/doc/london-borough-council/havering,London Borough of Havering,07/08/2017,4200.00,AUG17L551,Priory Supporting Care Ltd_a,Adults,Adult Services,Adult Community Team,Support with Memory & Cognition,RESIDENTIAL PLACEMENTS - PRIVATE CONTRACTORS PAYMENT
http://opendatacommunities.org/doc/london-borough-council/havering,London Borough of Havering,07/08/2017,-4116.00,AUG17L552,Priory Supporting Care Ltd_a,Adults,Adult Services,Adult Community Team,Support with Memory & Cognition,RESIDENTIAL PLACEMENTS - PRIVATE CONTRACTORS PAYMENT
http://opendatacommunities.org/doc/london-borough-council/havering,London Borough of Havering,07/08/2017,2641.45,AUG17L553,Priory Supporting Care Ltd_a,Adults,Adult Services,Adult Community Team,Support with Memory & Cognition,RESIDENTIAL CARE INCOME
http://opendatacommunities.org/doc/london-borough-council/havering,London Borough of Havering,07/08/2017,1298.29,AUG17L554,Priory Supporting Care Ltd_a,Adults,Adult Services,Adult Community Team,Support with Memory & Cognition,RESIDENTIAL PLACEMENTS - PRIVATE CONTRACTORS PAYMENT
http://opendatacommunities.org/doc/london-borough-council/havering,London Borough of Havering,07/08/2017,649.12,AUG17L555,Priory Supporting Care Ltd_a,Adults,Adult Services,Adult Community Team,Support with Memory & Cognition,RESPITE CARE - PRIVATE CONTRACTORS PAYMENT
http://opendatacommunities.org/doc/london-borough-council/havering,London Borough of Havering,07/08/2017,1866.29,AUG17L556,Priory Supporting Care Ltd_a,Adults,Adult Services,Adult Community Team,Support with Memory & Cognition,RESIDENTIAL PLACEMENTS - PRIVATE CONTRACTORS PAYMENT
http://opendatacommunities.org/doc/london-borough-council/havering,London Borough of Havering,07/08/2017,2272.00,AUG17L557,Priory Supporting Care Ltd_a,Adults,Adult Services,Adult Community Team,Support with Memory & Cognition,RESIDENTIAL PLACEMENTS - PRIVATE CONTRACTORS PAYMENT
http://opendatacommunities.org/doc/london-borough-council/havering,London Borough of Havering,07/08/2017,2272.00,AUG17L558,Priory Supporting Care Ltd_a,Adults,Adult Services,Adult Community Team,Support with Memory & Cognition,RESIDENTIAL PLACEMENTS - PRIVATE CONTRACTORS PAYMENT
http://opendatacommunities.org/doc/london-borough-council/havering,London Borough of Havering,07/08/2017,2286.04,AUG17L559,Priory Supporting Care Ltd_a,Adults,Adult Services,Adult Community Team,Physical Support,RESIDENTIAL PLACEMENTS - PRIVATE CONTRACTORS PAYMENT
http://opendatacommunities.org/doc/london-borough-council/havering,London Borough of Havering,07/08/2017,2024.00,AUG17L560,Priory Supporting Care Ltd_a,Adults,Adult Services,Adult Community Team,Physical Support,RESIDENTIAL PLACEMENTS - PRIVATE CONTRACTORS PAYMENT
http://opendatacommunities.org/doc/london-borough-council/havering,London Borough of Havering,07/08/2017,2272.00,AUG17L561,Priory Supporting Care Ltd_a,Adults,Adult Services,Adult Community Team,Support with Memory & Cognition,RESIDENTIAL PLACEMENTS - PRIVATE CONTRACTORS PAYMENT
http://opendatacommunities.org/doc/london-borough-council/havering,London Borough of Havering,07/08/2017,-1193.56,AUG17L562,Priory Supporting Care Ltd_a,Adults,Adult Services,Adult Community Team,Physical Support,RESIDENTIAL CARE INCOME
http://opendatacommunities.org/doc/london-borough-council/havering,London Borough of Havering,07/08/2017,2024.00,AUG17L563,Priory Supporting Care Ltd_a,Adults,Adult Services,Adult Community Team,Physical Support,RESIDENTIAL PLACEMENTS - PRIVATE CONTRACTORS PAYMENT
http://opendatacommunities.org/doc/london-borough-council/havering,London Borough of Havering,07/08/2017,-537.80,AUG17L564,Priory Supporting Care Ltd_a,Adults,Adult Services,Adult Community Team,Support with Memory & Cognition,RESIDENTIAL CARE INCOME
http://opendatacommunities.org/doc/london-borough-council/havering,London Borough of Havering,07/08/2017,2272.00,AUG17L565,Priory Supporting Care Ltd_a,Adults,Adult Services,Adult Community Team,Support with Memory & Cognition,RESIDENTIAL PLACEMENTS - PRIVATE CONTRACTORS PAYMENT
http://opendatacommunities.org/doc/london-borough-council/havering,London Borough of Havering,07/08/2017,-537.80,AUG17L566,Priory Supporting Care Ltd_a,Adults,Adult Services,Adult Community Team,Support with Memory & Cognition,RESIDENTIAL CARE INCOME
http://opendatacommunities.org/doc/london-borough-council/havering,London Borough of Havering,07/08/2017,2272.00,AUG17L567,Priory Supporting Care Ltd_a,Adults,Adult Services,Adult Community Team,Support with Memory & Cognition,RESIDENTIAL PLACEMENTS - PRIVATE CONTRACTORS PAYMENT
http://opendatacommunities.org/doc/london-borough-council/havering,London Borough of Havering,07/08/2017,-537.80,AUG17L568,Priory Supporting Care Ltd_a,Adults,Adult Services,Adult Community Team,Physical Support,RESIDENTIAL CARE INCOME
http://opendatacommunities.org/doc/london-borough-council/havering,London Borough of Havering,07/08/2017,2024.00,AUG17L569,Priory Supporting Care Ltd_a,Adults,Adult Services,Adult Community Team,Physical Support,RESIDENTIAL PLACEMENTS - PRIVATE CONTRACTORS PAYMENT
http://opendatacommunities.org/doc/london-borough-council/havering,London Borough of Havering,07/08/2017,-816.40,AUG17L570,Priory Supporting Care Ltd_a,Adults,Adult Services,Adult Community Team,Support with Memory & Cognition,RESIDENTIAL CARE INCOME
http://opendatacommunities.org/doc/london-borough-council/havering,London Borough of Havering,07/08/2017,2272.00,AUG17L571,Priory Supporting Care Ltd_a,Adults,Adult Services,Adult Community Team,Support with Memory & Cognition,RESIDENTIAL PLACEMENTS - PRIVATE CONTRACTORS PAYMENT
http://opendatacommunities.org/doc/london-borough-council/havering,London Borough of Havering,07/08/2017,-1509.04,AUG17L572,Priory Supporting Care Ltd_a,Adults,Adult Services,Adult Community Team,Support with Memory & Cognition,RESIDENTIAL CARE INCOME
http://opendatacommunities.org/doc/london-borough-council/havering,London Borough of Havering,07/08/2017,2352.00,AUG17L573,Priory Supporting Care Ltd_a,Adults,Adult Services,Adult Community Team,Support with Memory & Cognition,RESIDENTIAL PLACEMENTS - PRIVATE CONTRACTORS PAYMENT
http://opendatacommunities.org/doc/london-borough-council/havering,London Borough of Havering,07/08/2017,-730.29,AUG17L577,Ash Grove Residential Care Home_a,Adults,Adult Services,Adult Community Team,Support with Memory & Cognition,RESIDENTIAL PLACEMENTS - PRIVATE CONTRACTORS PAYMENT
http://opendatacommunities.org/doc/london-borough-council/havering,London Borough of Havering,07/08/2017,434.80,AUG17L578,Ash Grove Residential Care Home_a,Adults,Adult Services,Adult Community Team,Support with Memory & Cognition,RESIDENTIAL CARE INCOME
http://opendatacommunities.org/doc/london-borough-council/havering,London Borough of Havering,07/08/2017,-5410.88,AUG17L579,Ash Grove Residential Care Home_a,Adults,Adult Services,Adult Community Team,Support with Memory & Cognition,RESIDENTIAL CARE INCOME
http://opendatacommunities.org/doc/london-borough-council/havering,London Borough of Havering,07/08/2017,9088.00,AUG17L580,Ash Grove Residential Care Home_a,Adults,Adult Services,Adult Community Team,Support with Memory & Cognition,RESIDENTIAL PLACEMENTS - PRIVATE CONTRACTORS PAYMENT
http://opendatacommunities.org/doc/london-borough-council/havering,London Borough of Havering,07/08/2017,-2596.48,AUG17L581,Ash Grove Residential Care Home_a,Adults,Adult Services,Adult Community Team,Support with Memory & Cognition,RESPITE CARE - PRIVATE CONTRACTORS PAYMENT
http://opendatacommunities.org/doc/london-borough-council/havering,London Borough of Havering,07/08/2017,1135.96,AUG17L582,Ash Grove Residential Care Home_a,Adults,Adult Services,Adult Community Team,Support with Memory & Cognition,RESPITE CARE - PRIVATE CONTRACTORS PAYMENT
http://opendatacommunities.org/doc/london-borough-council/havering,London Borough of Havering,07/08/2017,-8276.57,AUG17L583,Ash Grove Residential Care Home_a,Adults,Adult Services,Adult Community Team,Support with Memory & Cognition,RESIDENTIAL PLACEMENTS - PRIVATE CONTRACTORS PAYMENT
http://opendatacommunities.org/doc/london-borough-council/havering,London Borough of Havering,07/08/2017,4962.88,AUG17L584,Ash Grove Residential Care Home_a,Adults,Adult Services,Adult Community Team,Support with Memory & Cognition,RESIDENTIAL CARE INCOME
http://opendatacommunities.org/doc/london-borough-council/havering,London Borough of Havering,07/08/2017,2272.00,AUG17L585,Ash Grove Residential Care Home_a,Adults,Adult Services,Adult Community Team,Physical Support,RESIDENTIAL PLACEMENTS - PRIVATE CONTRACTORS PAYMENT
http://opendatacommunities.org/doc/london-borough-council/havering,London Borough of Havering,07/08/2017,2024.00,AUG17L586,Ash Grove Residential Care Home_a,Adults,Adult Services,Adult Community Team,Physical Support,RESIDENTIAL PLACEMENTS - PRIVATE CONTRACTORS PAYMENT
http://opendatacommunities.org/doc/london-borough-council/havering,London Borough of Havering,07/08/2017,2272.00,AUG17L587,Ash Grove Residential Care Home_a,Adults,Adult Services,Adult Community Team,Physical Support,RESIDENTIAL PLACEMENTS - PRIVATE CONTRACTORS PAYMENT
http://opendatacommunities.org/doc/london-borough-council/havering,London Borough of Havering,07/08/2017,2272.00,AUG17L588,Ash Grove Residential Care Home_a,Adults,Adult Services,Adult Community Team,Support with Memory & Cognition,RESIDENTIAL PLACEMENTS - PRIVATE CONTRACTORS PAYMENT
http://opendatacommunities.org/doc/london-borough-council/havering,London Borough of Havering,07/08/2017,-1362.36,AUG17L589,Ash Grove Residential Care Home_a,Adults,Adult Services,Adult Community Team,Support with Memory & Cognition,RESIDENTIAL CARE INCOME
http://opendatacommunities.org/doc/london-borough-council/havering,London Borough of Havering,07/08/2017,2272.00,AUG17L590,Ash Grove Residential Care Home_a,Adults,Adult Services,Adult Community Team,Support with Memory & Cognition,RESIDENTIAL PLACEMENTS - PRIVATE CONTRACTORS PAYMENT
http://opendatacommunities.org/doc/london-borough-council/havering,London Borough of Havering,07/08/2017,-566.24,AUG17L591,Ash Grove Residential Care Home_a,Adults,Adult Services,Adult Community Team,Support with Memory & Cognition,RESIDENTIAL CARE INCOME
http://opendatacommunities.org/doc/london-borough-council/havering,London Borough of Havering,07/08/2017,2272.00,AUG17L592,Ash Grove Residential Care Home_a,Adults,Adult Services,Adult Community Team,Support with Memory & Cognition,RESIDENTIAL PLACEMENTS - PRIVATE CONTRACTORS PAYMENT
http://opendatacommunities.org/doc/london-borough-council/havering,London Borough of Havering,16/08/2017,492.90,AUG17L593,Carers Trust East Midlands,Adults,Adult Services,Adult Community Team,Physical Support,HOME CARE - PRIVATE CONTRACTORS PAYMENT
http://opendatacommunities.org/doc/london-borough-council/havering,London Borough of Havering,16/08/2017,624.34,AUG17L594,Carers Trust East Midlands,Adults,Adult Services,Learning Disabilities,Learning Disability Support,HOME CARE - PRIVATE CONTRACTORS PAYMENT
http://opendatacommunities.org/doc/london-borough-council/havering,London Borough of Havering,16/08/2017,985.80,AUG17L595,Carers Trust East Midlands,Adults,Adult Services,Adult Community Team,Physical Support,HOME CARE - PRIVATE CONTRACTORS PAYMENT
http://opendatacommunities.org/doc/london-borough-council/havering,London Borough of Havering,07/08/2017,4853.12,AUG17L596,Clacton Family Trust_a,Adults,Adult Services,Learning Disabilities,Learning Disability Support,RESIDENTIAL PLACEMENTS - PRIVATE CONTRACTORS PAYMENT
http://opendatacommunities.org/doc/london-borough-council/havering,London Borough of Havering,07/08/2017,-650.57,AUG17L597,Langley House_a,Adults,Adult Services,Adult Community Team,Physical Support,RESIDENTIAL PLACEMENTS - PRIVATE CONTRACTORS PAYMENT
http://opendatacommunities.org/doc/london-borough-council/havering,London Borough of Havering,07/08/2017,8096.00,AUG17L598,Langley House_a,Adults,Adult Services,Adult Community Team,Physical Support,RESIDENTIAL PLACEMENTS - PRIVATE CONTRACTORS PAYMENT
http://opendatacommunities.org/doc/london-borough-council/havering,London Borough of Havering,07/08/2017,2020.76,AUG17L599,Langley House_a,Adults,Adult Services,Adult Community Team,Physical Support,RESIDENTIAL PLACEMENTS - PRIVATE CONTRACTORS PAYMENT
http://opendatacommunities.org/doc/london-borough-council/havering,London Borough of Havering,07/08/2017,-2020.76,AUG17L600,Langley House_a,Adults,Adult Services,Adult Community Team,Physical Support,RESIDENTIAL PLACEMENTS - PRIVATE CONTRACTORS PAYMENT
http://opendatacommunities.org/doc/london-borough-council/havering,London Borough of Havering,07/08/2017,556.29,AUG17L601,Langley House_a,Adults,Adult Services,Adult Community Team,Physical Support,RESIDENTIAL CARE INCOME
http://opendatacommunities.org/doc/london-borough-council/havering,London Borough of Havering,07/08/2017,578.32,AUG17L602,Langley House_a,Adults,Adult Services,Adult Community Team,Physical Support,RESPITE CARE - PRIVATE CONTRACTORS PAYMENT
http://opendatacommunities.org/doc/london-borough-council/havering,London Borough of Havering,07/08/2017,-7445.43,AUG17L603,Langley House_a,Adults,Adult Services,Adult Community Team,Physical Support,RESIDENTIAL PLACEMENTS - PRIVATE CONTRACTORS PAYMENT
http://opendatacommunities.org/doc/london-borough-council/havering,London Borough of Havering,07/08/2017,1978.34,AUG17L604,Langley House_a,Adults,Adult Services,Adult Community Team,Physical Support,RESIDENTIAL CARE INCOME
http://opendatacommunities.org/doc/london-borough-council/havering,London Borough of Havering,07/08/2017,5204.57,AUG17L605,Langley House_a,Adults,Adult Services,Adult Community Team,Physical Support,RESIDENTIAL PLACEMENTS - PRIVATE CONTRACTORS PAYMENT
http://opendatacommunities.org/doc/london-borough-council/havering,London Borough of Havering,07/08/2017,578.29,AUG17L606,Langley House_a,Adults,Adult Services,Adult Community Team,Physical Support,RESIDENTIAL PLACEMENTS - PRIVATE CONTRACTORS PAYMENT
http://opendatacommunities.org/doc/london-borough-council/havering,London Borough of Havering,07/08/2017,2024.00,AUG17L607,Langley House_a,Adults,Adult Services,Adult Community Team,Physical Support,RESIDENTIAL PLACEMENTS - PRIVATE CONTRACTORS PAYMENT
http://opendatacommunities.org/doc/london-borough-council/havering,London Borough of Havering,07/08/2017,2272.00,AUG17L608,Langley House_a,Adults,Adult Services,Adult Community Team,Support with Memory & Cognition,RESIDENTIAL PLACEMENTS - PRIVATE CONTRACTORS PAYMENT
http://opendatacommunities.org/doc/london-borough-council/havering,London Borough of Havering,07/08/2017,2024.00,AUG17L609,Langley House_a,Adults,Adult Services,Adult Community Team,Physical Support,RESIDENTIAL PLACEMENTS - PRIVATE CONTRACTORS PAYMENT
http://opendatacommunities.org/doc/london-borough-council/havering,London Borough of Havering,07/08/2017,2024.00,AUG17L610,Langley House_a,Adults,Adult Services,Adult Community Team,Physical Support,RESIDENTIAL PLACEMENTS - PRIVATE CONTRACTORS PAYMENT
http://opendatacommunities.org/doc/london-borough-council/havering,London Borough of Havering,07/08/2017,2024.00,AUG17L611,Langley House_a,Adults,Adult Services,Adult Community Team,Physical Support,RESIDENTIAL PLACEMENTS - PRIVATE CONTRACTORS PAYMENT
http://opendatacommunities.org/doc/london-borough-council/havering,London Borough of Havering,07/08/2017,2024.00,AUG17L612,Langley House_a,Adults,Adult Services,Adult Community Team,Physical Support,RESIDENTIAL PLACEMENTS - PRIVATE CONTRACTORS PAYMENT
http://opendatacommunities.org/doc/london-borough-council/havering,London Borough of Havering,07/08/2017,2272.00,AUG17L613,Langley House_a,Adults,Adult Services,Adult Community Team,Support with Memory & Cognition,RESIDENTIAL PLACEMENTS - PRIVATE CONTRACTORS PAYMENT
http://opendatacommunities.org/doc/london-borough-council/havering,London Borough of Havering,07/08/2017,2024.00,AUG17L614,Langley House_a,Adults,Adult Services,Adult Community Team,Physical Support,RESIDENTIAL PLACEMENTS - PRIVATE CONTRACTORS PAYMENT
http://opendatacommunities.org/doc/london-borough-council/havering,London Borough of Havering,07/08/2017,2024.00,AUG17L615,Langley House_a,Adults,Adult Services,Adult Community Team,Physical Support,RESIDENTIAL PLACEMENTS - PRIVATE CONTRACTORS PAYMENT
http://opendatacommunities.org/doc/london-borough-council/havering,London Borough of Havering,07/08/2017,2024.00,AUG17L616,Langley House_a,Adults,Adult Services,Adult Community Team,Physical Support,RESIDENTIAL PLACEMENTS - PRIVATE CONTRACTORS PAYMENT
http://opendatacommunities.org/doc/london-borough-council/havering,London Borough of Havering,07/08/2017,2024.00,AUG17L617,Langley House_a,Adults,Adult Services,Adult Community Team,Physical Support,RESIDENTIAL PLACEMENTS - PRIVATE CONTRACTORS PAYMENT
http://opendatacommunities.org/doc/london-borough-council/havering,London Borough of Havering,07/08/2017,-534.12,AUG17L618,Langley House_a,Adults,Adult Services,Adult Community Team,Support with Memory & Cognition,RESIDENTIAL CARE INCOME
http://opendatacommunities.org/doc/london-borough-council/havering,London Borough of Havering,07/08/2017,2272.00,AUG17L619,Langley House_a,Adults,Adult Services,Adult Community Team,Support with Memory & Cognition,RESIDENTIAL PLACEMENTS - PRIVATE CONTRACTORS PAYMENT
http://opendatacommunities.org/doc/london-borough-council/havering,London Borough of Havering,07/08/2017,-612.20,AUG17L620,Langley House_a,Adults,Adult Services,Adult Community Team,Physical Support,RESIDENTIAL CARE INCOME
http://opendatacommunities.org/doc/london-borough-council/havering,London Borough of Havering,07/08/2017,2024.00,AUG17L621,Langley House_a,Adults,Adult Services,Adult Community Team,Physical Support,RESIDENTIAL PLACEMENTS - PRIVATE CONTRACTORS PAYMENT
http://opendatacommunities.org/doc/london-borough-council/havering,London Borough of Havering,07/08/2017,-537.80,AUG17L622,Langley House_a,Adults,Adult Services,Adult Community Team,Physical Support,RESIDENTIAL CARE INCOME
http://opendatacommunities.org/doc/london-borough-council/havering,London Borough of Havering,07/08/2017,2024.00,AUG17L623,Langley House_a,Adults,Adult Services,Adult Community Team,Physical Support,RESIDENTIAL PLACEMENTS - PRIVATE CONTRACTORS PAYMENT
http://opendatacommunities.org/doc/london-borough-council/havering,London Borough of Havering,07/08/2017,-1264.80,AUG17L624,Langley House_a,Adults,Adult Services,Adult Community Team,Support with Memory & Cognition,RESIDENTIAL CARE INCOME
http://opendatacommunities.org/doc/london-borough-council/havering,London Borough of Havering,07/08/2017,2272.00,AUG17L625,Langley House_a,Adults,Adult Services,Adult Community Team,Support with Memory & Cognition,RESIDENTIAL PLACEMENTS - PRIVATE CONTRACTORS PAYMENT
http://opendatacommunities.org/doc/london-borough-council/havering,London Borough of Havering,07/08/2017,-525.80,AUG17L626,Langley House_a,Adults,Adult Services,Adult Community Team,Physical Support,RESIDENTIAL CARE INCOME
http://opendatacommunities.org/doc/london-borough-council/havering,London Borough of Havering,07/08/2017,2024.00,AUG17L627,Langley House_a,Adults,Adult Services,Adult Community Team,Physical Support,RESIDENTIAL PLACEMENTS - PRIVATE CONTRACTORS PAYMENT
http://opendatacommunities.org/doc/london-borough-council/havering,London Borough of Havering,07/08/2017,-537.80,AUG17L628,Langley House_a,Adults,Adult Services,Adult Community Team,Support with Memory & Cognition,RESIDENTIAL CARE INCOME
http://opendatacommunities.org/doc/london-borough-council/havering,London Borough of Havering,07/08/2017,2272.00,AUG17L629,Langley House_a,Adults,Adult Services,Adult Community Team,Support with Memory & Cognition,RESIDENTIAL PLACEMENTS - PRIVATE CONTRACTORS PAYMENT
http://opendatacommunities.org/doc/london-borough-council/havering,London Borough of Havering,07/08/2017,-537.80,AUG17L630,Langley House_a,Adults,Adult Services,Adult Community Team,Physical Support,RESIDENTIAL CARE INCOME
http://opendatacommunities.org/doc/london-borough-council/havering,London Borough of Havering,07/08/2017,2024.00,AUG17L631,Langley House_a,Adults,Adult Services,Adult Community Team,Physical Support,RESIDENTIAL PLACEMENTS - PRIVATE CONTRACTORS PAYMENT
http://opendatacommunities.org/doc/london-borough-council/havering,London Borough of Havering,07/08/2017,-521.80,AUG17L632,Langley House_a,Adults,Adult Services,Adult Community Team,Physical Support,RESIDENTIAL CARE INCOME
http://opendatacommunities.org/doc/london-borough-council/havering,London Borough of Havering,07/08/2017,2024.00,AUG17L633,Langley House_a,Adults,Adult Services,Adult Community Team,Physical Support,RESIDENTIAL PLACEMENTS - PRIVATE CONTRACTORS PAYMENT
http://opendatacommunities.org/doc/london-borough-council/havering,London Borough of Havering,07/08/2017,578.32,AUG17L634,Langley House_a,Adults,Adult Services,Adult Community Team,Physical Support,RESPITE CARE - PRIVATE CONTRACTORS PAYMENT
http://opendatacommunities.org/doc/london-borough-council/havering,London Borough of Havering,07/08/2017,2900.00,AUG17L635,Ebury Court_a,Adults,Adult Services,Learning Disabilities,Learning Disability Support,RESIDENTIAL PLACEMENTS - PRIVATE CONTRACTORS PAYMENT
http://opendatacommunities.org/doc/london-borough-council/havering,London Borough of Havering,07/08/2017,3400.00,AUG17L636,Ebury Court_a,Adults,Adult Services,Adult Community Team,Physical Support,RESIDENTIAL PLACEMENTS - PRIVATE CONTRACTORS PAYMENT
http://opendatacommunities.org/doc/london-borough-council/havering,London Borough of Havering,07/08/2017,2272.00,AUG17L637,Ebury Court_a,Adults,Adult Services,Adult Community Team,Support with Memory & Cognition,RESIDENTIAL PLACEMENTS - PRIVATE CONTRACTORS PAYMENT
http://opendatacommunities.org/doc/london-borough-council/havering,London Borough of Havering,07/08/2017,2600.00,AUG17L638,Ebury Court_a,Adults,Adult Services,Adult Community Team,Physical Support,RESIDENTIAL PLACEMENTS - PRIVATE CONTRACTORS PAYMENT
http://opendatacommunities.org/doc/london-borough-council/havering,London Borough of Havering,07/08/2017,-682.92,AUG17L639,Ebury Court_a,Adults,Adult Services,Adult Community Team,Physical Support,RESIDENTIAL CARE INCOME
http://opendatacommunities.org/doc/london-borough-council/havering,London Borough of Havering,07/08/2017,2652.00,AUG17L640,Ebury Court_a,Adults,Adult Services,Adult Community Team,Physical Support,RESIDENTIAL PLACEMENTS - PRIVATE CONTRACTORS PAYMENT
http://opendatacommunities.org/doc/london-borough-council/havering,London Borough of Havering,07/08/2017,-892.72,AUG17L641,Ebury Court_a,Adults,Adult Services,Adult Community Team,Support with Memory & Cognition,RESIDENTIAL CARE INCOME
http://opendatacommunities.org/doc/london-borough-council/havering,London Borough of Havering,07/08/2017,2272.00,AUG17L642,Ebury Court_a,Adults,Adult Services,Adult Community Team,Support with Memory & Cognition,RESIDENTIAL PLACEMENTS - PRIVATE CONTRACTORS PAYMENT
http://opendatacommunities.org/doc/london-borough-council/havering,London Borough of Havering,07/08/2017,-716.28,AUG17L643,Ebury Court_a,Adults,Adult Services,Adult Community Team,Physical Support,RESIDENTIAL CARE INCOME
http://opendatacommunities.org/doc/london-borough-council/havering,London Borough of Havering,07/08/2017,2856.00,AUG17L644,Ebury Court_a,Adults,Adult Services,Adult Community Team,Physical Support,RESIDENTIAL PLACEMENTS - PRIVATE CONTRACTORS PAYMENT
http://opendatacommunities.org/doc/london-borough-council/havering,London Borough of Havering,07/08/2017,-998.64,AUG17L645,Ebury Court_a,Adults,Adult Services,Adult Community Team,Physical Support,RESIDENTIAL CARE INCOME
http://opendatacommunities.org/doc/london-borough-council/havering,London Borough of Havering,07/08/2017,2856.00,AUG17L646,Ebury Court_a,Adults,Adult Services,Adult Community Team,Physical Support,RESIDENTIAL PLACEMENTS - PRIVATE CONTRACTORS PAYMENT
http://opendatacommunities.org/doc/london-borough-council/havering,London Borough of Havering,07/08/2017,2675.20,AUG17L674,The Cottage Residential Care Home_a,Adults,Adult Services,Learning Disabilities,Learning Disability Support,RESIDENTIAL PLACEMENTS - PRIVATE CONTRACTORS PAYMENT
http://opendatacommunities.org/doc/london-borough-council/havering,London Borough of Havering,07/08/2017,-730.29,AUG17L675,The Hornchurch Nursing Centre_a,Adults,Adult Services,Adult Community Team,Support with Memory & Cognition,RESIDENTIAL PLACEMENTS - PRIVATE CONTRACTORS PAYMENT
http://opendatacommunities.org/doc/london-borough-council/havering,London Borough of Havering,07/08/2017,-673.71,AUG17L676,The Hornchurch Nursing Centre_a,Adults,Adult Services,Adult Community Team,Support with Memory & Cognition,NURSING HOMES - PRIVATE CONTRACTORS PAYMENT
http://opendatacommunities.org/doc/london-borough-council/havering,London Borough of Havering,07/08/2017,-2727.84,AUG17L677,The Hornchurch Nursing Centre_a,Adults,Adult Services,Adult Community Team,Support with Memory & Cognition,NURSING CARE INCOME
http://opendatacommunities.org/doc/london-borough-council/havering,London Borough of Havering,07/08/2017,9088.00,AUG17L678,The Hornchurch Nursing Centre_a,Adults,Adult Services,Adult Community Team,Support with Memory & Cognition,RESIDENTIAL PLACEMENTS - PRIVATE CONTRACTORS PAYMENT
http://opendatacommunities.org/doc/london-borough-council/havering,London Borough of Havering,07/08/2017,-3049.12,AUG17L679,The Hornchurch Nursing Centre_a,Adults,Adult Services,Adult Community Team,Support with Memory & Cognition,NURSING CARE INCOME
http://opendatacommunities.org/doc/london-borough-council/havering,London Borough of Havering,07/08/2017,8384.00,AUG17L680,The Hornchurch Nursing Centre_a,Adults,Adult Services,Adult Community Team,Support with Memory & Cognition,NURSING HOMES - PRIVATE CONTRACTORS PAYMENT
http://opendatacommunities.org/doc/london-borough-council/havering,London Borough of Havering,07/08/2017,1122.86,AUG17L681,The Hornchurch Nursing Centre_a,Adults,Adult Services,Adult Community Team,Support with Memory & Cognition,NURSING HOMES - PRIVATE CONTRACTORS PAYMENT
http://opendatacommunities.org/doc/london-borough-council/havering,London Borough of Havering,07/08/2017,-8276.57,AUG17L682,The Hornchurch Nursing Centre_a,Adults,Adult Services,Adult Community Team,Support with Memory & Cognition,RESIDENTIAL PLACEMENTS - PRIVATE CONTRACTORS PAYMENT
http://opendatacommunities.org/doc/london-borough-council/havering,London Borough of Havering,07/08/2017,2580.75,AUG17L683,The Hornchurch Nursing Centre_a,Adults,Adult Services,Adult Community Team,Support with Memory & Cognition,NURSING CARE INCOME
http://opendatacommunities.org/doc/london-borough-council/havering,London Borough of Havering,07/08/2017,-7635.43,AUG17L684,The Hornchurch Nursing Centre_a,Adults,Adult Services,Adult Community Team,Support with Memory & Cognition,NURSING HOMES - PRIVATE CONTRACTORS PAYMENT
http://opendatacommunities.org/doc/london-borough-council/havering,London Borough of Havering,07/08/2017,2858.48,AUG17L685,The Hornchurch Nursing Centre_a,Adults,Adult Services,Adult Community Team,Support with Memory & Cognition,NURSING CARE INCOME
http://opendatacommunities.org/doc/london-borough-council/havering,London Borough of Havering,07/08/2017,-449.14,AUG17L686,The Hornchurch Nursing Centre_a,Adults,Adult Services,Adult Community Team,Support with Memory & Cognition,NURSING HOMES - PRIVATE CONTRACTORS PAYMENT
http://opendatacommunities.org/doc/london-borough-council/havering,London Borough of Havering,07/08/2017,1135.96,AUG17L687,The Hornchurch Nursing Centre_a,Adults,Adult Services,Adult Community Team,Support with Memory & Cognition,RESPITE CARE - PRIVATE CONTRACTORS PAYMENT
http://opendatacommunities.org/doc/london-borough-council/havering,London Borough of Havering,07/08/2017,2742.96,AUG17L688,The Hornchurch Nursing Centre_a,Adults,Adult Services,Adult Community Team,Support with Memory & Cognition,NURSING HOMES - PRIVATE CONTRACTORS PAYMENT
http://opendatacommunities.org/doc/london-borough-council/havering,London Borough of Havering,07/08/2017,2032.00,AUG17L689,The Hornchurch Nursing Centre_a,Adults,Adult Services,Adult Community Team,Physical Support,NURSING HOMES - PRIVATE CONTRACTORS PAYMENT
http://opendatacommunities.org/doc/london-borough-council/havering,London Borough of Havering,07/08/2017,2032.00,AUG17L690,The Hornchurch Nursing Centre_a,Adults,Adult Services,Adult Community Team,Physical Support,NURSING HOMES - PRIVATE CONTRACTORS PAYMENT
http://opendatacommunities.org/doc/london-borough-council/havering,London Borough of Havering,07/08/2017,2096.00,AUG17L691,The Hornchurch Nursing Centre_a,Adults,Adult Services,Adult Community Team,Support with Memory & Cognition,NURSING HOMES - PRIVATE CONTRACTORS PAYMENT
http://opendatacommunities.org/doc/london-borough-council/havering,London Borough of Havering,07/08/2017,2096.00,AUG17L692,The Hornchurch Nursing Centre_a,Adults,Adult Services,Adult Community Team,Support with Memory & Cognition,NURSING HOMES - PRIVATE CONTRACTORS PAYMENT
http://opendatacommunities.org/doc/london-borough-council/havering,London Borough of Havering,07/08/2017,2032.00,AUG17L693,The Hornchurch Nursing Centre_a,Adults,Adult Services,Adult Community Team,Physical Support,NURSING HOMES - PRIVATE CONTRACTORS PAYMENT
http://opendatacommunities.org/doc/london-borough-council/havering,London Borough of Havering,07/08/2017,2032.00,AUG17L694,The Hornchurch Nursing Centre_a,Adults,Adult Services,Adult Community Team,Physical Support,NURSING HOMES - PRIVATE CONTRACTORS PAYMENT
http://opendatacommunities.org/doc/london-borough-council/havering,London Borough of Havering,07/08/2017,2032.00,AUG17L695,The Hornchurch Nursing Centre_a,Adults,Adult Services,Adult Community Team,Physical Support,NURSING HOMES - PRIVATE CONTRACTORS PAYMENT
http://opendatacommunities.org/doc/london-borough-council/havering,London Borough of Havering,07/08/2017,2032.00,AUG17L696,The Hornchurch Nursing Centre_a,Adults,Adult Services,Adult Community Team,Physical Support,NURSING HOMES - PRIVATE CONTRACTORS PAYMENT
http://opendatacommunities.org/doc/london-borough-council/havering,London Borough of Havering,07/08/2017,2032.00,AUG17L697,The Hornchurch Nursing Centre_a,Adults,Adult Services,Adult Community Team,Physical Support,NURSING HOMES - PRIVATE CONTRACTORS PAYMENT
http://opendatacommunities.org/doc/london-borough-council/havering,London Borough of Havering,07/08/2017,2096.00,AUG17L698,The Hornchurch Nursing Centre_a,Adults,Adult Services,Adult Community Team,Support with Memory & Cognition,NURSING HOMES - PRIVATE CONTRACTORS PAYMENT
http://opendatacommunities.org/doc/london-borough-council/havering,London Borough of Havering,07/08/2017,-524.80,AUG17L699,The Hornchurch Nursing Centre_a,Adults,Adult Services,Adult Community Team,Physical Support,NURSING CARE INCOME
http://opendatacommunities.org/doc/london-borough-council/havering,London Borough of Havering,07/08/2017,2032.00,AUG17L700,The Hornchurch Nursing Centre_a,Adults,Adult Services,Adult Community Team,Physical Support,NURSING HOMES - PRIVATE CONTRACTORS PAYMENT
http://opendatacommunities.org/doc/london-borough-council/havering,London Borough of Havering,07/08/2017,-538.08,AUG17L701,The Hornchurch Nursing Centre_a,Adults,Adult Services,Adult Community Team,Support with Memory & Cognition,NURSING CARE INCOME
http://opendatacommunities.org/doc/london-borough-council/havering,London Borough of Havering,07/08/2017,2096.00,AUG17L702,The Hornchurch Nursing Centre_a,Adults,Adult Services,Adult Community Team,Support with Memory & Cognition,NURSING HOMES - PRIVATE CONTRACTORS PAYMENT
http://opendatacommunities.org/doc/london-borough-council/havering,London Borough of Havering,07/08/2017,-603.68,AUG17L703,The Hornchurch Nursing Centre_a,Adults,Adult Services,Adult Community Team,Support with Memory & Cognition,NURSING CARE INCOME
http://opendatacommunities.org/doc/london-borough-council/havering,London Borough of Havering,07/08/2017,2096.00,AUG17L704,The Hornchurch Nursing Centre_a,Adults,Adult Services,Adult Community Team,Support with Memory & Cognition,NURSING HOMES - PRIVATE CONTRACTORS PAYMENT
http://opendatacommunities.org/doc/london-borough-council/havering,London Borough of Havering,07/08/2017,-892.96,AUG17L705,The Hornchurch Nursing Centre_a,Adults,Adult Services,Adult Community Team,Physical Support,NURSING CARE INCOME
http://opendatacommunities.org/doc/london-borough-council/havering,London Borough of Havering,07/08/2017,2032.00,AUG17L706,The Hornchurch Nursing Centre_a,Adults,Adult Services,Adult Community Team,Physical Support,NURSING HOMES - PRIVATE CONTRACTORS PAYMENT
http://opendatacommunities.org/doc/london-borough-council/havering,London Borough of Havering,07/08/2017,-1017.88,AUG17L707,The Hornchurch Nursing Centre_a,Adults,Adult Services,Adult Community Team,Physical Support,NURSING CARE INCOME
http://opendatacommunities.org/doc/london-borough-council/havering,London Borough of Havering,07/08/2017,2032.00,AUG17L708,The Hornchurch Nursing Centre_a,Adults,Adult Services,Adult Community Team,Physical Support,NURSING HOMES - PRIVATE CONTRACTORS PAYMENT
http://opendatacommunities.org/doc/london-borough-council/havering,London Borough of Havering,07/08/2017,-961.76,AUG17L709,The Hornchurch Nursing Centre_a,Adults,Adult Services,Adult Community Team,Support with Memory & Cognition,NURSING CARE INCOME
http://opendatacommunities.org/doc/london-borough-council/havering,London Borough of Havering,07/08/2017,2096.00,AUG17L710,The Hornchurch Nursing Centre_a,Adults,Adult Services,Adult Community Team,Support with Memory & Cognition,NURSING HOMES - PRIVATE CONTRACTORS PAYMENT
http://opendatacommunities.org/doc/london-borough-council/havering,London Borough of Havering,07/08/2017,-538.60,AUG17L711,The Hornchurch Nursing Centre_a,Adults,Adult Services,Adult Community Team,Physical Support,RESIDENTIAL CARE INCOME
http://opendatacommunities.org/doc/london-borough-council/havering,London Borough of Havering,07/08/2017,2024.00,AUG17L712,The Hornchurch Nursing Centre_a,Adults,Adult Services,Adult Community Team,Physical Support,RESIDENTIAL PLACEMENTS - PRIVATE CONTRACTORS PAYMENT
http://opendatacommunities.org/doc/london-borough-council/havering,London Borough of Havering,07/08/2017,-708.44,AUG17L713,The Hornchurch Nursing Centre_a,Adults,Adult Services,Adult Community Team,Support with Memory & Cognition,NURSING CARE INCOME
http://opendatacommunities.org/doc/london-borough-council/havering,London Borough of Havering,07/08/2017,2272.00,AUG17L714,The Hornchurch Nursing Centre_a,Adults,Adult Services,Adult Community Team,Support with Memory & Cognition,RESIDENTIAL PLACEMENTS - PRIVATE CONTRACTORS PAYMENT
http://opendatacommunities.org/doc/london-borough-council/havering,London Borough of Havering,07/08/2017,-458.32,AUG17L715,The Hornchurch Nursing Centre_a,Adults,Adult Services,Adult Community Team,Physical Support,RESIDENTIAL CARE INCOME
http://opendatacommunities.org/doc/london-borough-council/havering,London Borough of Havering,07/08/2017,2024.00,AUG17L716,The Hornchurch Nursing Centre_a,Adults,Adult Services,Adult Community Team,Physical Support,RESIDENTIAL PLACEMENTS - PRIVATE CONTRACTORS PAYMENT
http://opendatacommunities.org/doc/london-borough-council/havering,London Borough of Havering,07/08/2017,-1262.00,AUG17L717,The Hornchurch Nursing Centre_a,Adults,Adult Services,Adult Community Team,Support with Memory & Cognition,NURSING CARE INCOME
http://opendatacommunities.org/doc/london-borough-council/havering,London Borough of Havering,07/08/2017,2096.00,AUG17L718,The Hornchurch Nursing Centre_a,Adults,Adult Services,Adult Community Team,Support with Memory & Cognition,NURSING HOMES - PRIVATE CONTRACTORS PAYMENT
http://opendatacommunities.org/doc/london-borough-council/havering,London Borough of Havering,07/08/2017,-537.80,AUG17L719,The Hornchurch Nursing Centre_a,Adults,Adult Services,Adult Community Team,Support with Memory & Cognition,NURSING CARE INCOME
http://opendatacommunities.org/doc/london-borough-council/havering,London Borough of Havering,07/08/2017,2096.00,AUG17L720,The Hornchurch Nursing Centre_a,Adults,Adult Services,Adult Community Team,Support with Memory & Cognition,NURSING HOMES - PRIVATE CONTRACTORS PAYMENT
http://opendatacommunities.org/doc/london-borough-council/havering,London Borough of Havering,07/08/2017,-1147.24,AUG17L721,The Hornchurch Nursing Centre_a,Adults,Adult Services,Adult Community Team,Physical Support,NURSING CARE INCOME
http://opendatacommunities.org/doc/london-borough-council/havering,London Borough of Havering,07/08/2017,2096.00,AUG17L722,The Hornchurch Nursing Centre_a,Adults,Adult Services,Adult Community Team,Physical Support,NURSING HOMES - PRIVATE CONTRACTORS PAYMENT
http://opendatacommunities.org/doc/london-borough-council/havering,London Borough of Havering,07/08/2017,-716.24,AUG17L723,The Hornchurch Nursing Centre_a,Adults,Adult Services,Adult Community Team,Support with Memory & Cognition,RESIDENTIAL CARE INCOME
http://opendatacommunities.org/doc/london-borough-council/havering,London Borough of Havering,07/08/2017,2272.00,AUG17L724,The Hornchurch Nursing Centre_a,Adults,Adult Services,Adult Community Team,Support with Memory & Cognition,RESIDENTIAL PLACEMENTS - PRIVATE CONTRACTORS PAYMENT
http://opendatacommunities.org/doc/london-borough-council/havering,London Borough of Havering,07/08/2017,-1072.00,AUG17L725,The Hornchurch Nursing Centre_a,Adults,Adult Services,Adult Community Team,Support with Memory & Cognition,RESIDENTIAL CARE INCOME
http://opendatacommunities.org/doc/london-borough-council/havering,London Borough of Havering,07/08/2017,2272.00,AUG17L726,The Hornchurch Nursing Centre_a,Adults,Adult Services,Adult Community Team,Support with Memory & Cognition,RESIDENTIAL PLACEMENTS - PRIVATE CONTRACTORS PAYMENT
http://opendatacommunities.org/doc/london-borough-council/havering,London Borough of Havering,07/08/2017,-521.80,AUG17L727,The Hornchurch Nursing Centre_a,Adults,Adult Services,Adult Community Team,Support with Memory & Cognition,RESIDENTIAL CARE INCOME
http://opendatacommunities.org/doc/london-borough-council/havering,London Borough of Havering,07/08/2017,2272.00,AUG17L728,The Hornchurch Nursing Centre_a,Adults,Adult Services,Adult Community Team,Support with Memory & Cognition,RESIDENTIAL PLACEMENTS - PRIVATE CONTRACTORS PAYMENT
http://opendatacommunities.org/doc/london-borough-council/havering,London Borough of Havering,07/08/2017,-784.68,AUG17L729,The Hornchurch Nursing Centre_a,Adults,Adult Services,Adult Community Team,Support with Memory & Cognition,NURSING CARE INCOME
http://opendatacommunities.org/doc/london-borough-council/havering,London Borough of Havering,07/08/2017,2096.00,AUG17L730,The Hornchurch Nursing Centre_a,Adults,Adult Services,Adult Community Team,Support with Memory & Cognition,NURSING HOMES - PRIVATE CONTRACTORS PAYMENT
http://opendatacommunities.org/doc/london-borough-council/havering,London Borough of Havering,07/08/2017,-521.80,AUG17L731,The Hornchurch Nursing Centre_a,Adults,Adult Services,Adult Community Team,Support with Memory & Cognition,NURSING CARE INCOME
http://opendatacommunities.org/doc/london-borough-council/havering,London Borough of Havering,07/08/2017,2096.00,AUG17L732,The Hornchurch Nursing Centre_a,Adults,Adult Services,Adult Community Team,Support with Memory & Cognition,NURSING HOMES - PRIVATE CONTRACTORS PAYMENT
http://opendatacommunities.org/doc/london-borough-council/havering,London Borough of Havering,07/08/2017,-898.92,AUG17L733,The Hornchurch Nursing Centre_a,Adults,Adult Services,Adult Community Team,Support with Memory & Cognition,RESIDENTIAL CARE INCOME
http://opendatacommunities.org/doc/london-borough-council/havering,London Borough of Havering,07/08/2017,2272.00,AUG17L734,The Hornchurch Nursing Centre_a,Adults,Adult Services,Adult Community Team,Support with Memory & Cognition,RESIDENTIAL PLACEMENTS - PRIVATE CONTRACTORS PAYMENT
http://opendatacommunities.org/doc/london-borough-council/havering,London Borough of Havering,07/08/2017,-815.20,AUG17L735,The Hornchurch Nursing Centre_a,Adults,Adult Services,Adult Community Team,Physical Support,NURSING CARE INCOME
http://opendatacommunities.org/doc/london-borough-council/havering,London Borough of Havering,07/08/2017,2032.00,AUG17L736,The Hornchurch Nursing Centre_a,Adults,Adult Services,Adult Community Team,Physical Support,NURSING HOMES - PRIVATE CONTRACTORS PAYMENT
http://opendatacommunities.org/doc/london-borough-council/havering,London Borough of Havering,23/08/2017,2145.89,AUG17L737,The Hornchurch Nursing Centre_a,Adults,Adult Services,Adult Community Team,Support with Memory & Cognition,NURSING HOMES - PRIVATE CONTRACTORS PAYMENT
http://opendatacommunities.org/doc/london-borough-council/havering,London Borough of Havering,07/08/2017,2880.00,AUG17L738,Brandon House_a,Adults,Mental Health,Mental Health - Non Section 75,Mental Health Support,RESIDENTIAL PLACEMENTS - PRIVATE CONTRACTORS PAYMENT
http://opendatacommunities.org/doc/london-borough-council/havering,London Borough of Havering,07/08/2017,720.00,AUG17L739,Brandon House_a,Adults,Mental Health,Mental Health - Non Section 75,Mental Health Support,RESIDENTIAL PLACEMENTS - PRIVATE CONTRACTORS PAYMENT
http://opendatacommunities.org/doc/london-borough-council/havering,London Borough of Havering,07/08/2017,-537.80,AUG17L740,Brandon House_a,Adults,Mental Health,Mental Health - Non Section 75,Mental Health Support,RESIDENTIAL CARE INCOME
http://opendatacommunities.org/doc/london-borough-council/havering,London Borough of Havering,07/08/2017,1880.52,AUG17L741,Brandon House_a,Adults,Mental Health,Mental Health - Non Section 75,Mental Health Support,RESIDENTIAL PLACEMENTS - PRIVATE CONTRACTORS PAYMENT
http://opendatacommunities.org/doc/london-borough-council/havering,London Borough of Havering,07/08/2017,1872.16,AUG17L742,Brandon House_a,Adults,Mental Health,Mental Health - Non Section 75,Mental Health Support,RESIDENTIAL PLACEMENTS - PRIVATE CONTRACTORS PAYMENT
http://opendatacommunities.org/doc/london-borough-council/havering,London Borough of Havering,07/08/2017,-572.28,AUG17L752,Larchwood Care Homes (South) Ltd - Brookes House_a,Adults,Adult Services,Adult Community Team,Physical Support,RESIDENTIAL CARE INCOME
http://opendatacommunities.org/doc/london-borough-council/havering,London Borough of Havering,07/08/2017,1886.04,AUG17L753,Larchwood Care Homes (South) Ltd - Brookes House_a,Adults,Adult Services,Adult Community Team,Physical Support,RESIDENTIAL PLACEMENTS - PRIVATE CONTRACTORS PAYMENT
http://opendatacommunities.org/doc/london-borough-council/havering,London Borough of Havering,07/08/2017,-673.71,AUG17L754,Highfield Care Homes Ltd t/a Romford Grange Care Home_a,Adults,Adult Services,Adult Community Team,Support with Memory & Cognition,NURSING HOMES - PRIVATE CONTRACTORS PAYMENT
http://opendatacommunities.org/doc/london-borough-council/havering,London Borough of Havering,07/08/2017,-673.71,AUG17L755,Highfield Care Homes Ltd t/a Romford Grange Care Home_a,Adults,Adult Services,Adult Community Team,Support with Memory & Cognition,NURSING HOMES - PRIVATE CONTRACTORS PAYMENT
http://opendatacommunities.org/doc/london-borough-council/havering,London Borough of Havering,07/08/2017,-2155.52,AUG17L756,Highfield Care Homes Ltd t/a Romford Grange Care Home_a,Adults,Adult Services,Adult Community Team,Support with Memory & Cognition,NURSING CARE INCOME
http://opendatacommunities.org/doc/london-borough-council/havering,London Borough of Havering,07/08/2017,8384.00,AUG17L757,Highfield Care Homes Ltd t/a Romford Grange Care Home_a,Adults,Adult Services,Adult Community Team,Support with Memory & Cognition,NURSING HOMES - PRIVATE CONTRACTORS PAYMENT
http://opendatacommunities.org/doc/london-borough-council/havering,London Borough of Havering,07/08/2017,-3047.84,AUG17L758,Highfield Care Homes Ltd t/a Romford Grange Care Home_a,Adults,Adult Services,Adult Community Team,Support with Memory & Cognition,NURSING CARE INCOME
http://opendatacommunities.org/doc/london-borough-council/havering,London Borough of Havering,07/08/2017,8384.00,AUG17L759,Highfield Care Homes Ltd t/a Romford Grange Care Home_a,Adults,Adult Services,Adult Community Team,Support with Memory & Cognition,NURSING HOMES - PRIVATE CONTRACTORS PAYMENT
http://opendatacommunities.org/doc/london-borough-council/havering,London Borough of Havering,07/08/2017,1217.10,AUG17L760,Highfield Care Homes Ltd t/a Romford Grange Care Home_a,Adults,Adult Services,Adult Community Team,Physical Support,RESPITE CARE - PRIVATE CONTRACTORS PAYMENT
http://opendatacommunities.org/doc/london-borough-council/havering,London Borough of Havering,07/08/2017,-7635.43,AUG17L761,Highfield Care Homes Ltd t/a Romford Grange Care Home_a,Adults,Adult Services,Adult Community Team,Support with Memory & Cognition,NURSING HOMES - PRIVATE CONTRACTORS PAYMENT
http://opendatacommunities.org/doc/london-borough-council/havering,London Borough of Havering,07/08/2017,2027.32,AUG17L762,Highfield Care Homes Ltd t/a Romford Grange Care Home_a,Adults,Adult Services,Adult Community Team,Support with Memory & Cognition,NURSING CARE INCOME
http://opendatacommunities.org/doc/london-borough-council/havering,London Borough of Havering,07/08/2017,-7635.43,AUG17L763,Highfield Care Homes Ltd t/a Romford Grange Care Home_a,Adults,Adult Services,Adult Community Team,Support with Memory & Cognition,NURSING HOMES - PRIVATE CONTRACTORS PAYMENT
http://opendatacommunities.org/doc/london-borough-council/havering,London Borough of Havering,07/08/2017,2851.63,AUG17L764,Highfield Care Homes Ltd t/a Romford Grange Care Home_a,Adults,Adult Services,Adult Community Team,Support with Memory & Cognition,NURSING CARE INCOME
http://opendatacommunities.org/doc/london-borough-council/havering,London Borough of Havering,07/08/2017,2100.00,AUG17L765,Highfield Care Homes Ltd t/a Romford Grange Care Home_a,Adults,Adult Services,Learning Disabilities,Learning Disability Support,NURSING HOMES - PRIVATE CONTRACTORS PAYMENT
http://opendatacommunities.org/doc/london-borough-council/havering,London Borough of Havering,07/08/2017,1886.04,AUG17L766,Highfield Care Homes Ltd t/a Romford Grange Care Home_a,Adults,Adult Services,Adult Community Team,Physical Support,RESIDENTIAL PLACEMENTS - PRIVATE CONTRACTORS PAYMENT
http://opendatacommunities.org/doc/london-borough-council/havering,London Borough of Havering,07/08/2017,2024.00,AUG17L767,Highfield Care Homes Ltd t/a Romford Grange Care Home_a,Adults,Adult Services,Adult Community Team,Physical Support,RESIDENTIAL PLACEMENTS - PRIVATE CONTRACTORS PAYMENT
http://opendatacommunities.org/doc/london-borough-council/havering,London Borough of Havering,07/08/2017,2032.00,AUG17L768,Highfield Care Homes Ltd t/a Romford Grange Care Home_a,Adults,Adult Services,Adult Community Team,Physical Support,NURSING HOMES - PRIVATE CONTRACTORS PAYMENT
http://opendatacommunities.org/doc/london-borough-council/havering,London Borough of Havering,07/08/2017,2032.00,AUG17L769,Highfield Care Homes Ltd t/a Romford Grange Care Home_a,Adults,Adult Services,Adult Community Team,Physical Support,NURSING HOMES - PRIVATE CONTRACTORS PAYMENT
http://opendatacommunities.org/doc/london-borough-council/havering,London Borough of Havering,07/08/2017,2096.00,AUG17L770,Highfield Care Homes Ltd t/a Romford Grange Care Home_a,Adults,Adult Services,Adult Community Team,Support with Memory & Cognition,NURSING HOMES - PRIVATE CONTRACTORS PAYMENT
http://opendatacommunities.org/doc/london-borough-council/havering,London Borough of Havering,07/08/2017,2032.00,AUG17L771,Highfield Care Homes Ltd t/a Romford Grange Care Home_a,Adults,Adult Services,Adult Community Team,Physical Support,NURSING HOMES - PRIVATE CONTRACTORS PAYMENT
http://opendatacommunities.org/doc/london-borough-council/havering,London Borough of Havering,07/08/2017,2032.00,AUG17L772,Highfield Care Homes Ltd t/a Romford Grange Care Home_a,Adults,Adult Services,Adult Community Team,Physical Support,NURSING HOMES - PRIVATE CONTRACTORS PAYMENT
http://opendatacommunities.org/doc/london-borough-council/havering,London Borough of Havering,07/08/2017,2096.00,AUG17L773,Highfield Care Homes Ltd t/a Romford Grange Care Home_a,Adults,Adult Services,Adult Community Team,Support with Memory & Cognition,NURSING HOMES - PRIVATE CONTRACTORS PAYMENT
http://opendatacommunities.org/doc/london-borough-council/havering,London Borough of Havering,07/08/2017,2272.00,AUG17L774,Highfield Care Homes Ltd t/a Romford Grange Care Home_a,Adults,Adult Services,Adult Community Team,Support with Memory & Cognition,RESIDENTIAL PLACEMENTS - PRIVATE CONTRACTORS PAYMENT
http://opendatacommunities.org/doc/london-borough-council/havering,London Borough of Havering,07/08/2017,2272.00,AUG17L775,Highfield Care Homes Ltd t/a Romford Grange Care Home_a,Adults,Adult Services,Adult Community Team,Support with Memory & Cognition,RESIDENTIAL PLACEMENTS - PRIVATE CONTRACTORS PAYMENT
http://opendatacommunities.org/doc/london-borough-council/havering,London Borough of Havering,07/08/2017,2024.00,AUG17L776,Highfield Care Homes Ltd t/a Romford Grange Care Home_a,Adults,Adult Services,Adult Community Team,Physical Support,RESIDENTIAL PLACEMENTS - PRIVATE CONTRACTORS PAYMENT
http://opendatacommunities.org/doc/london-borough-council/havering,London Borough of Havering,07/08/2017,2271.92,AUG17L777,Highfield Care Homes Ltd t/a Romford Grange Care Home_a,Adults,Adult Services,Adult Community Team,Physical Support,RESPITE CARE - PRIVATE CONTRACTORS PAYMENT
http://opendatacommunities.org/doc/london-borough-council/havering,London Borough of Havering,07/08/2017,-537.80,AUG17L778,Highfield Care Homes Ltd t/a Romford Grange Care Home_a,Adults,Adult Services,Adult Community Team,Physical Support,NURSING CARE INCOME
http://opendatacommunities.org/doc/london-borough-council/havering,London Borough of Havering,07/08/2017,2032.00,AUG17L779,Highfield Care Homes Ltd t/a Romford Grange Care Home_a,Adults,Adult Services,Adult Community Team,Physical Support,NURSING HOMES - PRIVATE CONTRACTORS PAYMENT
http://opendatacommunities.org/doc/london-borough-council/havering,London Borough of Havering,07/08/2017,-550.68,AUG17L780,Highfield Care Homes Ltd t/a Romford Grange Care Home_a,Adults,Adult Services,Learning Disabilities,Sensory Support,NURSING CARE INCOME
http://opendatacommunities.org/doc/london-borough-council/havering,London Borough of Havering,07/08/2017,2096.00,AUG17L781,Highfield Care Homes Ltd t/a Romford Grange Care Home_a,Adults,Adult Services,Learning Disabilities,Sensory Support,NURSING HOMES - PRIVATE CONTRACTORS PAYMENT
http://opendatacommunities.org/doc/london-borough-council/havering,London Borough of Havering,07/08/2017,-537.80,AUG17L782,Highfield Care Homes Ltd t/a Romford Grange Care Home_a,Adults,Adult Services,Adult Community Team,Support with Memory & Cognition,NURSING CARE INCOME
http://opendatacommunities.org/doc/london-borough-council/havering,London Borough of Havering,07/08/2017,2096.00,AUG17L783,Highfield Care Homes Ltd t/a Romford Grange Care Home_a,Adults,Adult Services,Adult Community Team,Support with Memory & Cognition,NURSING HOMES - PRIVATE CONTRACTORS PAYMENT
http://opendatacommunities.org/doc/london-borough-council/havering,London Borough of Havering,07/08/2017,-782.80,AUG17L784,Highfield Care Homes Ltd t/a Romford Grange Care Home_a,Adults,Adult Services,Adult Community Team,Support with Memory & Cognition,NURSING CARE INCOME
http://opendatacommunities.org/doc/london-borough-council/havering,London Borough of Havering,07/08/2017,2096.00,AUG17L785,Highfield Care Homes Ltd t/a Romford Grange Care Home_a,Adults,Adult Services,Adult Community Team,Support with Memory & Cognition,NURSING HOMES - PRIVATE CONTRACTORS PAYMENT
http://opendatacommunities.org/doc/london-borough-council/havering,London Borough of Havering,07/08/2017,-556.52,AUG17L786,Highfield Care Homes Ltd t/a Romford Grange Care Home_a,Adults,Adult Services,Adult Community Team,Support with Memory & Cognition,NURSING CARE INCOME
http://opendatacommunities.org/doc/london-borough-council/havering,London Borough of Havering,07/08/2017,2096.00,AUG17L787,Highfield Care Homes Ltd t/a Romford Grange Care Home_a,Adults,Adult Services,Adult Community Team,Support with Memory & Cognition,NURSING HOMES - PRIVATE CONTRACTORS PAYMENT
http://opendatacommunities.org/doc/london-borough-council/havering,London Borough of Havering,07/08/2017,4323.60,AUG17L809,Ashdene House Ltd_a,Adults,Adult Services,Learning Disabilities,Learning Disability Support,RESIDENTIAL PLACEMENTS - PRIVATE CONTRACTORS PAYMENT
http://opendatacommunities.org/doc/london-borough-council/havering,London Borough of Havering,09/08/2017,1385.69,AUG17L812,Care-Away Ltd T/A Care Support_a,Adults,Adult Services,Strategy and Commissioning,Adult Community Commissioning,PRIVATE CONTRACTORS PAYMENT - OTHER
http://opendatacommunities.org/doc/london-borough-council/havering,London Borough of Havering,16/08/2017,657.36,AUG17L813,Care-Away Ltd T/A Care Support_a,Adults,Adult Services,Strategy and Commissioning,Adult Community Commissioning,PRIVATE CONTRACTORS PAYMENT - OTHER
http://opendatacommunities.org/doc/london-borough-council/havering,London Borough of Havering,16/08/2017,517.86,AUG17L814,Care-Away Ltd T/A Care Support_a,Adults,Adult Services,Strategy and Commissioning,Adult Community Commissioning,PRIVATE CONTRACTORS PAYMENT - OTHER
http://opendatacommunities.org/doc/london-borough-council/havering,London Borough of Havering,16/08/2017,691.04,AUG17L815,Care-Away Ltd T/A Care Support_a,Adults,Adult Services,Strategy and Commissioning,Adult Community Commissioning,PRIVATE CONTRACTORS PAYMENT - OTHER
http://opendatacommunities.org/doc/london-borough-council/havering,London Borough of Havering,16/08/2017,1382.08,AUG17L816,Care-Away Ltd T/A Care Support_a,Adults,Adult Services,Strategy and Commissioning,Adult Community Commissioning,PRIVATE CONTRACTORS PAYMENT - OTHER
http://opendatacommunities.org/doc/london-borough-council/havering,London Borough of Havering,16/08/2017,406.89,AUG17L817,Care-Away Ltd T/A Care Support_a,Adults,Adult Services,Strategy and Commissioning,Adult Community Commissioning,PRIVATE CONTRACTORS PAYMENT - OTHER
http://opendatacommunities.org/doc/london-borough-council/havering,London Borough of Havering,16/08/2017,691.04,AUG17L818,Care-Away Ltd T/A Care Support_a,Adults,Adult Services,Strategy and Commissioning,Adult Community Commissioning,PRIVATE CONTRACTORS PAYMENT - OTHER
http://opendatacommunities.org/doc/london-borough-council/havering,London Borough of Havering,16/08/2017,690.48,AUG17L819,Care-Away Ltd T/A Care Support_a,Adults,Adult Services,Strategy and Commissioning,Adult Community Commissioning,PRIVATE CONTRACTORS PAYMENT - OTHER
http://opendatacommunities.org/doc/london-borough-council/havering,London Borough of Havering,16/08/2017,604.17,AUG17L820,Care-Away Ltd T/A Care Support_a,Adults,Adult Services,Strategy and Commissioning,Adult Community Commissioning,PRIVATE CONTRACTORS PAYMENT - OTHER
http://opendatacommunities.org/doc/london-borough-council/havering,London Borough of Havering,16/08/2017,691.04,AUG17L821,Care-Away Ltd T/A Care Support_a,Adults,Adult Services,Strategy and Commissioning,Adult Community Commissioning,PRIVATE CONTRACTORS PAYMENT - OTHER
http://opendatacommunities.org/doc/london-borough-council/havering,London Borough of Havering,16/08/2017,511.70,AUG17L822,Care-Away Ltd T/A Care Support_a,Adults,Adult Services,Strategy and Commissioning,Adult Community Commissioning,PRIVATE CONTRACTORS PAYMENT - OTHER
http://opendatacommunities.org/doc/london-borough-council/havering,London Borough of Havering,16/08/2017,690.48,AUG17L823,Care-Away Ltd T/A Care Support_a,Adults,Adult Services,Strategy and Commissioning,Adult Community Commissioning,PRIVATE CONTRACTORS PAYMENT - OTHER
http://opendatacommunities.org/doc/london-borough-council/havering,London Borough of Havering,16/08/2017,1380.96,AUG17L824,Care-Away Ltd T/A Care Support_a,Adults,Adult Services,Strategy and Commissioning,Adult Community Commissioning,PRIVATE CONTRACTORS PAYMENT - OTHER
http://opendatacommunities.org/doc/london-borough-council/havering,London Borough of Havering,16/08/2017,690.48,AUG17L825,Care-Away Ltd T/A Care Support_a,Adults,Adult Services,Strategy and Commissioning,Adult Community Commissioning,PRIVATE CONTRACTORS PAYMENT - OTHER
http://opendatacommunities.org/doc/london-borough-council/havering,London Borough of Havering,16/08/2017,4716.54,AUG17L826,Care-Away Ltd T/A Care Support_a,Adults,Adult Services,Strategy and Commissioning,Adult Community Commissioning,PRIVATE CONTRACTORS PAYMENT - OTHER
http://opendatacommunities.org/doc/london-borough-council/havering,London Borough of Havering,16/08/2017,418.32,AUG17L827,Care-Away Ltd T/A Care Support_a,Adults,Adult Services,Strategy and Commissioning,Adult Community Commissioning,PRIVATE CONTRACTORS PAYMENT - OTHER
http://opendatacommunities.org/doc/london-borough-council/havering,London Borough of Havering,16/08/2017,522.91,AUG17L828,Care-Away Ltd T/A Care Support_a,Adults,Adult Services,Strategy and Commissioning,Adult Community Commissioning,PRIVATE CONTRACTORS PAYMENT - OTHER
http://opendatacommunities.org/doc/london-borough-council/havering,London Borough of Havering,16/08/2017,612.54,AUG17L829,Care-Away Ltd T/A Care Support_a,Adults,Adult Services,Strategy and Commissioning,Adult Community Commissioning,PRIVATE CONTRACTORS PAYMENT - OTHER
http://opendatacommunities.org/doc/london-borough-council/havering,London Borough of Havering,16/08/2017,836.64,AUG17L830,Care-Away Ltd T/A Care Support_a,Adults,Adult Services,Strategy and Commissioning,Adult Community Commissioning,PRIVATE CONTRACTORS PAYMENT - OTHER
http://opendatacommunities.org/doc/london-borough-council/havering,London Borough of Havering,16/08/2017,836.64,AUG17L831,Care-Away Ltd T/A Care Support_a,Adults,Adult Services,Strategy and Commissioning,Adult Community Commissioning,PRIVATE CONTRACTORS PAYMENT - OTHER
http://opendatacommunities.org/doc/london-borough-council/havering,London Borough of Havering,16/08/2017,1882.44,AUG17L832,Care-Away Ltd T/A Care Support_a,Adults,Adult Services,Strategy and Commissioning,Adult Community Commissioning,PRIVATE CONTRACTORS PAYMENT - OTHER
http://opendatacommunities.org/doc/london-borough-council/havering,London Borough of Havering,16/08/2017,620.01,AUG17L833,Care-Away Ltd T/A Care Support_a,Adults,Adult Services,Strategy and Commissioning,Adult Community Commissioning,PRIVATE CONTRACTORS PAYMENT - OTHER
http://opendatacommunities.org/doc/london-borough-council/havering,London Borough of Havering,16/08/2017,1673.28,AUG17L834,Care-Away Ltd T/A Care Support_a,Adults,Adult Services,Strategy and Commissioning,Adult Community Commissioning,PRIVATE CONTRACTORS PAYMENT - OTHER
http://opendatacommunities.org/doc/london-borough-council/havering,London Borough of Havering,16/08/2017,1344.60,AUG17L835,Care-Away Ltd T/A Care Support_a,Adults,Adult Services,Strategy and Commissioning,Adult Community Commissioning,PRIVATE CONTRACTORS PAYMENT - OTHER
http://opendatacommunities.org/doc/london-borough-council/havering,London Borough of Havering,16/08/2017,612.55,AUG17L836,Care-Away Ltd T/A Care Support_a,Adults,Adult Services,Strategy and Commissioning,Adult Community Commissioning,PRIVATE CONTRACTORS PAYMENT - OTHER
http://opendatacommunities.org/doc/london-borough-council/havering,London Borough of Havering,16/08/2017,657.36,AUG17L837,Care-Away Ltd T/A Care Support_a,Adults,Adult Services,Strategy and Commissioning,Adult Community Commissioning,PRIVATE CONTRACTORS PAYMENT - OTHER
http://opendatacommunities.org/doc/london-borough-council/havering,London Borough of Havering,16/08/2017,836.64,AUG17L838,Care-Away Ltd T/A Care Support_a,Adults,Adult Services,Strategy and Commissioning,Adult Community Commissioning,PRIVATE CONTRACTORS PAYMENT - OTHER
http://opendatacommunities.org/doc/london-borough-council/havering,London Borough of Havering,16/08/2017,627.48,AUG17L839,Care-Away Ltd T/A Care Support_a,Adults,Adult Services,Strategy and Commissioning,Adult Community Commissioning,PRIVATE CONTRACTORS PAYMENT - OTHER
http://opendatacommunities.org/doc/london-borough-council/havering,London Borough of Havering,16/08/2017,1673.28,AUG17L840,Care-Away Ltd T/A Care Support_a,Adults,Adult Services,Strategy and Commissioning,Adult Community Commissioning,PRIVATE CONTRACTORS PAYMENT - OTHER
http://opendatacommunities.org/doc/london-borough-council/havering,London Borough of Havering,16/08/2017,418.32,AUG17L841,Care-Away Ltd T/A Care Support_a,Adults,Adult Services,Strategy and Commissioning,Adult Community Commissioning,PRIVATE CONTRACTORS PAYMENT - OTHER
http://opendatacommunities.org/doc/london-borough-council/havering,London Borough of Havering,16/08/2017,1060.74,AUG17L842,Care-Away Ltd T/A Care Support_a,Adults,Adult Services,Strategy and Commissioning,Adult Community Commissioning,PRIVATE CONTRACTORS PAYMENT - OTHER
http://opendatacommunities.org/doc/london-borough-council/havering,London Borough of Havering,16/08/2017,537.84,AUG17L843,Care-Away Ltd T/A Care Support_a,Adults,Adult Services,Strategy and Commissioning,Adult Community Commissioning,PRIVATE CONTRACTORS PAYMENT - OTHER
http://opendatacommunities.org/doc/london-borough-council/havering,London Borough of Havering,16/08/2017,1374.48,AUG17L844,Care-Away Ltd T/A Care Support_a,Adults,Adult Services,Strategy and Commissioning,Adult Community Commissioning,PRIVATE CONTRACTORS PAYMENT - OTHER
http://opendatacommunities.org/doc/london-borough-council/havering,London Borough of Havering,16/08/2017,829.17,AUG17L845,Care-Away Ltd T/A Care Support_a,Adults,Adult Services,Strategy and Commissioning,Adult Community Commissioning,PRIVATE CONTRACTORS PAYMENT - OTHER
http://opendatacommunities.org/doc/london-borough-council/havering,London Borough of Havering,16/08/2017,515.43,AUG17L846,Care-Away Ltd T/A Care Support_a,Adults,Adult Services,Strategy and Commissioning,Adult Community Commissioning,PRIVATE CONTRACTORS PAYMENT - OTHER
http://opendatacommunities.org/doc/london-borough-council/havering,London Borough of Havering,16/08/2017,418.32,AUG17L847,Care-Away Ltd T/A Care Support_a,Adults,Adult Services,Strategy and Commissioning,Adult Community Commissioning,PRIVATE CONTRACTORS PAYMENT - OTHER
http://opendatacommunities.org/doc/london-borough-council/havering,London Borough of Havering,16/08/2017,836.64,AUG17L848,Care-Away Ltd T/A Care Support_a,Adults,Adult Services,Strategy and Commissioning,Adult Community Commissioning,PRIVATE CONTRACTORS PAYMENT - OTHER
http://opendatacommunities.org/doc/london-borough-council/havering,London Borough of Havering,16/08/2017,660.35,AUG17L849,Care-Away Ltd T/A Care Support_a,Adults,Adult Services,Strategy and Commissioning,Adult Community Commissioning,PRIVATE CONTRACTORS PAYMENT - OTHER
http://opendatacommunities.org/doc/london-borough-council/havering,London Borough of Havering,16/08/2017,1456.65,AUG17L850,Care-Away Ltd T/A Care Support_a,Adults,Adult Services,Strategy and Commissioning,Adult Community Commissioning,PRIVATE CONTRACTORS PAYMENT - OTHER
http://opendatacommunities.org/doc/london-borough-council/havering,London Borough of Havering,16/08/2017,1673.28,AUG17L851,Care-Away Ltd T/A Care Support_a,Adults,Adult Services,Strategy and Commissioning,Adult Community Commissioning,PRIVATE CONTRACTORS PAYMENT - OTHER
http://opendatacommunities.org/doc/london-borough-council/havering,London Borough of Havering,16/08/2017,418.32,AUG17L852,Care-Away Ltd T/A Care Support_a,Adults,Adult Services,Strategy and Commissioning,Adult Community Commissioning,PRIVATE CONTRACTORS PAYMENT - OTHER
http://opendatacommunities.org/doc/london-borough-council/havering,London Borough of Havering,16/08/2017,627.48,AUG17L853,Care-Away Ltd T/A Care Support_a,Adults,Adult Services,Strategy and Commissioning,Adult Community Commissioning,PRIVATE CONTRACTORS PAYMENT - OTHER
http://opendatacommunities.org/doc/london-borough-council/havering,London Borough of Havering,16/08/2017,717.12,AUG17L854,Care-Away Ltd T/A Care Support_a,Adults,Adult Services,Strategy and Commissioning,Adult Community Commissioning,PRIVATE CONTRACTORS PAYMENT - OTHER
http://opendatacommunities.org/doc/london-borough-council/havering,London Borough of Havering,16/08/2017,1673.28,AUG17L855,Care-Away Ltd T/A Care Support_a,Adults,Adult Services,Strategy and Commissioning,Adult Community Commissioning,PRIVATE CONTRACTORS PAYMENT - OTHER
http://opendatacommunities.org/doc/london-borough-council/havering,London Borough of Havering,16/08/2017,687.24,AUG17L856,Care-Away Ltd T/A Care Support_a,Adults,Adult Services,Strategy and Commissioning,Adult Community Commissioning,PRIVATE CONTRACTORS PAYMENT - OTHER
http://opendatacommunities.org/doc/london-borough-council/havering,London Borough of Havering,16/08/2017,3149.64,AUG17L857,Care-Away Ltd T/A Care Support_a,Adults,Adult Services,Strategy and Commissioning,Adult Community Commissioning,PRIVATE CONTRACTORS PAYMENT - OTHER
http://opendatacommunities.org/doc/london-borough-council/havering,London Borough of Havering,23/08/2017,1079.42,AUG17L858,Care-Away Ltd T/A Care Support_a,Adults,Adult Services,Strategy and Commissioning,Adult Community Commissioning,PRIVATE CONTRACTORS PAYMENT - OTHER
http://opendatacommunities.org/doc/london-borough-council/havering,London Borough of Havering,23/08/2017,687.24,AUG17L859,Care-Away Ltd T/A Care Support_a,Adults,Adult Services,Strategy and Commissioning,Adult Community Commissioning,PRIVATE CONTRACTORS PAYMENT - OTHER
http://opendatacommunities.org/doc/london-borough-council/havering,London Borough of Havering,23/08/2017,403.38,AUG17L860,Care-Away Ltd T/A Care Support_a,Adults,Adult Services,Strategy and Commissioning,Adult Community Commissioning,PRIVATE CONTRACTORS PAYMENT - OTHER
http://opendatacommunities.org/doc/london-borough-council/havering,London Borough of Havering,23/08/2017,817.97,AUG17L861,Care-Away Ltd T/A Care Support_a,Adults,Adult Services,Strategy and Commissioning,Adult Community Commissioning,PRIVATE CONTRACTORS PAYMENT - OTHER
http://opendatacommunities.org/doc/london-borough-council/havering,London Borough of Havering,23/08/2017,451.94,AUG17L862,Care-Away Ltd T/A Care Support_a,Adults,Adult Services,Strategy and Commissioning,Adult Community Commissioning,PRIVATE CONTRACTORS PAYMENT - OTHER
http://opendatacommunities.org/doc/london-borough-council/havering,London Borough of Havering,23/08/2017,519.17,AUG17L863,Care-Away Ltd T/A Care Support_a,Adults,Adult Services,Strategy and Commissioning,Adult Community Commissioning,PRIVATE CONTRACTORS PAYMENT - OTHER
http://opendatacommunities.org/doc/london-borough-council/havering,London Borough of Havering,23/08/2017,511.70,AUG17L864,Care-Away Ltd T/A Care Support_a,Adults,Adult Services,Strategy and Commissioning,Adult Community Commissioning,PRIVATE CONTRACTORS PAYMENT - OTHER
http://opendatacommunities.org/doc/london-borough-council/havering,London Borough of Havering,23/08/2017,1927.26,AUG17L865,Care-Away Ltd T/A Care Support_a,Adults,Adult Services,Strategy and Commissioning,Adult Community Commissioning,PRIVATE CONTRACTORS PAYMENT - OTHER
http://opendatacommunities.org/doc/london-borough-council/havering,London Borough of Havering,23/08/2017,1045.80,AUG17L866,Care-Away Ltd T/A Care Support_a,Adults,Adult Services,Strategy and Commissioning,Adult Community Commissioning,PRIVATE CONTRACTORS PAYMENT - OTHER
http://opendatacommunities.org/doc/london-borough-council/havering,London Borough of Havering,23/08/2017,1505.21,AUG17L867,Care-Away Ltd T/A Care Support_a,Adults,Adult Services,Strategy and Commissioning,Adult Community Commissioning,PRIVATE CONTRACTORS PAYMENT - OTHER
http://opendatacommunities.org/doc/london-borough-council/havering,London Borough of Havering,23/08/2017,2468.84,AUG17L868,Care-Away Ltd T/A Care Support_a,Adults,Adult Services,Strategy and Commissioning,Adult Community Commissioning,PRIVATE CONTRACTORS PAYMENT - OTHER
http://opendatacommunities.org/doc/london-borough-council/havering,London Borough of Havering,23/08/2017,2054.25,AUG17L869,Care-Away Ltd T/A Care Support_a,Adults,Adult Services,Strategy and Commissioning,Adult Community Commissioning,PRIVATE CONTRACTORS PAYMENT - OTHER
http://opendatacommunities.org/doc/london-borough-council/havering,London Borough of Havering,23/08/2017,627.48,AUG17L870,Care-Away Ltd T/A Care Support_a,Adults,Adult Services,Strategy and Commissioning,Adult Community Commissioning,PRIVATE CONTRACTORS PAYMENT - OTHER
http://opendatacommunities.org/doc/london-borough-council/havering,London Borough of Havering,23/08/2017,1150.38,AUG17L871,Care-Away Ltd T/A Care Support_a,Adults,Adult Services,Strategy and Commissioning,Adult Community Commissioning,PRIVATE CONTRACTORS PAYMENT - OTHER
http://opendatacommunities.org/doc/london-borough-council/havering,London Borough of Havering,23/08/2017,657.36,AUG17L872,Care-Away Ltd T/A Care Support_a,Adults,Adult Services,Strategy and Commissioning,Adult Community Commissioning,PRIVATE CONTRACTORS PAYMENT - OTHER
http://opendatacommunities.org/doc/london-borough-council/havering,London Borough of Havering,23/08/2017,463.14,AUG17L873,Care-Away Ltd T/A Care Support_a,Adults,Adult Services,Strategy and Commissioning,Adult Community Commissioning,PRIVATE CONTRACTORS PAYMENT - OTHER
http://opendatacommunities.org/doc/london-borough-council/havering,London Borough of Havering,23/08/2017,941.23,AUG17L874,Care-Away Ltd T/A Care Support_a,Adults,Adult Services,Strategy and Commissioning,Adult Community Commissioning,PRIVATE CONTRACTORS PAYMENT - OTHER
http://opendatacommunities.org/doc/london-borough-council/havering,London Borough of Havering,23/08/2017,478.08,AUG17L875,Care-Away Ltd T/A Care Support_a,Adults,Adult Services,Strategy and Commissioning,Adult Community Commissioning,PRIVATE CONTRACTORS PAYMENT - OTHER
http://opendatacommunities.org/doc/london-borough-council/havering,London Borough of Havering,23/08/2017,2102.81,AUG17L876,Care-Away Ltd T/A Care Support_a,Adults,Adult Services,Strategy and Commissioning,Adult Community Commissioning,PRIVATE CONTRACTORS PAYMENT - OTHER
http://opendatacommunities.org/doc/london-borough-council/havering,London Borough of Havering,23/08/2017,836.64,AUG17L877,Care-Away Ltd T/A Care Support_a,Adults,Adult Services,Strategy and Commissioning,Adult Community Commissioning,PRIVATE CONTRACTORS PAYMENT - OTHER
http://opendatacommunities.org/doc/london-borough-council/havering,London Borough of Havering,23/08/2017,634.95,AUG17L878,Care-Away Ltd T/A Care Support_a,Adults,Adult Services,Strategy and Commissioning,Adult Community Commissioning,PRIVATE CONTRACTORS PAYMENT - OTHER
http://opendatacommunities.org/doc/london-borough-council/havering,London Borough of Havering,23/08/2017,418.32,AUG17L879,Care-Away Ltd T/A Care Support_a,Adults,Adult Services,Strategy and Commissioning,Adult Community Commissioning,PRIVATE CONTRACTORS PAYMENT - OTHER
http://opendatacommunities.org/doc/london-borough-council/havering,London Borough of Havering,23/08/2017,941.22,AUG17L880,Care-Away Ltd T/A Care Support_a,Adults,Adult Services,Strategy and Commissioning,Adult Community Commissioning,PRIVATE CONTRACTORS PAYMENT - OTHER
http://opendatacommunities.org/doc/london-borough-council/havering,London Borough of Havering,23/08/2017,657.36,AUG17L881,Care-Away Ltd T/A Care Support_a,Adults,Adult Services,Strategy and Commissioning,Adult Community Commissioning,PRIVATE CONTRACTORS PAYMENT - OTHER
http://opendatacommunities.org/doc/london-borough-council/havering,London Borough of Havering,23/08/2017,418.32,AUG17L882,Care-Away Ltd T/A Care Support_a,Adults,Adult Services,Strategy and Commissioning,Adult Community Commissioning,PRIVATE CONTRACTORS PAYMENT - OTHER
http://opendatacommunities.org/doc/london-borough-council/havering,London Borough of Havering,23/08/2017,836.64,AUG17L883,Care-Away Ltd T/A Care Support_a,Adults,Adult Services,Strategy and Commissioning,Adult Community Commissioning,PRIVATE CONTRACTORS PAYMENT - OTHER
http://opendatacommunities.org/doc/london-borough-council/havering,London Borough of Havering,23/08/2017,2013.17,AUG17L884,Care-Away Ltd T/A Care Support_a,Adults,Adult Services,Strategy and Commissioning,Adult Community Commissioning,PRIVATE CONTRACTORS PAYMENT - OTHER
http://opendatacommunities.org/doc/london-borough-council/havering,London Borough of Havering,23/08/2017,2044.99,AUG17L885,Care-Away Ltd T/A Care Support_a,Adults,Adult Services,Strategy and Commissioning,Adult Community Commissioning,PRIVATE CONTRACTORS PAYMENT - OTHER
http://opendatacommunities.org/doc/london-borough-council/havering,London Borough of Havering,23/08/2017,1294.10,AUG17L886,Care-Away Ltd T/A Care Support_a,Adults,Adult Services,Strategy and Commissioning,Adult Community Commissioning,PRIVATE CONTRACTORS PAYMENT - OTHER
http://opendatacommunities.org/doc/london-borough-council/havering,London Borough of Havering,23/08/2017,556.52,AUG17L887,Care-Away Ltd T/A Care Support_a,Adults,Adult Services,Strategy and Commissioning,Adult Community Commissioning,PRIVATE CONTRACTORS PAYMENT - OTHER
http://opendatacommunities.org/doc/london-borough-council/havering,London Borough of Havering,23/08/2017,784.35,AUG17L888,Care-Away Ltd T/A Care Support_a,Adults,Adult Services,Strategy and Commissioning,Adult Community Commissioning,PRIVATE CONTRACTORS PAYMENT - OTHER
http://opendatacommunities.org/doc/london-borough-council/havering,London Borough of Havering,23/08/2017,743.27,AUG17L889,Care-Away Ltd T/A Care Support_a,Adults,Adult Services,Strategy and Commissioning,Adult Community Commissioning,PRIVATE CONTRACTORS PAYMENT - OTHER
http://opendatacommunities.org/doc/london-borough-council/havering,London Borough of Havering,23/08/2017,418.32,AUG17L890,Care-Away Ltd T/A Care Support_a,Adults,Adult Services,Strategy and Commissioning,Adult Community Commissioning,PRIVATE CONTRACTORS PAYMENT - OTHER
http://opendatacommunities.org/doc/london-borough-council/havering,London Borough of Havering,23/08/2017,941.23,AUG17L891,Care-Away Ltd T/A Care Support_a,Adults,Adult Services,Strategy and Commissioning,Adult Community Commissioning,PRIVATE CONTRACTORS PAYMENT - OTHER
http://opendatacommunities.org/doc/london-borough-council/havering,London Borough of Havering,23/08/2017,1154.12,AUG17L892,Care-Away Ltd T/A Care Support_a,Adults,Adult Services,Strategy and Commissioning,Adult Community Commissioning,PRIVATE CONTRACTORS PAYMENT - OTHER
http://opendatacommunities.org/doc/london-borough-council/havering,London Borough of Havering,23/08/2017,627.48,AUG17L893,Care-Away Ltd T/A Care Support_a,Adults,Adult Services,Strategy and Commissioning,Adult Community Commissioning,PRIVATE CONTRACTORS PAYMENT - OTHER
http://opendatacommunities.org/doc/london-borough-council/havering,London Borough of Havering,23/08/2017,930.02,AUG17L894,Care-Away Ltd T/A Care Support_a,Adults,Adult Services,Strategy and Commissioning,Adult Community Commissioning,PRIVATE CONTRACTORS PAYMENT - OTHER
http://opendatacommunities.org/doc/london-borough-council/havering,London Borough of Havering,23/08/2017,724.59,AUG17L895,Care-Away Ltd T/A Care Support_a,Adults,Adult Services,Strategy and Commissioning,Adult Community Commissioning,PRIVATE CONTRACTORS PAYMENT - OTHER
http://opendatacommunities.org/doc/london-borough-council/havering,London Borough of Havering,23/08/2017,9395.48,AUG17L896,Care-Away Ltd T/A Care Support_a,Adults,Adult Services,Strategy and Commissioning,Adult Community Commissioning,PRIVATE CONTRACTORS PAYMENT - OTHER
http://opendatacommunities.org/doc/london-borough-council/havering,London Borough of Havering,23/08/2017,847.85,AUG17L897,Care-Away Ltd T/A Care Support_a,Adults,Adult Services,Strategy and Commissioning,Adult Community Commissioning,PRIVATE CONTRACTORS PAYMENT - OTHER
http://opendatacommunities.org/doc/london-borough-council/havering,London Borough of Havering,09/08/2017,425.79,AUG17L898,Care-Away Ltd T/A Care Support_a,Adults,Adult Services,Strategy and Commissioning,Adult Community Commissioning,PRIVATE CONTRACTORS PAYMENT - OTHER
http://opendatacommunities.org/doc/london-borough-council/havering,London Borough of Havering,09/08/2017,1105.56,AUG17L899,Care-Away Ltd T/A Care Support_a,Adults,Adult Services,Strategy and Commissioning,Adult Community Commissioning,PRIVATE CONTRACTORS PAYMENT - OTHER
http://opendatacommunities.org/doc/london-borough-council/havering,London Borough of Havering,09/08/2017,687.24,AUG17L900,Care-Away Ltd T/A Care Support_a,Adults,Adult Services,Strategy and Commissioning,Adult Community Commissioning,PRIVATE CONTRACTORS PAYMENT - OTHER
http://opendatacommunities.org/doc/london-borough-council/havering,London Borough of Havering,09/08/2017,634.95,AUG17L901,Care-Away Ltd T/A Care Support_a,Adults,Adult Services,Strategy and Commissioning,Adult Community Commissioning,PRIVATE CONTRACTORS PAYMENT - OTHER
http://opendatacommunities.org/doc/london-borough-council/havering,London Borough of Havering,09/08/2017,649.89,AUG17L902,Care-Away Ltd T/A Care Support_a,Adults,Adult Services,Strategy and Commissioning,Adult Community Commissioning,PRIVATE CONTRACTORS PAYMENT - OTHER
http://opendatacommunities.org/doc/london-borough-council/havering,London Borough of Havering,09/08/2017,433.26,AUG17L903,Care-Away Ltd T/A Care Support_a,Adults,Adult Services,Strategy and Commissioning,Adult Community Commissioning,PRIVATE CONTRACTORS PAYMENT - OTHER
http://opendatacommunities.org/doc/london-borough-council/havering,London Borough of Havering,09/08/2017,522.90,AUG17L904,Care-Away Ltd T/A Care Support_a,Adults,Adult Services,Strategy and Commissioning,Adult Community Commissioning,PRIVATE CONTRACTORS PAYMENT - OTHER
http://opendatacommunities.org/doc/london-borough-council/havering,London Borough of Havering,09/08/2017,2091.60,AUG17L905,Care-Away Ltd T/A Care Support_a,Adults,Adult Services,Strategy and Commissioning,Adult Community Commissioning,PRIVATE CONTRACTORS PAYMENT - OTHER
http://opendatacommunities.org/doc/london-borough-council/havering,London Borough of Havering,09/08/2017,1045.80,AUG17L906,Care-Away Ltd T/A Care Support_a,Adults,Adult Services,Strategy and Commissioning,Adult Community Commissioning,PRIVATE CONTRACTORS PAYMENT - OTHER
http://opendatacommunities.org/doc/london-borough-council/havering,London Borough of Havering,09/08/2017,1523.88,AUG17L907,Care-Away Ltd T/A Care Support_a,Adults,Adult Services,Strategy and Commissioning,Adult Community Commissioning,PRIVATE CONTRACTORS PAYMENT - OTHER
http://opendatacommunities.org/doc/london-borough-council/havering,London Borough of Havering,09/08/2017,2091.60,AUG17L908,Care-Away Ltd T/A Care Support_a,Adults,Adult Services,Strategy and Commissioning,Adult Community Commissioning,PRIVATE CONTRACTORS PAYMENT - OTHER
http://opendatacommunities.org/doc/london-borough-council/havering,London Borough of Havering,09/08/2017,1127.97,AUG17L909,Care-Away Ltd T/A Care Support_a,Adults,Adult Services,Strategy and Commissioning,Adult Community Commissioning,PRIVATE CONTRACTORS PAYMENT - OTHER
http://opendatacommunities.org/doc/london-borough-council/havering,London Borough of Havering,09/08/2017,627.48,AUG17L910,Care-Away Ltd T/A Care Support_a,Adults,Adult Services,Strategy and Commissioning,Adult Community Commissioning,PRIVATE CONTRACTORS PAYMENT - OTHER
http://opendatacommunities.org/doc/london-borough-council/havering,London Borough of Havering,09/08/2017,1135.44,AUG17L911,Care-Away Ltd T/A Care Support_a,Adults,Adult Services,Strategy and Commissioning,Adult Community Commissioning,PRIVATE CONTRACTORS PAYMENT - OTHER
http://opendatacommunities.org/doc/london-borough-council/havering,London Borough of Havering,09/08/2017,627.48,AUG17L912,Care-Away Ltd T/A Care Support_a,Adults,Adult Services,Strategy and Commissioning,Adult Community Commissioning,PRIVATE CONTRACTORS PAYMENT - OTHER
http://opendatacommunities.org/doc/london-borough-council/havering,London Borough of Havering,09/08/2017,836.64,AUG17L913,Care-Away Ltd T/A Care Support_a,Adults,Adult Services,Strategy and Commissioning,Adult Community Commissioning,PRIVATE CONTRACTORS PAYMENT - OTHER
http://opendatacommunities.org/doc/london-borough-council/havering,London Borough of Havering,09/08/2017,941.22,AUG17L914,Care-Away Ltd T/A Care Support_a,Adults,Adult Services,Strategy and Commissioning,Adult Community Commissioning,PRIVATE CONTRACTORS PAYMENT - OTHER
http://opendatacommunities.org/doc/london-borough-council/havering,London Borough of Havering,09/08/2017,478.08,AUG17L915,Care-Away Ltd T/A Care Support_a,Adults,Adult Services,Strategy and Commissioning,Adult Community Commissioning,PRIVATE CONTRACTORS PAYMENT - OTHER
http://opendatacommunities.org/doc/london-borough-council/havering,London Borough of Havering,09/08/2017,2278.35,AUG17L916,Care-Away Ltd T/A Care Support_a,Adults,Adult Services,Strategy and Commissioning,Adult Community Commissioning,PRIVATE CONTRACTORS PAYMENT - OTHER
http://opendatacommunities.org/doc/london-borough-council/havering,London Borough of Havering,09/08/2017,825.44,AUG17L917,Care-Away Ltd T/A Care Support_a,Adults,Adult Services,Strategy and Commissioning,Adult Community Commissioning,PRIVATE CONTRACTORS PAYMENT - OTHER
http://opendatacommunities.org/doc/london-borough-council/havering,London Borough of Havering,09/08/2017,627.48,AUG17L918,Care-Away Ltd T/A Care Support_a,Adults,Adult Services,Strategy and Commissioning,Adult Community Commissioning,PRIVATE CONTRACTORS PAYMENT - OTHER
http://opendatacommunities.org/doc/london-borough-council/havering,London Borough of Havering,09/08/2017,522.90,AUG17L919,Care-Away Ltd T/A Care Support_a,Adults,Adult Services,Strategy and Commissioning,Adult Community Commissioning,PRIVATE CONTRACTORS PAYMENT - OTHER
http://opendatacommunities.org/doc/london-borough-council/havering,London Borough of Havering,09/08/2017,418.32,AUG17L920,Care-Away Ltd T/A Care Support_a,Adults,Adult Services,Strategy and Commissioning,Adult Community Commissioning,PRIVATE CONTRACTORS PAYMENT - OTHER
http://opendatacommunities.org/doc/london-borough-council/havering,London Borough of Havering,09/08/2017,687.24,AUG17L921,Care-Away Ltd T/A Care Support_a,Adults,Adult Services,Strategy and Commissioning,Adult Community Commissioning,PRIVATE CONTRACTORS PAYMENT - OTHER
http://opendatacommunities.org/doc/london-borough-council/havering,London Borough of Havering,09/08/2017,1000.98,AUG17L922,Care-Away Ltd T/A Care Support_a,Adults,Adult Services,Strategy and Commissioning,Adult Community Commissioning,PRIVATE CONTRACTORS PAYMENT - OTHER
http://opendatacommunities.org/doc/london-borough-council/havering,London Borough of Havering,09/08/2017,836.64,AUG17L923,Care-Away Ltd T/A Care Support_a,Adults,Adult Services,Strategy and Commissioning,Adult Community Commissioning,PRIVATE CONTRACTORS PAYMENT - OTHER
http://opendatacommunities.org/doc/london-borough-council/havering,London Borough of Havering,09/08/2017,2267.15,AUG17L924,Care-Away Ltd T/A Care Support_a,Adults,Adult Services,Strategy and Commissioning,Adult Community Commissioning,PRIVATE CONTRACTORS PAYMENT - OTHER
http://opendatacommunities.org/doc/london-borough-council/havering,London Borough of Havering,09/08/2017,2427.75,AUG17L925,Care-Away Ltd T/A Care Support_a,Adults,Adult Services,Strategy and Commissioning,Adult Community Commissioning,PRIVATE CONTRACTORS PAYMENT - OTHER
http://opendatacommunities.org/doc/london-borough-council/havering,London Borough of Havering,09/08/2017,500.49,AUG17L926,Care-Away Ltd T/A Care Support_a,Adults,Adult Services,Strategy and Commissioning,Adult Community Commissioning,PRIVATE CONTRACTORS PAYMENT - OTHER
http://opendatacommunities.org/doc/london-borough-council/havering,London Borough of Havering,09/08/2017,657.36,AUG17L927,Care-Away Ltd T/A Care Support_a,Adults,Adult Services,Strategy and Commissioning,Adult Community Commissioning,PRIVATE CONTRACTORS PAYMENT - OTHER
http://opendatacommunities.org/doc/london-borough-council/havering,London Borough of Havering,09/08/2017,1000.98,AUG17L928,Care-Away Ltd T/A Care Support_a,Adults,Adult Services,Strategy and Commissioning,Adult Community Commissioning,PRIVATE CONTRACTORS PAYMENT - OTHER
http://opendatacommunities.org/doc/london-borough-council/havering,London Borough of Havering,09/08/2017,418.32,AUG17L929,Care-Away Ltd T/A Care Support_a,Adults,Adult Services,Strategy and Commissioning,Adult Community Commissioning,PRIVATE CONTRACTORS PAYMENT - OTHER
http://opendatacommunities.org/doc/london-borough-council/havering,London Borough of Havering,09/08/2017,941.22,AUG17L930,Care-Away Ltd T/A Care Support_a,Adults,Adult Services,Strategy and Commissioning,Adult Community Commissioning,PRIVATE CONTRACTORS PAYMENT - OTHER
http://opendatacommunities.org/doc/london-borough-council/havering,London Borough of Havering,09/08/2017,732.06,AUG17L931,Care-Away Ltd T/A Care Support_a,Adults,Adult Services,Strategy and Commissioning,Adult Community Commissioning,PRIVATE CONTRACTORS PAYMENT - OTHER
http://opendatacommunities.org/doc/london-borough-council/havering,London Borough of Havering,09/08/2017,10560.88,AUG17L932,Care-Away Ltd T/A Care Support_a,Adults,Adult Services,Strategy and Commissioning,Adult Community Commissioning,PRIVATE CONTRACTORS PAYMENT - OTHER
http://opendatacommunities.org/doc/london-borough-council/havering,London Borough of Havering,09/08/2017,481.82,AUG17L933,Care-Away Ltd T/A Care Support_a,Adults,Adult Services,Strategy and Commissioning,Adult Community Commissioning,PRIVATE CONTRACTORS PAYMENT - OTHER
http://opendatacommunities.org/doc/london-borough-council/havering,London Borough of Havering,13/08/2017,4163.25,AUG17L934,Care-Away Ltd T/A Care Support_a,Adults,Adult Services,Strategy and Commissioning,Adult Community Commissioning,PRIVATE CONTRACTORS PAYMENT - OTHER
http://opendatacommunities.org/doc/london-borough-council/havering,London Borough of Havering,13/08/2017,1811.68,AUG17L935,Care-Away Ltd T/A Care Support_a,Adults,Adult Services,Strategy and Commissioning,Adult Community Commissioning,PRIVATE CONTRACTORS PAYMENT - OTHER
http://opendatacommunities.org/doc/london-borough-council/havering,London Borough of Havering,13/08/2017,5878.33,AUG17L939,The Riverside Group Ltd_a,Adults,Adult Services,Strategy and Commissioning,Mental Health Commissioning,PRIVATE CONTRACTORS PAYMENT - OTHER
http://opendatacommunities.org/doc/london-borough-council/havering,London Borough of Havering,13/08/2017,2721.42,AUG17L940,The Riverside Group Ltd_a,Adults,Adult Services,Strategy and Commissioning,Mental Health Commissioning,PRIVATE CONTRACTORS PAYMENT - OTHER
http://opendatacommunities.org/doc/london-borough-council/havering,London Borough of Havering,13/08/2017,14310.83,AUG17L941,The Riverside Group Ltd_a,Adults,Adult Services,Strategy and Commissioning,Mental Health Commissioning,PRIVATE CONTRACTORS PAYMENT - OTHER
http://opendatacommunities.org/doc/london-borough-council/havering,London Borough of Havering,13/08/2017,5625.00,AUG17L942,The Riverside Group Ltd_a,Adults,Adult Services,Strategy and Commissioning,Mental Health Commissioning,PRIVATE CONTRACTORS PAYMENT - OTHER
http://opendatacommunities.org/doc/london-borough-council/havering,London Borough of Havering,07/08/2017,-840.16,AUG17L953,Four Seasons Health Care Ltd - Hopes Green Care Home_a,Adults,Adult Services,Adult Community Team,Physical Support,RESIDENTIAL CARE INCOME
http://opendatacommunities.org/doc/london-borough-council/havering,London Borough of Havering,07/08/2017,1886.04,AUG17L954,Four Seasons Health Care Ltd - Hopes Green Care Home_a,Adults,Adult Services,Adult Community Team,Physical Support,RESIDENTIAL PLACEMENTS - PRIVATE CONTRACTORS PAYMENT
http://opendatacommunities.org/doc/london-borough-council/havering,London Borough of Havering,07/08/2017,660.37,AUG17L955,Four Seasons Health Care Ltd - Hopes Green Care Home_a,Adults,Adult Services,Adult Community Team,Physical Support,RESIDENTIAL PLACEMENTS - PRIVATE CONTRACTORS PAYMENT
http://opendatacommunities.org/doc/london-borough-council/havering,London Borough of Havering,07/08/2017,2650.04,AUG17L956,Beechcourt Care Centre - Bondcare_a,Adults,Adult Services,Adult Community Team,Physical Support,NURSING HOMES - PRIVATE CONTRACTORS PAYMENT
http://opendatacommunities.org/doc/london-borough-council/havering,London Borough of Havering,07/08/2017,2833.60,AUG17L957,Beechcourt Care Centre - Bondcare_a,Adults,Adult Services,Adult Community Team,Physical Support,RESIDENTIAL PLACEMENTS - PRIVATE CONTRACTORS PAYMENT
http://opendatacommunities.org/doc/london-borough-council/havering,London Borough of Havering,07/08/2017,2032.00,AUG17L958,Beechcourt Care Centre - Bondcare_a,Adults,Adult Services,Learning Disabilities,Sensory Support,NURSING HOMES - PRIVATE CONTRACTORS PAYMENT
http://opendatacommunities.org/doc/london-borough-council/havering,London Borough of Havering,07/08/2017,2032.00,AUG17L959,Beechcourt Care Centre - Bondcare_a,Adults,Adult Services,Adult Community Team,Physical Support,NURSING HOMES - PRIVATE CONTRACTORS PAYMENT
http://opendatacommunities.org/doc/london-borough-council/havering,London Borough of Havering,07/08/2017,2156.00,AUG17L960,Beechcourt Care Centre - Bondcare_a,Adults,Adult Services,Adult Community Team,Support with Memory & Cognition,NURSING HOMES - PRIVATE CONTRACTORS PAYMENT
http://opendatacommunities.org/doc/london-borough-council/havering,London Borough of Havering,07/08/2017,2156.00,AUG17L961,Beechcourt Care Centre - Bondcare_a,Adults,Adult Services,Adult Community Team,Physical Support,NURSING HOMES - PRIVATE CONTRACTORS PAYMENT
http://opendatacommunities.org/doc/london-borough-council/havering,London Borough of Havering,07/08/2017,2096.00,AUG17L962,Beechcourt Care Centre - Bondcare_a,Adults,Adult Services,Adult Community Team,Support with Memory & Cognition,NURSING HOMES - PRIVATE CONTRACTORS PAYMENT
http://opendatacommunities.org/doc/london-borough-council/havering,London Borough of Havering,07/08/2017,2032.00,AUG17L963,Beechcourt Care Centre - Bondcare_a,Adults,Adult Services,Adult Community Team,Physical Support,NURSING HOMES - PRIVATE CONTRACTORS PAYMENT
http://opendatacommunities.org/doc/london-borough-council/havering,London Borough of Havering,07/08/2017,2096.00,AUG17L964,Beechcourt Care Centre - Bondcare_a,Adults,Adult Services,Adult Community Team,Support with Memory & Cognition,NURSING HOMES - PRIVATE CONTRACTORS PAYMENT
http://opendatacommunities.org/doc/london-borough-council/havering,London Borough of Havering,07/08/2017,2096.00,AUG17L965,Beechcourt Care Centre - Bondcare_a,Adults,Adult Services,Adult Community Team,Support with Memory & Cognition,NURSING HOMES - PRIVATE CONTRACTORS PAYMENT
http://opendatacommunities.org/doc/london-borough-council/havering,London Borough of Havering,07/08/2017,2096.00,AUG17L966,Beechcourt Care Centre - Bondcare_a,Adults,Adult Services,Adult Community Team,Support with Memory & Cognition,NURSING HOMES - PRIVATE CONTRACTORS PAYMENT
http://opendatacommunities.org/doc/london-borough-council/havering,London Borough of Havering,07/08/2017,2032.00,AUG17L967,Beechcourt Care Centre - Bondcare_a,Adults,Adult Services,Adult Community Team,Physical Support,NURSING HOMES - PRIVATE CONTRACTORS PAYMENT
http://opendatacommunities.org/doc/london-borough-council/havering,London Borough of Havering,07/08/2017,2096.00,AUG17L968,Beechcourt Care Centre - Bondcare_a,Adults,Adult Services,Adult Community Team,Support with Memory & Cognition,NURSING HOMES - PRIVATE CONTRACTORS PAYMENT
http://opendatacommunities.org/doc/london-borough-council/havering,London Borough of Havering,07/08/2017,-611.04,AUG17L969,Beechcourt Care Centre - Bondcare_a,Adults,Adult Services,Adult Community Team,Support with Memory & Cognition,NURSING CARE INCOME
http://opendatacommunities.org/doc/london-borough-council/havering,London Borough of Havering,07/08/2017,2096.00,AUG17L970,Beechcourt Care Centre - Bondcare_a,Adults,Adult Services,Adult Community Team,Support with Memory & Cognition,NURSING HOMES - PRIVATE CONTRACTORS PAYMENT
http://opendatacommunities.org/doc/london-borough-council/havering,London Borough of Havering,07/08/2017,-573.16,AUG17L971,Beechcourt Care Centre - Bondcare_a,Adults,Adult Services,Adult Community Team,Support with Memory & Cognition,NURSING CARE INCOME
http://opendatacommunities.org/doc/london-borough-council/havering,London Borough of Havering,07/08/2017,2096.00,AUG17L972,Beechcourt Care Centre - Bondcare_a,Adults,Adult Services,Adult Community Team,Support with Memory & Cognition,NURSING HOMES - PRIVATE CONTRACTORS PAYMENT
http://opendatacommunities.org/doc/london-borough-council/havering,London Borough of Havering,07/08/2017,-1498.00,AUG17L973,Beechcourt Care Centre - Bondcare_a,Adults,Adult Services,Adult Community Team,Support with Memory & Cognition,NURSING CARE INCOME
http://opendatacommunities.org/doc/london-borough-council/havering,London Borough of Havering,07/08/2017,2096.00,AUG17L974,Beechcourt Care Centre - Bondcare_a,Adults,Adult Services,Adult Community Team,Support with Memory & Cognition,NURSING HOMES - PRIVATE CONTRACTORS PAYMENT
http://opendatacommunities.org/doc/london-borough-council/havering,London Borough of Havering,07/08/2017,-1808.20,AUG17L975,Beechcourt Care Centre - Bondcare_a,Adults,Adult Services,Adult Community Team,Physical Support,NURSING CARE INCOME
http://opendatacommunities.org/doc/london-borough-council/havering,London Borough of Havering,07/08/2017,2032.00,AUG17L976,Beechcourt Care Centre - Bondcare_a,Adults,Adult Services,Adult Community Team,Physical Support,NURSING HOMES - PRIVATE CONTRACTORS PAYMENT
http://opendatacommunities.org/doc/london-borough-council/havering,London Borough of Havering,07/08/2017,-998.60,AUG17L977,Beechcourt Care Centre - Bondcare_a,Adults,Adult Services,Adult Community Team,Physical Support,NURSING CARE INCOME
http://opendatacommunities.org/doc/london-borough-council/havering,London Borough of Havering,07/08/2017,2032.00,AUG17L978,Beechcourt Care Centre - Bondcare_a,Adults,Adult Services,Adult Community Team,Physical Support,NURSING HOMES - PRIVATE CONTRACTORS PAYMENT
http://opendatacommunities.org/doc/london-borough-council/havering,London Borough of Havering,07/08/2017,-537.80,AUG17L979,Beechcourt Care Centre - Bondcare_a,Adults,Adult Services,Adult Community Team,Physical Support,RESIDENTIAL CARE INCOME
http://opendatacommunities.org/doc/london-borough-council/havering,London Borough of Havering,07/08/2017,2156.00,AUG17L980,Beechcourt Care Centre - Bondcare_a,Adults,Adult Services,Adult Community Team,Physical Support,NURSING HOMES - PRIVATE CONTRACTORS PAYMENT
http://opendatacommunities.org/doc/london-borough-council/havering,London Borough of Havering,07/08/2017,-537.80,AUG17L981,Beechcourt Care Centre - Bondcare_a,Adults,Adult Services,Adult Community Team,Support with Memory & Cognition,NURSING CARE INCOME
http://opendatacommunities.org/doc/london-borough-council/havering,London Borough of Havering,07/08/2017,2096.00,AUG17L982,Beechcourt Care Centre - Bondcare_a,Adults,Adult Services,Adult Community Team,Support with Memory & Cognition,NURSING HOMES - PRIVATE CONTRACTORS PAYMENT
http://opendatacommunities.org/doc/london-borough-council/havering,London Borough of Havering,07/08/2017,-837.76,AUG17L983,Beechcourt Care Centre - Bondcare_a,Adults,Adult Services,Adult Community Team,Physical Support,NURSING CARE INCOME
http://opendatacommunities.org/doc/london-borough-council/havering,London Borough of Havering,07/08/2017,2032.00,AUG17L984,Beechcourt Care Centre - Bondcare_a,Adults,Adult Services,Adult Community Team,Physical Support,NURSING HOMES - PRIVATE CONTRACTORS PAYMENT
http://opendatacommunities.org/doc/london-borough-council/havering,London Borough of Havering,07/08/2017,-779.48,AUG17L985,Beechcourt Care Centre - Bondcare_a,Adults,Adult Services,Adult Community Team,Support with Memory & Cognition,NURSING CARE INCOME
http://opendatacommunities.org/doc/london-borough-council/havering,London Borough of Havering,07/08/2017,2096.00,AUG17L986,Beechcourt Care Centre - Bondcare_a,Adults,Adult Services,Adult Community Team,Support with Memory & Cognition,NURSING HOMES - PRIVATE CONTRACTORS PAYMENT
http://opendatacommunities.org/doc/london-borough-council/havering,London Borough of Havering,07/08/2017,-833.20,AUG17L987,Beechcourt Care Centre - Bondcare_a,Adults,Adult Services,Adult Community Team,Physical Support,NURSING CARE INCOME
http://opendatacommunities.org/doc/london-borough-council/havering,London Borough of Havering,07/08/2017,2032.00,AUG17L988,Beechcourt Care Centre - Bondcare_a,Adults,Adult Services,Adult Community Team,Physical Support,NURSING HOMES - PRIVATE CONTRACTORS PAYMENT
http://opendatacommunities.org/doc/london-borough-council/havering,London Borough of Havering,07/08/2017,-537.80,AUG17L989,Beechcourt Care Centre - Bondcare_a,Adults,Adult Services,Adult Community Team,Physical Support,NURSING CARE INCOME
http://opendatacommunities.org/doc/london-borough-council/havering,London Borough of Havering,07/08/2017,2032.00,AUG17L990,Beechcourt Care Centre - Bondcare_a,Adults,Adult Services,Adult Community Team,Physical Support,NURSING HOMES - PRIVATE CONTRACTORS PAYMENT
http://opendatacommunities.org/doc/london-borough-council/havering,London Borough of Havering,07/08/2017,-851.44,AUG17L991,Beechcourt Care Centre - Bondcare_a,Adults,Adult Services,Adult Community Team,Support with Memory & Cognition,NURSING CARE INCOME
http://opendatacommunities.org/doc/london-borough-council/havering,London Borough of Havering,07/08/2017,2096.00,AUG17L992,Beechcourt Care Centre - Bondcare_a,Adults,Adult Services,Adult Community Team,Support with Memory & Cognition,NURSING HOMES - PRIVATE CONTRACTORS PAYMENT
http://opendatacommunities.org/doc/london-borough-council/havering,London Borough of Havering,07/08/2017,-2662.88,AUG17L993,Beechcourt Care Centre - Bondcare_a,Adults,Adult Services,Adult Community Team,Physical Support,NURSING CARE INCOME
http://opendatacommunities.org/doc/london-borough-council/havering,London Borough of Havering,07/08/2017,6458.86,AUG17L994,Beechcourt Care Centre - Bondcare_a,Adults,Adult Services,Adult Community Team,Physical Support,NURSING HOMES - PRIVATE CONTRACTORS PAYMENT
http://opendatacommunities.org/doc/london-borough-council/havering,London Borough of Havering,07/08/2017,-6386.29,AUG17L995,Beechcourt Care Centre - Bondcare_a,Adults,Adult Services,Adult Community Team,Physical Support,NURSING HOMES - PRIVATE CONTRACTORS PAYMENT
http://opendatacommunities.org/doc/london-borough-council/havering,London Borough of Havering,07/08/2017,2614.98,AUG17L996,Beechcourt Care Centre - Bondcare_a,Adults,Adult Services,Adult Community Team,Physical Support,NURSING CARE INCOME
http://opendatacommunities.org/doc/london-borough-council/havering,London Borough of Havering,07/08/2017,3862.76,AUG17L997,Hilton House_a,Adults,Adult Services,Learning Disabilities,Learning Disability Support,RESIDENTIAL PLACEMENTS - PRIVATE CONTRACTORS PAYMENT
http://opendatacommunities.org/doc/london-borough-council/havering,London Borough of Havering,07/08/2017,-730.29,AUG17L998,Nightingale Residential Care Home Ltd_a,Adults,Adult Services,Adult Community Team,Physical Support,RESIDENTIAL PLACEMENTS - PRIVATE CONTRACTORS PAYMENT
http://opendatacommunities.org/doc/london-borough-council/havering,London Borough of Havering,07/08/2017,-951.09,AUG17L999,Nightingale Residential Care Home Ltd_a,Adults,Adult Services,Adult Community Team,Physical Support,RESIDENTIAL CARE INCOME
http://opendatacommunities.org/doc/london-borough-council/havering,London Borough of Havering,07/08/2017,4381.71,AUG17L1000,Nightingale Residential Care Home Ltd_a,Adults,Adult Services,Adult Community Team,Physical Support,RESIDENTIAL PLACEMENTS - PRIVATE CONTRACTORS PAYMENT
http://opendatacommunities.org/doc/london-borough-council/havering,London Borough of Havering,07/08/2017,-1398.54,AUG17L1001,Nightingale Residential Care Home Ltd_a,Adults,Adult Services,Adult Community Team,Support with Memory & Cognition,RESIDENTIAL CARE INCOME
http://opendatacommunities.org/doc/london-borough-council/havering,London Borough of Havering,07/08/2017,3651.43,AUG17L1002,Nightingale Residential Care Home Ltd_a,Adults,Adult Services,Adult Community Team,Support with Memory & Cognition,RESIDENTIAL PLACEMENTS - PRIVATE CONTRACTORS PAYMENT
http://opendatacommunities.org/doc/london-borough-council/havering,London Borough of Havering,07/08/2017,-3570.29,AUG17L1003,Nightingale Residential Care Home Ltd_a,Adults,Adult Services,Adult Community Team,Support with Memory & Cognition,RESIDENTIAL PLACEMENTS - PRIVATE CONTRACTORS PAYMENT
http://opendatacommunities.org/doc/london-borough-council/havering,London Borough of Havering,07/08/2017,845.11,AUG17L1004,Nightingale Residential Care Home Ltd_a,Adults,Adult Services,Adult Community Team,Physical Support,NURSING CARE INCOME
http://opendatacommunities.org/doc/london-borough-council/havering,London Borough of Havering,07/08/2017,-3570.29,AUG17L1005,Nightingale Residential Care Home Ltd_a,Adults,Adult Services,Adult Community Team,Physical Support,RESIDENTIAL PLACEMENTS - PRIVATE CONTRACTORS PAYMENT
http://opendatacommunities.org/doc/london-borough-council/havering,London Borough of Havering,07/08/2017,855.93,AUG17L1006,Nightingale Residential Care Home Ltd_a,Adults,Adult Services,Adult Community Team,Physical Support,RESIDENTIAL CARE INCOME
http://opendatacommunities.org/doc/london-borough-council/havering,London Borough of Havering,07/08/2017,-787.49,AUG17L1007,Nightingale Residential Care Home Ltd_a,Adults,Adult Services,Adult Community Team,Support with Memory & Cognition,RESIDENTIAL CARE INCOME
http://opendatacommunities.org/doc/london-borough-council/havering,London Borough of Havering,07/08/2017,3326.86,AUG17L1008,Nightingale Residential Care Home Ltd_a,Adults,Adult Services,Adult Community Team,Support with Memory & Cognition,RESIDENTIAL PLACEMENTS - PRIVATE CONTRACTORS PAYMENT
http://opendatacommunities.org/doc/london-borough-council/havering,London Borough of Havering,07/08/2017,-3245.71,AUG17L1009,Nightingale Residential Care Home Ltd_a,Adults,Adult Services,Adult Community Team,Support with Memory & Cognition,RESIDENTIAL PLACEMENTS - PRIVATE CONTRACTORS PAYMENT
http://opendatacommunities.org/doc/london-borough-council/havering,London Borough of Havering,07/08/2017,768.29,AUG17L1010,Nightingale Residential Care Home Ltd_a,Adults,Adult Services,Adult Community Team,Support with Memory & Cognition,RESIDENTIAL CARE INCOME
http://opendatacommunities.org/doc/london-borough-council/havering,London Borough of Havering,07/08/2017,2272.00,AUG17L1011,Nightingale Residential Care Home Ltd_a,Adults,Adult Services,Adult Community Team,Support with Memory & Cognition,RESIDENTIAL PLACEMENTS - PRIVATE CONTRACTORS PAYMENT
http://opendatacommunities.org/doc/london-borough-council/havering,London Borough of Havering,07/08/2017,2272.00,AUG17L1012,Nightingale Residential Care Home Ltd_a,Adults,Adult Services,Adult Community Team,Support with Memory & Cognition,RESIDENTIAL PLACEMENTS - PRIVATE CONTRACTORS PAYMENT
http://opendatacommunities.org/doc/london-borough-council/havering,London Borough of Havering,07/08/2017,2272.00,AUG17L1013,Nightingale Residential Care Home Ltd_a,Adults,Adult Services,Adult Community Team,Support with Memory & Cognition,RESIDENTIAL PLACEMENTS - PRIVATE CONTRACTORS PAYMENT
http://opendatacommunities.org/doc/london-borough-council/havering,London Borough of Havering,07/08/2017,2272.00,AUG17L1014,Nightingale Residential Care Home Ltd_a,Adults,Adult Services,Adult Community Team,Support with Memory & Cognition,RESIDENTIAL PLACEMENTS - PRIVATE CONTRACTORS PAYMENT
http://opendatacommunities.org/doc/london-borough-council/havering,London Borough of Havering,07/08/2017,2272.00,AUG17L1015,Nightingale Residential Care Home Ltd_a,Adults,Adult Services,Adult Community Team,Support with Memory & Cognition,RESIDENTIAL PLACEMENTS - PRIVATE CONTRACTORS PAYMENT
http://opendatacommunities.org/doc/london-borough-council/havering,London Borough of Havering,07/08/2017,2272.00,AUG17L1016,Nightingale Residential Care Home Ltd_a,Adults,Adult Services,Adult Community Team,Support with Memory & Cognition,RESIDENTIAL PLACEMENTS - PRIVATE CONTRACTORS PAYMENT
http://opendatacommunities.org/doc/london-borough-council/havering,London Borough of Havering,07/08/2017,-513.80,AUG17L1017,Nightingale Residential Care Home Ltd_a,Adults,Adult Services,Adult Community Team,Support with Memory & Cognition,RESIDENTIAL CARE INCOME
http://opendatacommunities.org/doc/london-borough-council/havering,London Borough of Havering,07/08/2017,2272.00,AUG17L1018,Nightingale Residential Care Home Ltd_a,Adults,Adult Services,Adult Community Team,Support with Memory & Cognition,RESIDENTIAL PLACEMENTS - PRIVATE CONTRACTORS PAYMENT
http://opendatacommunities.org/doc/london-borough-council/havering,London Borough of Havering,07/08/2017,-537.80,AUG17L1019,Nightingale Residential Care Home Ltd_a,Adults,Adult Services,Adult Community Team,Support with Memory & Cognition,RESIDENTIAL CARE INCOME
http://opendatacommunities.org/doc/london-borough-council/havering,London Borough of Havering,07/08/2017,2272.00,AUG17L1020,Nightingale Residential Care Home Ltd_a,Adults,Adult Services,Adult Community Team,Support with Memory & Cognition,RESIDENTIAL PLACEMENTS - PRIVATE CONTRACTORS PAYMENT
http://opendatacommunities.org/doc/london-borough-council/havering,London Borough of Havering,07/08/2017,-2024.00,AUG17L1021,Nightingale Residential Care Home Ltd_a,Adults,Adult Services,Adult Community Team,Physical Support,RESIDENTIAL CARE INCOME
http://opendatacommunities.org/doc/london-borough-council/havering,London Borough of Havering,07/08/2017,2024.00,AUG17L1022,Nightingale Residential Care Home Ltd_a,Adults,Adult Services,Adult Community Team,Physical Support,RESIDENTIAL PLACEMENTS - PRIVATE CONTRACTORS PAYMENT
http://opendatacommunities.org/doc/london-borough-council/havering,London Borough of Havering,07/08/2017,-537.80,AUG17L1023,Nightingale Residential Care Home Ltd_a,Adults,Adult Services,Adult Community Team,Support with Memory & Cognition,RESIDENTIAL CARE INCOME
http://opendatacommunities.org/doc/london-borough-council/havering,London Borough of Havering,07/08/2017,2272.00,AUG17L1024,Nightingale Residential Care Home Ltd_a,Adults,Adult Services,Adult Community Team,Support with Memory & Cognition,RESIDENTIAL PLACEMENTS - PRIVATE CONTRACTORS PAYMENT
http://opendatacommunities.org/doc/london-borough-council/havering,London Borough of Havering,07/08/2017,-829.12,AUG17L1025,Nightingale Residential Care Home Ltd_a,Adults,Adult Services,Adult Community Team,Support with Memory & Cognition,RESIDENTIAL CARE INCOME
http://opendatacommunities.org/doc/london-borough-council/havering,London Borough of Havering,07/08/2017,2272.00,AUG17L1026,Nightingale Residential Care Home Ltd_a,Adults,Adult Services,Adult Community Team,Support with Memory & Cognition,RESIDENTIAL PLACEMENTS - PRIVATE CONTRACTORS PAYMENT
http://opendatacommunities.org/doc/london-borough-council/havering,London Borough of Havering,07/08/2017,-629.40,AUG17L1027,Nightingale Residential Care Home Ltd_a,Adults,Adult Services,Adult Community Team,Support with Memory & Cognition,RESIDENTIAL CARE INCOME
http://opendatacommunities.org/doc/london-borough-council/havering,London Borough of Havering,07/08/2017,2272.00,AUG17L1028,Nightingale Residential Care Home Ltd_a,Adults,Adult Services,Adult Community Team,Support with Memory & Cognition,RESIDENTIAL PLACEMENTS - PRIVATE CONTRACTORS PAYMENT
http://opendatacommunities.org/doc/london-borough-council/havering,London Borough of Havering,07/08/2017,-1119.04,AUG17L1029,Nightingale Residential Care Home Ltd_a,Adults,Adult Services,Adult Community Team,Support with Memory & Cognition,RESIDENTIAL CARE INCOME
http://opendatacommunities.org/doc/london-borough-council/havering,London Borough of Havering,07/08/2017,2272.00,AUG17L1030,Nightingale Residential Care Home Ltd_a,Adults,Adult Services,Adult Community Team,Support with Memory & Cognition,RESIDENTIAL PLACEMENTS - PRIVATE CONTRACTORS PAYMENT
http://opendatacommunities.org/doc/london-borough-council/havering,London Borough of Havering,07/08/2017,-537.80,AUG17L1031,Nightingale Residential Care Home Ltd_a,Adults,Adult Services,Adult Community Team,Support with Memory & Cognition,RESIDENTIAL CARE INCOME
http://opendatacommunities.org/doc/london-borough-council/havering,London Borough of Havering,07/08/2017,2272.00,AUG17L1032,Nightingale Residential Care Home Ltd_a,Adults,Adult Services,Adult Community Team,Support with Memory & Cognition,RESIDENTIAL PLACEMENTS - PRIVATE CONTRACTORS PAYMENT
http://opendatacommunities.org/doc/london-borough-council/havering,London Borough of Havering,07/08/2017,-693.00,AUG17L1033,Nightingale Residential Care Home Ltd_a,Adults,Adult Services,Adult Community Team,Support with Memory & Cognition,RESIDENTIAL CARE INCOME
http://opendatacommunities.org/doc/london-borough-council/havering,London Borough of Havering,07/08/2017,2272.00,AUG17L1034,Nightingale Residential Care Home Ltd_a,Adults,Adult Services,Adult Community Team,Support with Memory & Cognition,RESIDENTIAL PLACEMENTS - PRIVATE CONTRACTORS PAYMENT
http://opendatacommunities.org/doc/london-borough-council/havering,London Borough of Havering,07/08/2017,-421.96,AUG17L1035,Nightingale Residential Care Home Ltd_a,Adults,Adult Services,Adult Community Team,Support with Memory & Cognition,RESIDENTIAL CARE INCOME
http://opendatacommunities.org/doc/london-borough-council/havering,London Borough of Havering,07/08/2017,2272.00,AUG17L1036,Nightingale Residential Care Home Ltd_a,Adults,Adult Services,Adult Community Team,Support with Memory & Cognition,RESIDENTIAL PLACEMENTS - PRIVATE CONTRACTORS PAYMENT
http://opendatacommunities.org/doc/london-borough-council/havering,London Borough of Havering,07/08/2017,-537.80,AUG17L1037,Nightingale Residential Care Home Ltd_a,Adults,Adult Services,Adult Community Team,Support with Memory & Cognition,RESIDENTIAL CARE INCOME
http://opendatacommunities.org/doc/london-borough-council/havering,London Borough of Havering,07/08/2017,2272.00,AUG17L1038,Nightingale Residential Care Home Ltd_a,Adults,Adult Services,Adult Community Team,Support with Memory & Cognition,RESIDENTIAL PLACEMENTS - PRIVATE CONTRACTORS PAYMENT
http://opendatacommunities.org/doc/london-borough-council/havering,London Borough of Havering,07/08/2017,2096.96,AUG17L1039,Dudbrook Hall Residential Home_a,Adults,Adult Services,Adult Community Team,Physical Support,RESIDENTIAL PLACEMENTS - PRIVATE CONTRACTORS PAYMENT
http://opendatacommunities.org/doc/london-borough-council/havering,London Borough of Havering,07/08/2017,1307.43,AUG17L1040,Havering Care Homes Ltd t/a Abbscross Nursing Home_a,Adults,Adult Services,Adult Community Team,Support with Memory & Cognition,NURSING HOMES - PRIVATE CONTRACTORS PAYMENT
http://opendatacommunities.org/doc/london-borough-council/havering,London Borough of Havering,07/08/2017,2156.00,AUG17L1041,Havering Care Homes Ltd t/a Abbscross Nursing Home_a,Adults,Adult Services,Adult Community Team,Support with Memory & Cognition,NURSING HOMES - PRIVATE CONTRACTORS PAYMENT
http://opendatacommunities.org/doc/london-borough-council/havering,London Borough of Havering,07/08/2017,2096.00,AUG17L1042,Havering Care Homes Ltd t/a Abbscross Nursing Home_a,Adults,Adult Services,Adult Community Team,Support with Memory & Cognition,NURSING HOMES - PRIVATE CONTRACTORS PAYMENT
http://opendatacommunities.org/doc/london-borough-council/havering,London Borough of Havering,07/08/2017,2096.00,AUG17L1043,Havering Care Homes Ltd t/a Abbscross Nursing Home_a,Adults,Adult Services,Adult Community Team,Support with Memory & Cognition,NURSING HOMES - PRIVATE CONTRACTORS PAYMENT
http://opendatacommunities.org/doc/london-borough-council/havering,London Borough of Havering,07/08/2017,2096.00,AUG17L1044,Havering Care Homes Ltd t/a Abbscross Nursing Home_a,Adults,Adult Services,Adult Community Team,Support with Memory & Cognition,NURSING HOMES - PRIVATE CONTRACTORS PAYMENT
http://opendatacommunities.org/doc/london-borough-council/havering,London Borough of Havering,07/08/2017,2096.00,AUG17L1045,Havering Care Homes Ltd t/a Abbscross Nursing Home_a,Adults,Adult Services,Adult Community Team,Support with Memory & Cognition,NURSING HOMES - PRIVATE CONTRACTORS PAYMENT
http://opendatacommunities.org/doc/london-borough-council/havering,London Borough of Havering,07/08/2017,2032.00,AUG17L1046,Havering Care Homes Ltd t/a Abbscross Nursing Home_a,Adults,Adult Services,Adult Community Team,Physical Support,NURSING HOMES - PRIVATE CONTRACTORS PAYMENT
http://opendatacommunities.org/doc/london-borough-council/havering,London Borough of Havering,07/08/2017,2032.00,AUG17L1047,Havering Care Homes Ltd t/a Abbscross Nursing Home_a,Adults,Adult Services,Adult Community Team,Physical Support,NURSING HOMES - PRIVATE CONTRACTORS PAYMENT
http://opendatacommunities.org/doc/london-borough-council/havering,London Borough of Havering,07/08/2017,-535.76,AUG17L1048,Havering Care Homes Ltd t/a Abbscross Nursing Home_a,Adults,Adult Services,Adult Community Team,Physical Support,NURSING CARE INCOME
http://opendatacommunities.org/doc/london-borough-council/havering,London Borough of Havering,07/08/2017,2032.00,AUG17L1049,Havering Care Homes Ltd t/a Abbscross Nursing Home_a,Adults,Adult Services,Adult Community Team,Physical Support,NURSING HOMES - PRIVATE CONTRACTORS PAYMENT
http://opendatacommunities.org/doc/london-borough-council/havering,London Borough of Havering,07/08/2017,-887.04,AUG17L1050,Havering Care Homes Ltd t/a Abbscross Nursing Home_a,Adults,Adult Services,Adult Community Team,Physical Support,NURSING CARE INCOME
http://opendatacommunities.org/doc/london-borough-council/havering,London Borough of Havering,07/08/2017,2156.00,AUG17L1051,Havering Care Homes Ltd t/a Abbscross Nursing Home_a,Adults,Adult Services,Adult Community Team,Physical Support,NURSING HOMES - PRIVATE CONTRACTORS PAYMENT
http://opendatacommunities.org/doc/london-borough-council/havering,London Borough of Havering,07/08/2017,-896.96,AUG17L1052,Havering Care Homes Ltd t/a Abbscross Nursing Home_a,Adults,Adult Services,Adult Community Team,Support with Memory & Cognition,RESIDENTIAL CARE INCOME
http://opendatacommunities.org/doc/london-borough-council/havering,London Borough of Havering,07/08/2017,2272.00,AUG17L1053,Havering Care Homes Ltd t/a Abbscross Nursing Home_a,Adults,Adult Services,Adult Community Team,Support with Memory & Cognition,RESIDENTIAL PLACEMENTS - PRIVATE CONTRACTORS PAYMENT
http://opendatacommunities.org/doc/london-borough-council/havering,London Borough of Havering,07/08/2017,-537.80,AUG17L1054,Havering Care Homes Ltd t/a Abbscross Nursing Home_a,Adults,Adult Services,Adult Community Team,Support with Memory & Cognition,NURSING CARE INCOME
http://opendatacommunities.org/doc/london-borough-council/havering,London Borough of Havering,07/08/2017,2096.00,AUG17L1055,Havering Care Homes Ltd t/a Abbscross Nursing Home_a,Adults,Adult Services,Adult Community Team,Support with Memory & Cognition,NURSING HOMES - PRIVATE CONTRACTORS PAYMENT
http://opendatacommunities.org/doc/london-borough-council/havering,London Borough of Havering,07/08/2017,1646.92,AUG17L1056,Havering Care Homes Ltd t/a Abbscross Nursing Home_a,Adults,Adult Services,Adult Community Team,Support with Memory & Cognition,RESPITE CARE - PRIVATE CONTRACTORS PAYMENT
http://opendatacommunities.org/doc/london-borough-council/havering,London Borough of Havering,07/08/2017,2024.00,AUG17L1057,Abbey Care Home Ltd t/a Abbey Care Home_a,Adults,Adult Services,Adult Community Team,Physical Support,RESIDENTIAL PLACEMENTS - PRIVATE CONTRACTORS PAYMENT
http://opendatacommunities.org/doc/london-borough-council/havering,London Borough of Havering,07/08/2017,2272.00,AUG17L1058,Abbey Care Home Ltd t/a Abbey Care Home_a,Adults,Adult Services,Adult Community Team,Support with Memory & Cognition,RESIDENTIAL PLACEMENTS - PRIVATE CONTRACTORS PAYMENT
http://opendatacommunities.org/doc/london-borough-council/havering,London Borough of Havering,07/08/2017,2272.00,AUG17L1059,Abbey Care Home Ltd t/a Abbey Care Home_a,Adults,Adult Services,Adult Community Team,Support with Memory & Cognition,RESIDENTIAL PLACEMENTS - PRIVATE CONTRACTORS PAYMENT
http://opendatacommunities.org/doc/london-borough-council/havering,London Borough of Havering,16/08/2017,405.00,AUG17L1060,Tapestry_a.,Adults,Adult Services,Adult Community Team,Physical Support,DAYCARE - PRIVATE CONTRACTORS PAYMENT
http://opendatacommunities.org/doc/london-borough-council/havering,London Borough of Havering,16/08/2017,1080.00,AUG17L1061,Tapestry_a.,Adults,Adult Services,Adult Community Team,Support for Social Isolation - Other,DAYCARE - PRIVATE CONTRACTORS PAYMENT
http://opendatacommunities.org/doc/london-borough-council/havering,London Borough of Havering,16/08/2017,495.00,AUG17L1062,Tapestry_a.,Adults,Adult Services,Adult Community Team,Physical Support,DAYCARE - PRIVATE CONTRACTORS PAYMENT
http://opendatacommunities.org/doc/london-borough-council/havering,London Borough of Havering,16/08/2017,1080.00,AUG17L1063,Tapestry_a.,Adults,Adult Services,Adult Community Team,Physical Support,DAYCARE - PRIVATE CONTRACTORS PAYMENT
http://opendatacommunities.org/doc/london-borough-council/havering,London Borough of Havering,16/08/2017,675.00,AUG17L1064,Tapestry_a.,Adults,Adult Services,Adult Community Team,Physical Support,DAYCARE - PRIVATE CONTRACTORS PAYMENT
http://opendatacommunities.org/doc/london-borough-council/havering,London Borough of Havering,16/08/2017,990.00,AUG17L1065,Tapestry_a.,Adults,Adult Services,Adult Community Team,Support for Social Isolation - Other,DAYCARE - PRIVATE CONTRACTORS PAYMENT
http://opendatacommunities.org/doc/london-borough-council/havering,London Borough of Havering,16/08/2017,900.00,AUG17L1066,Tapestry_a.,Adults,Adult Services,Adult Community Team,Support with Memory & Cognition,DAYCARE - PRIVATE CONTRACTORS PAYMENT
http://opendatacommunities.org/doc/london-borough-council/havering,London Borough of Havering,16/08/2017,720.00,AUG17L1067,Tapestry_a.,Adults,Adult Services,Adult Community Team,Physical Support,DAYCARE - PRIVATE CONTRACTORS PAYMENT
http://opendatacommunities.org/doc/london-borough-council/havering,London Borough of Havering,16/08/2017,720.00,AUG17L1068,Tapestry_a.,Adults,Adult Services,Adult Community Team,Physical Support,DAYCARE - PRIVATE CONTRACTORS PAYMENT
http://opendatacommunities.org/doc/london-borough-council/havering,London Borough of Havering,16/08/2017,900.00,AUG17L1069,Tapestry_a.,Adults,Adult Services,Adult Community Team,Support with Memory & Cognition,DAYCARE - PRIVATE CONTRACTORS PAYMENT
http://opendatacommunities.org/doc/london-borough-council/havering,London Borough of Havering,16/08/2017,810.00,AUG17L1070,Tapestry_a.,Adults,Adult Services,Adult Community Team,Physical Support,DAYCARE - PRIVATE CONTRACTORS PAYMENT
http://opendatacommunities.org/doc/london-borough-council/havering,London Borough of Havering,16/08/2017,540.00,AUG17L1071,Tapestry_a.,Adults,Adult Services,Learning Disabilities,Learning Disability Support,DAYCARE - PRIVATE CONTRACTORS PAYMENT
http://opendatacommunities.org/doc/london-borough-council/havering,London Borough of Havering,23/08/2017,540.00,AUG17L1072,Tapestry_a.,Adults,Adult Services,Adult Community Team,Support for Social Isolation - Other,DAYCARE - PRIVATE CONTRACTORS PAYMENT
http://opendatacommunities.org/doc/london-borough-council/havering,London Borough of Havering,23/08/2017,630.00,AUG17L1073,Tapestry_a.,Adults,Adult Services,Adult Community Team,Physical Support,DAYCARE - PRIVATE CONTRACTORS PAYMENT
http://opendatacommunities.org/doc/london-borough-council/havering,London Borough of Havering,07/08/2017,2032.00,AUG17L1078,One Tree Estates Ltd t/a Ashbrook Nursing Home_a,Adults,Adult Services,Learning Disabilities,Sensory Support,NURSING HOMES - PRIVATE CONTRACTORS PAYMENT
http://opendatacommunities.org/doc/london-borough-council/havering,London Borough of Havering,07/08/2017,2096.00,AUG17L1079,One Tree Estates Ltd t/a Ashbrook Nursing Home_a,Adults,Adult Services,Adult Community Team,Support with Memory & Cognition,NURSING HOMES - PRIVATE CONTRACTORS PAYMENT
http://opendatacommunities.org/doc/london-borough-council/havering,London Borough of Havering,07/08/2017,2272.00,AUG17L1080,One Tree Estates Ltd t/a Ashbrook Nursing Home_a,Adults,Adult Services,Adult Community Team,Support with Memory & Cognition,RESIDENTIAL PLACEMENTS - PRIVATE CONTRACTORS PAYMENT
http://opendatacommunities.org/doc/london-borough-council/havering,London Borough of Havering,07/08/2017,2579.80,AUG17L1081,One Tree Estates Ltd t/a Ashbrook Nursing Home_a,Adults,Adult Services,Adult Community Team,Physical Support,NURSING HOMES - PRIVATE CONTRACTORS PAYMENT
http://opendatacommunities.org/doc/london-borough-council/havering,London Borough of Havering,07/08/2017,-537.80,AUG17L1082,One Tree Estates Ltd t/a Ashbrook Nursing Home_a,Adults,Adult Services,Adult Community Team,Support with Memory & Cognition,NURSING CARE INCOME
http://opendatacommunities.org/doc/london-borough-council/havering,London Borough of Havering,07/08/2017,2096.00,AUG17L1083,One Tree Estates Ltd t/a Ashbrook Nursing Home_a,Adults,Adult Services,Adult Community Team,Support with Memory & Cognition,NURSING HOMES - PRIVATE CONTRACTORS PAYMENT
http://opendatacommunities.org/doc/london-borough-council/havering,London Borough of Havering,07/08/2017,-433.71,AUG17L1087,Little Gaynes_a,Adults,Adult Services,Adult Community Team,Physical Support,RESIDENTIAL PLACEMENTS - PRIVATE CONTRACTORS PAYMENT
http://opendatacommunities.org/doc/london-borough-council/havering,London Borough of Havering,07/08/2017,3000.00,AUG17L1088,Little Gaynes_a,Adults,Adult Services,Adult Community Team,Physical Support,RESIDENTIAL PLACEMENTS - PRIVATE CONTRACTORS PAYMENT
http://opendatacommunities.org/doc/london-borough-council/havering,London Borough of Havering,07/08/2017,-537.80,AUG17L1089,Little Gaynes_a,Adults,Adult Services,Adult Community Team,Support for Social Isolation - Other,RESIDENTIAL CARE INCOME
http://opendatacommunities.org/doc/london-borough-council/havering,London Borough of Havering,07/08/2017,2024.00,AUG17L1090,Little Gaynes_a,Adults,Adult Services,Adult Community Team,Support for Social Isolation - Other,RESIDENTIAL PLACEMENTS - PRIVATE CONTRACTORS PAYMENT
http://opendatacommunities.org/doc/london-borough-council/havering,London Borough of Havering,07/08/2017,-1041.64,AUG17L1091,Little Gaynes_a,Adults,Adult Services,Adult Community Team,Support with Memory & Cognition,RESIDENTIAL CARE INCOME
http://opendatacommunities.org/doc/london-borough-council/havering,London Borough of Havering,07/08/2017,2272.00,AUG17L1092,Little Gaynes_a,Adults,Adult Services,Adult Community Team,Support with Memory & Cognition,RESIDENTIAL PLACEMENTS - PRIVATE CONTRACTORS PAYMENT
http://opendatacommunities.org/doc/london-borough-council/havering,London Borough of Havering,07/08/2017,5248.80,AUG17L1093,Essex County Council_a,Adults,Adult Services,Learning Disabilities,Learning Disability Support,DAYCARE - PRIVATE CONTRACTORS PAYMENT
http://opendatacommunities.org/doc/london-borough-council/havering,London Borough of Havering,07/08/2017,-730.29,AUG17L1094,Masumin Ltd t/s Abbeleigh House_a,Adults,Adult Services,Adult Community Team,Support with Memory & Cognition,RESIDENTIAL PLACEMENTS - PRIVATE CONTRACTORS PAYMENT
http://opendatacommunities.org/doc/london-borough-council/havering,London Borough of Havering,07/08/2017,-2115.84,AUG17L1095,Masumin Ltd t/s Abbeleigh House_a,Adults,Adult Services,Adult Community Team,Support with Memory & Cognition,RESIDENTIAL CARE INCOME
http://opendatacommunities.org/doc/london-borough-council/havering,London Borough of Havering,07/08/2017,9088.00,AUG17L1096,Masumin Ltd t/s Abbeleigh House_a,Adults,Adult Services,Adult Community Team,Support with Memory & Cognition,RESIDENTIAL PLACEMENTS - PRIVATE CONTRACTORS PAYMENT
http://opendatacommunities.org/doc/london-borough-council/havering,London Borough of Havering,07/08/2017,-6329.14,AUG17L1097,Masumin Ltd t/s Abbeleigh House_a,Adults,Adult Services,Adult Community Team,Support with Memory & Cognition,RESIDENTIAL PLACEMENTS - PRIVATE CONTRACTORS PAYMENT
http://opendatacommunities.org/doc/london-borough-council/havering,London Borough of Havering,07/08/2017,1135.96,AUG17L1098,Masumin Ltd t/s Abbeleigh House_a,Adults,Adult Services,Adult Community Team,Support with Memory & Cognition,RESPITE CARE - PRIVATE CONTRACTORS PAYMENT
http://opendatacommunities.org/doc/london-borough-council/havering,London Borough of Havering,07/08/2017,-8276.57,AUG17L1099,Masumin Ltd t/s Abbeleigh House_a,Adults,Adult Services,Adult Community Team,Support with Memory & Cognition,RESIDENTIAL PLACEMENTS - PRIVATE CONTRACTORS PAYMENT
http://opendatacommunities.org/doc/london-borough-council/havering,London Borough of Havering,07/08/2017,1990.02,AUG17L1100,Masumin Ltd t/s Abbeleigh House_a,Adults,Adult Services,Adult Community Team,Support with Memory & Cognition,RESIDENTIAL CARE INCOME
http://opendatacommunities.org/doc/london-borough-council/havering,London Borough of Havering,07/08/2017,578.32,AUG17L1101,Masumin Ltd t/s Abbeleigh House_a,Adults,Adult Services,Adult Community Team,Physical Support,RESPITE CARE - PRIVATE CONTRACTORS PAYMENT
http://opendatacommunities.org/doc/london-borough-council/havering,London Borough of Havering,07/08/2017,-633.84,AUG17L1102,Masumin Ltd t/s Abbeleigh House_a,Adults,Adult Services,Adult Community Team,Support with Memory & Cognition,RESIDENTIAL CARE INCOME
http://opendatacommunities.org/doc/london-borough-council/havering,London Borough of Havering,07/08/2017,2677.71,AUG17L1103,Masumin Ltd t/s Abbeleigh House_a,Adults,Adult Services,Adult Community Team,Support with Memory & Cognition,RESIDENTIAL PLACEMENTS - PRIVATE CONTRACTORS PAYMENT
http://opendatacommunities.org/doc/london-borough-council/havering,London Borough of Havering,07/08/2017,2024.00,AUG17L1104,Masumin Ltd t/s Abbeleigh House_a,Adults,Adult Services,Adult Community Team,Physical Support,RESIDENTIAL PLACEMENTS - PRIVATE CONTRACTORS PAYMENT
http://opendatacommunities.org/doc/london-borough-council/havering,London Borough of Havering,07/08/2017,2272.00,AUG17L1105,Masumin Ltd t/s Abbeleigh House_a,Adults,Adult Services,Adult Community Team,Support with Memory & Cognition,RESIDENTIAL PLACEMENTS - PRIVATE CONTRACTORS PAYMENT
http://opendatacommunities.org/doc/london-borough-council/havering,London Borough of Havering,07/08/2017,2272.00,AUG17L1106,Masumin Ltd t/s Abbeleigh House_a,Adults,Adult Services,Adult Community Team,Physical Support,RESIDENTIAL PLACEMENTS - PRIVATE CONTRACTORS PAYMENT
http://opendatacommunities.org/doc/london-borough-council/havering,London Borough of Havering,07/08/2017,2272.00,AUG17L1107,Masumin Ltd t/s Abbeleigh House_a,Adults,Adult Services,Adult Community Team,Support with Memory & Cognition,RESIDENTIAL PLACEMENTS - PRIVATE CONTRACTORS PAYMENT
http://opendatacommunities.org/doc/london-borough-council/havering,London Borough of Havering,07/08/2017,2272.00,AUG17L1108,Masumin Ltd t/s Abbeleigh House_a,Adults,Adult Services,Adult Community Team,Support with Memory & Cognition,RESIDENTIAL PLACEMENTS - PRIVATE CONTRACTORS PAYMENT
http://opendatacommunities.org/doc/london-borough-council/havering,London Borough of Havering,07/08/2017,-537.80,AUG17L1109,Masumin Ltd t/s Abbeleigh House_a,Adults,Adult Services,Learning Disabilities,Learning Disability Support,RESIDENTIAL CARE INCOME
http://opendatacommunities.org/doc/london-borough-council/havering,London Borough of Havering,07/08/2017,2112.96,AUG17L1110,Masumin Ltd t/s Abbeleigh House_a,Adults,Adult Services,Learning Disabilities,Learning Disability Support,RESIDENTIAL PLACEMENTS - PRIVATE CONTRACTORS PAYMENT
http://opendatacommunities.org/doc/london-borough-council/havering,London Borough of Havering,07/08/2017,-537.80,AUG17L1111,Masumin Ltd t/s Abbeleigh House_a,Adults,Adult Services,Adult Community Team,Physical Support,RESIDENTIAL CARE INCOME
http://opendatacommunities.org/doc/london-borough-council/havering,London Borough of Havering,07/08/2017,2024.00,AUG17L1112,Masumin Ltd t/s Abbeleigh House_a,Adults,Adult Services,Adult Community Team,Physical Support,RESIDENTIAL PLACEMENTS - PRIVATE CONTRACTORS PAYMENT
http://opendatacommunities.org/doc/london-borough-council/havering,London Borough of Havering,07/08/2017,-537.80,AUG17L1113,Masumin Ltd t/s Abbeleigh House_a,Adults,Adult Services,Learning Disabilities,Learning Disability Support,RESIDENTIAL CARE INCOME
http://opendatacommunities.org/doc/london-borough-council/havering,London Borough of Havering,07/08/2017,2112.96,AUG17L1114,Masumin Ltd t/s Abbeleigh House_a,Adults,Adult Services,Learning Disabilities,Learning Disability Support,RESIDENTIAL PLACEMENTS - PRIVATE CONTRACTORS PAYMENT
http://opendatacommunities.org/doc/london-borough-council/havering,London Borough of Havering,07/08/2017,-537.80,AUG17L1115,Masumin Ltd t/s Abbeleigh House_a,Adults,Adult Services,Adult Community Team,Support with Memory & Cognition,RESIDENTIAL CARE INCOME
http://opendatacommunities.org/doc/london-borough-council/havering,London Borough of Havering,07/08/2017,2272.00,AUG17L1116,Masumin Ltd t/s Abbeleigh House_a,Adults,Adult Services,Adult Community Team,Support with Memory & Cognition,RESIDENTIAL PLACEMENTS - PRIVATE CONTRACTORS PAYMENT
http://opendatacommunities.org/doc/london-borough-council/havering,London Borough of Havering,07/08/2017,-537.80,AUG17L1117,Masumin Ltd t/s Abbeleigh House_a,Adults,Adult Services,Adult Community Team,Support with Memory & Cognition,RESIDENTIAL CARE INCOME
http://opendatacommunities.org/doc/london-borough-council/havering,London Borough of Havering,07/08/2017,2272.00,AUG17L1118,Masumin Ltd t/s Abbeleigh House_a,Adults,Adult Services,Adult Community Team,Support with Memory & Cognition,RESIDENTIAL PLACEMENTS - PRIVATE CONTRACTORS PAYMENT
http://opendatacommunities.org/doc/london-borough-council/havering,London Borough of Havering,07/08/2017,-878.04,AUG17L1119,Masumin Ltd t/s Abbeleigh House_a,Adults,Adult Services,Adult Community Team,Physical Support,RESIDENTIAL CARE INCOME
http://opendatacommunities.org/doc/london-borough-council/havering,London Borough of Havering,07/08/2017,2272.00,AUG17L1120,Masumin Ltd t/s Abbeleigh House_a,Adults,Adult Services,Adult Community Team,Physical Support,RESIDENTIAL PLACEMENTS - PRIVATE CONTRACTORS PAYMENT
http://opendatacommunities.org/doc/london-borough-council/havering,London Borough of Havering,07/08/2017,-537.80,AUG17L1121,Masumin Ltd t/s Abbeleigh House_a,Adults,Adult Services,Learning Disabilities,Sensory Support,RESIDENTIAL CARE INCOME
http://opendatacommunities.org/doc/london-borough-council/havering,London Borough of Havering,07/08/2017,2024.00,AUG17L1122,Masumin Ltd t/s Abbeleigh House_a,Adults,Adult Services,Learning Disabilities,Sensory Support,RESIDENTIAL PLACEMENTS - PRIVATE CONTRACTORS PAYMENT
http://opendatacommunities.org/doc/london-borough-council/havering,London Borough of Havering,07/08/2017,-546.28,AUG17L1123,Masumin Ltd t/s Abbeleigh House_a,Adults,Adult Services,Adult Community Team,Support with Memory & Cognition,RESIDENTIAL CARE INCOME
http://opendatacommunities.org/doc/london-borough-council/havering,London Borough of Havering,07/08/2017,2272.00,AUG17L1124,Masumin Ltd t/s Abbeleigh House_a,Adults,Adult Services,Adult Community Team,Support with Memory & Cognition,RESIDENTIAL PLACEMENTS - PRIVATE CONTRACTORS PAYMENT
http://opendatacommunities.org/doc/london-borough-council/havering,London Borough of Havering,07/08/2017,-826.72,AUG17L1125,Masumin Ltd t/s Abbeleigh House_a,Adults,Adult Services,Adult Community Team,Support with Memory & Cognition,RESIDENTIAL CARE INCOME
http://opendatacommunities.org/doc/london-borough-council/havering,London Borough of Havering,07/08/2017,2272.00,AUG17L1126,Masumin Ltd t/s Abbeleigh House_a,Adults,Adult Services,Adult Community Team,Support with Memory & Cognition,RESIDENTIAL PLACEMENTS - PRIVATE CONTRACTORS PAYMENT
http://opendatacommunities.org/doc/london-borough-council/havering,London Borough of Havering,07/08/2017,-537.80,AUG17L1127,Masumin Ltd t/s Abbeleigh House_a,Adults,Adult Services,Adult Community Team,Support with Memory & Cognition,RESIDENTIAL CARE INCOME
http://opendatacommunities.org/doc/london-borough-council/havering,London Borough of Havering,07/08/2017,2272.00,AUG17L1128,Masumin Ltd t/s Abbeleigh House_a,Adults,Adult Services,Adult Community Team,Support with Memory & Cognition,RESIDENTIAL PLACEMENTS - PRIVATE CONTRACTORS PAYMENT
http://opendatacommunities.org/doc/london-borough-council/havering,London Borough of Havering,07/08/2017,433.74,AUG17L1129,Masumin Ltd t/s Abbeleigh House_a,Adults,Adult Services,Adult Community Team,Physical Support,RESPITE CARE - PRIVATE CONTRACTORS PAYMENT
http://opendatacommunities.org/doc/london-borough-council/havering,London Borough of Havering,07/08/2017,649.12,AUG17L1130,Masumin Ltd t/s Abbeleigh House_a,Adults,Adult Services,Adult Community Team,Support with Memory & Cognition,RESPITE CARE - PRIVATE CONTRACTORS PAYMENT
http://opendatacommunities.org/doc/london-borough-council/havering,London Borough of Havering,07/08/2017,567.98,AUG17L1131,Moreland House_a,Adults,Adult Services,Adult Community Team,Support with Memory & Cognition,RESPITE CARE - PRIVATE CONTRACTORS PAYMENT
http://opendatacommunities.org/doc/london-borough-council/havering,London Borough of Havering,07/08/2017,2156.00,AUG17L1132,Moreland House_a,Adults,Adult Services,Adult Community Team,Support with Memory & Cognition,NURSING HOMES - PRIVATE CONTRACTORS PAYMENT
http://opendatacommunities.org/doc/london-borough-council/havering,London Borough of Havering,07/08/2017,2299.80,AUG17L1133,Moreland House_a,Adults,Adult Services,Adult Community Team,Support with Memory & Cognition,NURSING HOMES - PRIVATE CONTRACTORS PAYMENT
http://opendatacommunities.org/doc/london-borough-council/havering,London Borough of Havering,07/08/2017,-537.80,AUG17L1134,Moreland House_a,Adults,Adult Services,Adult Community Team,Support with Memory & Cognition,NURSING CARE INCOME
http://opendatacommunities.org/doc/london-borough-council/havering,London Borough of Havering,07/08/2017,2096.00,AUG17L1135,Moreland House_a,Adults,Adult Services,Adult Community Team,Support with Memory & Cognition,NURSING HOMES - PRIVATE CONTRACTORS PAYMENT
http://opendatacommunities.org/doc/london-borough-council/havering,London Borough of Havering,07/08/2017,-525.80,AUG17L1136,Moreland House_a,Adults,Adult Services,Adult Community Team,Support with Memory & Cognition,NURSING CARE INCOME
http://opendatacommunities.org/doc/london-borough-council/havering,London Borough of Havering,07/08/2017,2096.00,AUG17L1137,Moreland House_a,Adults,Adult Services,Adult Community Team,Support with Memory & Cognition,NURSING HOMES - PRIVATE CONTRACTORS PAYMENT
http://opendatacommunities.org/doc/london-borough-council/havering,London Borough of Havering,07/08/2017,-525.80,AUG17L1138,Moreland House_a,Adults,Adult Services,Adult Community Team,Support with Memory & Cognition,NURSING CARE INCOME
http://opendatacommunities.org/doc/london-borough-council/havering,London Borough of Havering,07/08/2017,2096.00,AUG17L1139,Moreland House_a,Adults,Adult Services,Adult Community Team,Support with Memory & Cognition,NURSING HOMES - PRIVATE CONTRACTORS PAYMENT
http://opendatacommunities.org/doc/london-borough-council/havering,London Borough of Havering,07/08/2017,-905.12,AUG17L1140,Moreland House_a,Adults,Adult Services,Adult Community Team,Support with Memory & Cognition,RESIDENTIAL CARE INCOME
http://opendatacommunities.org/doc/london-borough-council/havering,London Borough of Havering,07/08/2017,2272.00,AUG17L1141,Moreland House_a,Adults,Adult Services,Adult Community Team,Support with Memory & Cognition,RESIDENTIAL PLACEMENTS - PRIVATE CONTRACTORS PAYMENT
http://opendatacommunities.org/doc/london-borough-council/havering,London Borough of Havering,07/08/2017,-730.29,AUG17L1144,Genesis Residential Homes Ltd - Dothan House_a,Adults,Adult Services,Adult Community Team,Support with Memory & Cognition,RESIDENTIAL PLACEMENTS - PRIVATE CONTRACTORS PAYMENT
http://opendatacommunities.org/doc/london-borough-council/havering,London Borough of Havering,07/08/2017,-2828.64,AUG17L1145,Genesis Residential Homes Ltd - Dothan House_a,Adults,Adult Services,Adult Community Team,Support with Memory & Cognition,RESIDENTIAL CARE INCOME
http://opendatacommunities.org/doc/london-borough-council/havering,London Borough of Havering,07/08/2017,9088.00,AUG17L1146,Genesis Residential Homes Ltd - Dothan House_a,Adults,Adult Services,Adult Community Team,Support with Memory & Cognition,RESIDENTIAL PLACEMENTS - PRIVATE CONTRACTORS PAYMENT
http://opendatacommunities.org/doc/london-borough-council/havering,London Borough of Havering,07/08/2017,-8276.57,AUG17L1147,Genesis Residential Homes Ltd - Dothan House_a,Adults,Adult Services,Adult Community Team,Support with Memory & Cognition,RESIDENTIAL PLACEMENTS - PRIVATE CONTRACTORS PAYMENT
http://opendatacommunities.org/doc/london-borough-council/havering,London Borough of Havering,07/08/2017,2664.53,AUG17L1148,Genesis Residential Homes Ltd - Dothan House_a,Adults,Adult Services,Adult Community Team,Support with Memory & Cognition,RESIDENTIAL CARE INCOME
http://opendatacommunities.org/doc/london-borough-council/havering,London Borough of Havering,07/08/2017,2480.00,AUG17L1149,Genesis Residential Homes Ltd - Dothan House_a,Adults,Adult Services,Adult Community Team,Support with Memory & Cognition,RESIDENTIAL PLACEMENTS - PRIVATE CONTRACTORS PAYMENT
http://opendatacommunities.org/doc/london-borough-council/havering,London Borough of Havering,07/08/2017,2272.00,AUG17L1150,Genesis Residential Homes Ltd - Dothan House_a,Adults,Adult Services,Adult Community Team,Support with Memory & Cognition,RESIDENTIAL PLACEMENTS - PRIVATE CONTRACTORS PAYMENT
http://opendatacommunities.org/doc/london-borough-council/havering,London Borough of Havering,07/08/2017,2272.00,AUG17L1151,Genesis Residential Homes Ltd - Dothan House_a,Adults,Adult Services,Adult Community Team,Support with Memory & Cognition,RESIDENTIAL PLACEMENTS - PRIVATE CONTRACTORS PAYMENT
http://opendatacommunities.org/doc/london-borough-council/havering,London Borough of Havering,07/08/2017,2272.00,AUG17L1152,Genesis Residential Homes Ltd - Dothan House_a,Adults,Adult Services,Adult Community Team,Support with Memory & Cognition,RESIDENTIAL PLACEMENTS - PRIVATE CONTRACTORS PAYMENT
http://opendatacommunities.org/doc/london-borough-council/havering,London Borough of Havering,07/08/2017,-731.44,AUG17L1153,Genesis Residential Homes Ltd - Dothan House_a,Adults,Adult Services,Adult Community Team,Support with Memory & Cognition,RESIDENTIAL CARE INCOME
http://opendatacommunities.org/doc/london-borough-council/havering,London Borough of Havering,07/08/2017,2272.00,AUG17L1154,Genesis Residential Homes Ltd - Dothan House_a,Adults,Adult Services,Adult Community Team,Support with Memory & Cognition,RESIDENTIAL PLACEMENTS - PRIVATE CONTRACTORS PAYMENT
http://opendatacommunities.org/doc/london-borough-council/havering,London Borough of Havering,07/08/2017,-641.84,AUG17L1155,Genesis Residential Homes Ltd - Dothan House_a,Adults,Adult Services,Adult Community Team,Support with Memory & Cognition,RESIDENTIAL CARE INCOME
http://opendatacommunities.org/doc/london-borough-council/havering,London Borough of Havering,07/08/2017,2272.00,AUG17L1156,Genesis Residential Homes Ltd - Dothan House_a,Adults,Adult Services,Adult Community Team,Support with Memory & Cognition,RESIDENTIAL PLACEMENTS - PRIVATE CONTRACTORS PAYMENT
http://opendatacommunities.org/doc/london-borough-council/havering,London Borough of Havering,07/08/2017,-942.60,AUG17L1157,Genesis Residential Homes Ltd - Dothan House_a,Adults,Adult Services,Adult Community Team,Support with Memory & Cognition,RESIDENTIAL CARE INCOME
http://opendatacommunities.org/doc/london-borough-council/havering,London Borough of Havering,07/08/2017,2272.00,AUG17L1158,Genesis Residential Homes Ltd - Dothan House_a,Adults,Adult Services,Adult Community Team,Support with Memory & Cognition,RESIDENTIAL PLACEMENTS - PRIVATE CONTRACTORS PAYMENT
http://opendatacommunities.org/doc/london-borough-council/havering,London Borough of Havering,07/08/2017,-725.88,AUG17L1159,Genesis Residential Homes Ltd - Dothan House_a,Adults,Adult Services,Adult Community Team,Physical Support,RESIDENTIAL CARE INCOME
http://opendatacommunities.org/doc/london-borough-council/havering,London Borough of Havering,07/08/2017,2272.00,AUG17L1160,Genesis Residential Homes Ltd - Dothan House_a,Adults,Adult Services,Adult Community Team,Support with Memory & Cognition,RESIDENTIAL PLACEMENTS - PRIVATE CONTRACTORS PAYMENT
http://opendatacommunities.org/doc/london-borough-council/havering,London Borough of Havering,07/08/2017,-1173.60,AUG17L1161,Genesis Residential Homes Ltd - Dothan House_a,Adults,Adult Services,Adult Community Team,Support with Memory & Cognition,RESIDENTIAL CARE INCOME
http://opendatacommunities.org/doc/london-borough-council/havering,London Borough of Havering,07/08/2017,2272.00,AUG17L1162,Genesis Residential Homes Ltd - Dothan House_a,Adults,Adult Services,Adult Community Team,Support with Memory & Cognition,RESIDENTIAL PLACEMENTS - PRIVATE CONTRACTORS PAYMENT
http://opendatacommunities.org/doc/london-borough-council/havering,London Borough of Havering,07/08/2017,-1240.60,AUG17L1163,Genesis Residential Homes Ltd - Dothan House_a,Adults,Adult Services,Adult Community Team,Support with Memory & Cognition,RESIDENTIAL CARE INCOME
http://opendatacommunities.org/doc/london-borough-council/havering,London Borough of Havering,07/08/2017,2272.00,AUG17L1164,Genesis Residential Homes Ltd - Dothan House_a,Adults,Adult Services,Adult Community Team,Support with Memory & Cognition,RESIDENTIAL PLACEMENTS - PRIVATE CONTRACTORS PAYMENT
http://opendatacommunities.org/doc/london-borough-council/havering,London Borough of Havering,07/08/2017,506.03,AUG17L1165,Genesis Residential Homes Ltd - Dothan House_a,Adults,Adult Services,Adult Community Team,Physical Support,RESPITE CARE - PRIVATE CONTRACTORS PAYMENT
http://opendatacommunities.org/doc/london-borough-council/havering,London Borough of Havering,07/08/2017,3026.88,AUG17L1166,Melody Lodge_a,Adults,Adult Services,Learning Disabilities,Learning Disability Support,RESIDENTIAL PLACEMENTS - PRIVATE CONTRACTORS PAYMENT
http://opendatacommunities.org/doc/london-borough-council/havering,London Borough of Havering,07/08/2017,2272.00,AUG17L1167,Ashbourne Homes Ltd - Ladyville Lodge_a,Adults,Adult Services,Adult Community Team,Support with Memory & Cognition,RESIDENTIAL PLACEMENTS - PRIVATE CONTRACTORS PAYMENT
http://opendatacommunities.org/doc/london-borough-council/havering,London Borough of Havering,07/08/2017,2032.00,AUG17L1168,Ashbourne Homes Ltd - Ladyville Lodge_a,Adults,Adult Services,Adult Community Team,Physical Support,NURSING HOMES - PRIVATE CONTRACTORS PAYMENT
http://opendatacommunities.org/doc/london-borough-council/havering,London Borough of Havering,07/08/2017,2272.00,AUG17L1169,Ashbourne Homes Ltd - Ladyville Lodge_a,Adults,Adult Services,Adult Community Team,Support with Memory & Cognition,RESIDENTIAL PLACEMENTS - PRIVATE CONTRACTORS PAYMENT
http://opendatacommunities.org/doc/london-borough-council/havering,London Borough of Havering,07/08/2017,2272.00,AUG17L1170,Ashbourne Homes Ltd - Ladyville Lodge_a,Adults,Adult Services,Adult Community Team,Support with Memory & Cognition,RESIDENTIAL PLACEMENTS - PRIVATE CONTRACTORS PAYMENT
http://opendatacommunities.org/doc/london-borough-council/havering,London Borough of Havering,07/08/2017,2096.00,AUG17L1171,Ashbourne Homes Ltd - Ladyville Lodge_a,Adults,Adult Services,Adult Community Team,Support with Memory & Cognition,NURSING HOMES - PRIVATE CONTRACTORS PAYMENT
http://opendatacommunities.org/doc/london-borough-council/havering,London Borough of Havering,07/08/2017,-861.44,AUG17L1172,Ashbourne Homes Ltd - Ladyville Lodge_a,Adults,Adult Services,Adult Community Team,Physical Support,NURSING CARE INCOME
http://opendatacommunities.org/doc/london-borough-council/havering,London Borough of Havering,07/08/2017,2032.00,AUG17L1173,Ashbourne Homes Ltd - Ladyville Lodge_a,Adults,Adult Services,Adult Community Team,Physical Support,NURSING HOMES - PRIVATE CONTRACTORS PAYMENT
http://opendatacommunities.org/doc/london-borough-council/havering,London Borough of Havering,07/08/2017,-662.60,AUG17L1174,Ashbourne Homes Ltd - Ladyville Lodge_a,Adults,Adult Services,Adult Community Team,Support with Memory & Cognition,NURSING CARE INCOME
http://opendatacommunities.org/doc/london-borough-council/havering,London Borough of Havering,07/08/2017,2096.00,AUG17L1175,Ashbourne Homes Ltd - Ladyville Lodge_a,Adults,Adult Services,Adult Community Team,Support with Memory & Cognition,NURSING HOMES - PRIVATE CONTRACTORS PAYMENT
http://opendatacommunities.org/doc/london-borough-council/havering,London Borough of Havering,07/08/2017,-1009.84,AUG17L1176,Ashbourne Homes Ltd - Ladyville Lodge_a,Adults,Adult Services,Adult Community Team,Physical Support,NURSING CARE INCOME
http://opendatacommunities.org/doc/london-borough-council/havering,London Borough of Havering,07/08/2017,2032.00,AUG17L1177,Ashbourne Homes Ltd - Ladyville Lodge_a,Adults,Adult Services,Adult Community Team,Physical Support,NURSING HOMES - PRIVATE CONTRACTORS PAYMENT
http://opendatacommunities.org/doc/london-borough-council/havering,London Borough of Havering,07/08/2017,-539.52,AUG17L1178,Ashbourne Homes Ltd - Ladyville Lodge_a,Adults,Adult Services,Adult Community Team,Physical Support,NURSING CARE INCOME
http://opendatacommunities.org/doc/london-borough-council/havering,London Borough of Havering,07/08/2017,2032.00,AUG17L1179,Ashbourne Homes Ltd - Ladyville Lodge_a,Adults,Adult Services,Adult Community Team,Physical Support,NURSING HOMES - PRIVATE CONTRACTORS PAYMENT
http://opendatacommunities.org/doc/london-borough-council/havering,London Borough of Havering,07/08/2017,-604.08,AUG17L1180,Ashbourne Homes Ltd - Ladyville Lodge_a,Adults,Adult Services,Adult Community Team,Support with Memory & Cognition,RESIDENTIAL CARE INCOME
http://opendatacommunities.org/doc/london-borough-council/havering,London Borough of Havering,07/08/2017,2272.00,AUG17L1181,Ashbourne Homes Ltd - Ladyville Lodge_a,Adults,Adult Services,Adult Community Team,Support with Memory & Cognition,RESIDENTIAL PLACEMENTS - PRIVATE CONTRACTORS PAYMENT
http://opendatacommunities.org/doc/london-borough-council/havering,London Borough of Havering,07/08/2017,-537.80,AUG17L1182,Ashbourne Homes Ltd - Ladyville Lodge_a,Adults,Adult Services,Adult Community Team,Support with Memory & Cognition,RESIDENTIAL CARE INCOME
http://opendatacommunities.org/doc/london-borough-council/havering,London Borough of Havering,07/08/2017,2272.00,AUG17L1183,Ashbourne Homes Ltd - Ladyville Lodge_a,Adults,Adult Services,Adult Community Team,Support with Memory & Cognition,RESIDENTIAL PLACEMENTS - PRIVATE CONTRACTORS PAYMENT
http://opendatacommunities.org/doc/london-borough-council/havering,London Borough of Havering,07/08/2017,650.57,AUG17L1184,Ashbourne Homes Ltd - Ladyville Lodge_a,Adults,Adult Services,Adult Community Team,Physical Support,RESIDENTIAL PLACEMENTS - PRIVATE CONTRACTORS PAYMENT
http://opendatacommunities.org/doc/london-borough-council/havering,London Borough of Havering,07/08/2017,4308.20,AUG17L1186,**Redacted Personal Data**,Adults,Adult Services,Learning Disabilities,Learning Disability Support,RESIDENTIAL PLACEMENTS - PRIVATE CONTRACTORS PAYMENT
http://opendatacommunities.org/doc/london-borough-council/havering,London Borough of Havering,07/08/2017,-537.80,AUG17L1187,Crowstone Care Home Ltd - The Grange_a,Adults,Mental Health,Mental Health - Non Section 75,Mental Health Support,RESIDENTIAL CARE INCOME
http://opendatacommunities.org/doc/london-borough-council/havering,London Borough of Havering,07/08/2017,1763.28,AUG17L1188,Crowstone Care Home Ltd - The Grange_a,Adults,Mental Health,Mental Health - Non Section 75,Mental Health Support,RESIDENTIAL PLACEMENTS - PRIVATE CONTRACTORS PAYMENT
http://opendatacommunities.org/doc/london-borough-council/havering,London Borough of Havering,07/08/2017,-537.80,AUG17L1189,Crowstone Care Home Ltd - The Grange_a,Adults,Adult Services,Adult Community Team,Support with Memory & Cognition,NURSING CARE INCOME
http://opendatacommunities.org/doc/london-borough-council/havering,London Borough of Havering,07/08/2017,2074.64,AUG17L1190,Crowstone Care Home Ltd - The Grange_a,Adults,Adult Services,Adult Community Team,Support with Memory & Cognition,NURSING HOMES - PRIVATE CONTRACTORS PAYMENT
http://opendatacommunities.org/doc/london-borough-council/havering,London Borough of Havering,07/08/2017,2272.00,AUG17L1194,Emerson Court_a,Adults,Adult Services,Adult Community Team,Support with Memory & Cognition,RESIDENTIAL PLACEMENTS - PRIVATE CONTRACTORS PAYMENT
http://opendatacommunities.org/doc/london-borough-council/havering,London Borough of Havering,07/08/2017,3000.00,AUG17L1195,Emerson Court_a,Adults,Adult Services,Adult Community Team,Support with Memory & Cognition,RESIDENTIAL PLACEMENTS - PRIVATE CONTRACTORS PAYMENT
http://opendatacommunities.org/doc/london-borough-council/havering,London Borough of Havering,07/08/2017,2272.00,AUG17L1196,Emerson Court_a,Adults,Adult Services,Adult Community Team,Support with Memory & Cognition,RESIDENTIAL PLACEMENTS - PRIVATE CONTRACTORS PAYMENT
http://opendatacommunities.org/doc/london-borough-council/havering,London Borough of Havering,07/08/2017,2272.00,AUG17L1197,Emerson Court_a,Adults,Adult Services,Adult Community Team,Support with Memory & Cognition,RESIDENTIAL PLACEMENTS - PRIVATE CONTRACTORS PAYMENT
http://opendatacommunities.org/doc/london-borough-council/havering,London Borough of Havering,07/08/2017,-501.52,AUG17L1198,Emerson Court_a,Adults,Adult Services,Adult Community Team,Support with Memory & Cognition,RESIDENTIAL CARE INCOME
http://opendatacommunities.org/doc/london-borough-council/havering,London Borough of Havering,07/08/2017,2272.00,AUG17L1199,Emerson Court_a,Adults,Adult Services,Adult Community Team,Support with Memory & Cognition,RESIDENTIAL PLACEMENTS - PRIVATE CONTRACTORS PAYMENT
http://opendatacommunities.org/doc/london-borough-council/havering,London Borough of Havering,07/08/2017,-1188.18,AUG17L1201,Voyage Ltd - 89 Mawney Road_a,Adults,Adult Services,Learning Disabilities,Learning Disability Support,RESIDENTIAL CARE INCOME
http://opendatacommunities.org/doc/london-borough-council/havering,London Borough of Havering,07/08/2017,18834.43,AUG17L1202,Voyage Ltd - 89 Mawney Road_a,Adults,Adult Services,Learning Disabilities,Learning Disability Support,RESIDENTIAL PLACEMENTS - PRIVATE CONTRACTORS PAYMENT
http://opendatacommunities.org/doc/london-borough-council/havering,London Borough of Havering,07/08/2017,-18651.57,AUG17L1203,Voyage Ltd - 89 Mawney Road_a,Adults,Adult Services,Learning Disabilities,Learning Disability Support,RESIDENTIAL PLACEMENTS - PRIVATE CONTRACTORS PAYMENT
http://opendatacommunities.org/doc/london-borough-council/havering,London Borough of Havering,07/08/2017,1176.64,AUG17L1204,Voyage Ltd - 89 Mawney Road_a,Adults,Adult Services,Learning Disabilities,Learning Disability Support,RESIDENTIAL CARE INCOME
http://opendatacommunities.org/doc/london-borough-council/havering,London Borough of Havering,07/08/2017,5352.36,AUG17L1205,Voyage Ltd - 89 Mawney Road_a,Adults,Adult Services,Learning Disabilities,Learning Disability Support,RESIDENTIAL PLACEMENTS - PRIVATE CONTRACTORS PAYMENT
http://opendatacommunities.org/doc/london-borough-council/havering,London Borough of Havering,07/08/2017,5120.04,AUG17L1206,Voyage Ltd - 89 Mawney Road_a,Adults,Adult Services,Learning Disabilities,Learning Disability Support,RESIDENTIAL PLACEMENTS - PRIVATE CONTRACTORS PAYMENT
http://opendatacommunities.org/doc/london-borough-council/havering,London Borough of Havering,07/08/2017,-400.60,AUG17L1207,Voyage Ltd - 89 Mawney Road_a,Adults,Adult Services,Learning Disabilities,Learning Disability Support,RESIDENTIAL CARE INCOME
http://opendatacommunities.org/doc/london-borough-council/havering,London Borough of Havering,07/08/2017,5120.04,AUG17L1208,Voyage Ltd - 89 Mawney Road_a,Adults,Adult Services,Learning Disabilities,Learning Disability Support,RESIDENTIAL PLACEMENTS - PRIVATE CONTRACTORS PAYMENT
http://opendatacommunities.org/doc/london-borough-council/havering,London Borough of Havering,07/08/2017,-537.80,AUG17L1209,Voyage Ltd - 89 Mawney Road_a,Adults,Adult Services,Learning Disabilities,Learning Disability Support,RESIDENTIAL CARE INCOME
http://opendatacommunities.org/doc/london-borough-council/havering,London Borough of Havering,07/08/2017,5120.04,AUG17L1210,Voyage Ltd - 89 Mawney Road_a,Adults,Adult Services,Learning Disabilities,Learning Disability Support,RESIDENTIAL PLACEMENTS - PRIVATE CONTRACTORS PAYMENT
http://opendatacommunities.org/doc/london-borough-council/havering,London Borough of Havering,07/08/2017,-537.80,AUG17L1211,Voyage Ltd - 89 Mawney Road_a,Adults,Adult Services,Learning Disabilities,Learning Disability Support,RESIDENTIAL CARE INCOME
http://opendatacommunities.org/doc/london-borough-council/havering,London Borough of Havering,07/08/2017,5120.04,AUG17L1212,Voyage Ltd - 89 Mawney Road_a,Adults,Adult Services,Learning Disabilities,Learning Disability Support,RESIDENTIAL PLACEMENTS - PRIVATE CONTRACTORS PAYMENT
http://opendatacommunities.org/doc/london-borough-council/havering,London Borough of Havering,07/08/2017,-402.60,AUG17L1213,Voyage Ltd - 89 Mawney Road_a,Adults,Adult Services,Learning Disabilities,Learning Disability Support,RESIDENTIAL CARE INCOME
http://opendatacommunities.org/doc/london-borough-council/havering,London Borough of Havering,07/08/2017,5120.04,AUG17L1214,Voyage Ltd - 89 Mawney Road_a,Adults,Adult Services,Learning Disabilities,Learning Disability Support,RESIDENTIAL PLACEMENTS - PRIVATE CONTRACTORS PAYMENT
http://opendatacommunities.org/doc/london-borough-council/havering,London Borough of Havering,31/08/2017,640.74,AUG17L1215,Homestead Care Service_a,Adults,Adult Services,Learning Disabilities,Sensory Support,HOME CARE - PRIVATE CONTRACTORS PAYMENT
http://opendatacommunities.org/doc/london-borough-council/havering,London Borough of Havering,31/08/2017,680.76,AUG17L1216,Homestead Care Service_a,Adults,Adult Services,Adult Community Team,Support with Memory & Cognition,HOME CARE - PRIVATE CONTRACTORS PAYMENT
http://opendatacommunities.org/doc/london-borough-council/havering,London Borough of Havering,31/08/2017,1211.99,AUG17L1217,Homestead Care Service_a,Adults,Adult Services,Learning Disabilities,Learning Disability Support,HOME CARE - PRIVATE CONTRACTORS PAYMENT
http://opendatacommunities.org/doc/london-borough-council/havering,London Borough of Havering,31/08/2017,103792.01,AUG17L1218,Homestead Care Service_a,Adults,Adult Services,Adult Community Team,Physical Support,HOME CARE - PRIVATE CONTRACTORS PAYMENT
http://opendatacommunities.org/doc/london-borough-council/havering,London Borough of Havering,07/08/2017,2783.44,AUG17L1219,Moorlands Rehabilitation (Staffordshire) Ltd_a,Adults,Mental Health,Mental Health - Non Section 75,Mental Health Support,NURSING HOMES - PRIVATE CONTRACTORS PAYMENT
http://opendatacommunities.org/doc/london-borough-council/havering,London Borough of Havering,07/08/2017,2272.00,AUG17L1220,Arran Manor_a,Adults,Adult Services,Adult Community Team,Support with Memory & Cognition,RESIDENTIAL PLACEMENTS - PRIVATE CONTRACTORS PAYMENT
http://opendatacommunities.org/doc/london-borough-council/havering,London Borough of Havering,07/08/2017,-1012.24,AUG17L1221,Arran Manor_a,Adults,Adult Services,Adult Community Team,Support with Memory & Cognition,RESIDENTIAL CARE INCOME
http://opendatacommunities.org/doc/london-borough-council/havering,London Borough of Havering,07/08/2017,3100.00,AUG17L1222,Arran Manor_a,Adults,Adult Services,Adult Community Team,Support with Memory & Cognition,RESIDENTIAL PLACEMENTS - PRIVATE CONTRACTORS PAYMENT
http://opendatacommunities.org/doc/london-borough-council/havering,London Borough of Havering,16/08/2017,450.00,AUG17L1224,Home Support Services (Havering & Essex) Ltd_a,Adults,Adult Services,Adult Community Team,Physical Support,HOME CARE - PRIVATE CONTRACTORS PAYMENT
http://opendatacommunities.org/doc/london-borough-council/havering,London Borough of Havering,16/08/2017,875.00,AUG17L1225,Home Support Services (Havering & Essex) Ltd_a,Adults,Adult Services,Adult Community Team,Physical Support,HOME CARE - PRIVATE CONTRACTORS PAYMENT
http://opendatacommunities.org/doc/london-borough-council/havering,London Borough of Havering,16/08/2017,450.00,AUG17L1226,Home Support Services (Havering & Essex) Ltd_a,Adults,Adult Services,Adult Community Team,Physical Support,HOME CARE - PRIVATE CONTRACTORS PAYMENT
http://opendatacommunities.org/doc/london-borough-council/havering,London Borough of Havering,16/08/2017,875.00,AUG17L1227,Home Support Services (Havering & Essex) Ltd_a,Adults,Adult Services,Adult Community Team,Physical Support,HOME CARE - PRIVATE CONTRACTORS PAYMENT
http://opendatacommunities.org/doc/london-borough-council/havering,London Borough of Havering,16/08/2017,450.00,AUG17L1228,Home Support Services (Havering & Essex) Ltd_a,Adults,Adult Services,Adult Community Team,Physical Support,HOME CARE - PRIVATE CONTRACTORS PAYMENT
http://opendatacommunities.org/doc/london-borough-council/havering,London Borough of Havering,16/08/2017,875.00,AUG17L1229,Home Support Services (Havering & Essex) Ltd_a,Adults,Adult Services,Adult Community Team,Physical Support,HOME CARE - PRIVATE CONTRACTORS PAYMENT
http://opendatacommunities.org/doc/london-borough-council/havering,London Borough of Havering,16/08/2017,450.00,AUG17L1230,Home Support Services (Havering & Essex) Ltd_a,Adults,Adult Services,Adult Community Team,Physical Support,HOME CARE - PRIVATE CONTRACTORS PAYMENT
http://opendatacommunities.org/doc/london-borough-council/havering,London Borough of Havering,16/08/2017,875.00,AUG17L1231,Home Support Services (Havering & Essex) Ltd_a,Adults,Adult Services,Adult Community Team,Physical Support,HOME CARE - PRIVATE CONTRACTORS PAYMENT
http://opendatacommunities.org/doc/london-borough-council/havering,London Borough of Havering,07/08/2017,748.57,AUG17L1232,Havering Care Homes Ltd t/a Upminster Nursing Home_a,Adults,Adult Services,Adult Community Team,Support with Memory & Cognition,NURSING HOMES - PRIVATE CONTRACTORS PAYMENT
http://opendatacommunities.org/doc/london-borough-council/havering,London Borough of Havering,07/08/2017,2032.00,AUG17L1233,Havering Care Homes Ltd t/a Upminster Nursing Home_a,Adults,Adult Services,Adult Community Team,Physical Support,NURSING HOMES - PRIVATE CONTRACTORS PAYMENT
http://opendatacommunities.org/doc/london-borough-council/havering,London Borough of Havering,07/08/2017,2032.00,AUG17L1234,Havering Care Homes Ltd t/a Upminster Nursing Home_a,Adults,Adult Services,Adult Community Team,Physical Support,NURSING HOMES - PRIVATE CONTRACTORS PAYMENT
http://opendatacommunities.org/doc/london-borough-council/havering,London Borough of Havering,07/08/2017,2032.00,AUG17L1235,Havering Care Homes Ltd t/a Upminster Nursing Home_a,Adults,Adult Services,Adult Community Team,Physical Support,NURSING HOMES - PRIVATE CONTRACTORS PAYMENT
http://opendatacommunities.org/doc/london-borough-council/havering,London Borough of Havering,07/08/2017,2272.00,AUG17L1236,Havering Care Homes Ltd t/a Upminster Nursing Home_a,Adults,Adult Services,Adult Community Team,Support with Memory & Cognition,RESIDENTIAL PLACEMENTS - PRIVATE CONTRACTORS PAYMENT
http://opendatacommunities.org/doc/london-borough-council/havering,London Borough of Havering,07/08/2017,2096.00,AUG17L1237,Havering Care Homes Ltd t/a Upminster Nursing Home_a,Adults,Adult Services,Adult Community Team,Support with Memory & Cognition,NURSING HOMES - PRIVATE CONTRACTORS PAYMENT
http://opendatacommunities.org/doc/london-borough-council/havering,London Borough of Havering,07/08/2017,2096.00,AUG17L1238,Havering Care Homes Ltd t/a Upminster Nursing Home_a,Adults,Adult Services,Adult Community Team,Support with Memory & Cognition,NURSING HOMES - PRIVATE CONTRACTORS PAYMENT
http://opendatacommunities.org/doc/london-borough-council/havering,London Borough of Havering,07/08/2017,2096.00,AUG17L1239,Havering Care Homes Ltd t/a Upminster Nursing Home_a,Adults,Adult Services,Adult Community Team,Support with Memory & Cognition,NURSING HOMES - PRIVATE CONTRACTORS PAYMENT
http://opendatacommunities.org/doc/london-borough-council/havering,London Borough of Havering,07/08/2017,-821.84,AUG17L1240,Havering Care Homes Ltd t/a Upminster Nursing Home_a,Adults,Adult Services,Adult Community Team,Physical Support,NURSING CARE INCOME
http://opendatacommunities.org/doc/london-borough-council/havering,London Borough of Havering,07/08/2017,2032.00,AUG17L1241,Havering Care Homes Ltd t/a Upminster Nursing Home_a,Adults,Adult Services,Adult Community Team,Physical Support,NURSING HOMES - PRIVATE CONTRACTORS PAYMENT
http://opendatacommunities.org/doc/london-borough-council/havering,London Borough of Havering,07/08/2017,-537.80,AUG17L1242,Havering Care Homes Ltd t/a Upminster Nursing Home_a,Adults,Adult Services,Adult Community Team,Support with Memory & Cognition,NURSING CARE INCOME
http://opendatacommunities.org/doc/london-borough-council/havering,London Borough of Havering,07/08/2017,2096.00,AUG17L1243,Havering Care Homes Ltd t/a Upminster Nursing Home_a,Adults,Adult Services,Adult Community Team,Support with Memory & Cognition,NURSING HOMES - PRIVATE CONTRACTORS PAYMENT
http://opendatacommunities.org/doc/london-borough-council/havering,London Borough of Havering,07/08/2017,-501.80,AUG17L1244,Havering Care Homes Ltd t/a Upminster Nursing Home_a,Adults,Adult Services,Adult Community Team,Support with Memory & Cognition,NURSING CARE INCOME
http://opendatacommunities.org/doc/london-borough-council/havering,London Borough of Havering,07/08/2017,2096.00,AUG17L1245,Havering Care Homes Ltd t/a Upminster Nursing Home_a,Adults,Adult Services,Adult Community Team,Support with Memory & Cognition,NURSING HOMES - PRIVATE CONTRACTORS PAYMENT
http://opendatacommunities.org/doc/london-borough-council/havering,London Borough of Havering,07/08/2017,-537.80,AUG17L1246,Havering Care Homes Ltd t/a Upminster Nursing Home_a,Adults,Adult Services,Adult Community Team,Physical Support,NURSING CARE INCOME
http://opendatacommunities.org/doc/london-borough-council/havering,London Borough of Havering,07/08/2017,2032.00,AUG17L1247,Havering Care Homes Ltd t/a Upminster Nursing Home_a,Adults,Adult Services,Adult Community Team,Physical Support,NURSING HOMES - PRIVATE CONTRACTORS PAYMENT
http://opendatacommunities.org/doc/london-borough-council/havering,London Borough of Havering,07/08/2017,-844.52,AUG17L1248,Havering Care Homes Ltd t/a Upminster Nursing Home_a,Adults,Adult Services,Adult Community Team,Physical Support,RESIDENTIAL CARE INCOME
http://opendatacommunities.org/doc/london-borough-council/havering,London Borough of Havering,07/08/2017,2024.00,AUG17L1249,Havering Care Homes Ltd t/a Upminster Nursing Home_a,Adults,Adult Services,Adult Community Team,Physical Support,RESIDENTIAL PLACEMENTS - PRIVATE CONTRACTORS PAYMENT
http://opendatacommunities.org/doc/london-borough-council/havering,London Borough of Havering,07/08/2017,-642.16,AUG17L1250,Havering Care Homes Ltd t/a Upminster Nursing Home_a,Adults,Adult Services,Adult Community Team,Physical Support,NURSING CARE INCOME
http://opendatacommunities.org/doc/london-borough-council/havering,London Borough of Havering,07/08/2017,2032.00,AUG17L1251,Havering Care Homes Ltd t/a Upminster Nursing Home_a,Adults,Adult Services,Adult Community Team,Physical Support,NURSING HOMES - PRIVATE CONTRACTORS PAYMENT
http://opendatacommunities.org/doc/london-borough-council/havering,London Borough of Havering,07/08/2017,-537.80,AUG17L1252,Havering Care Homes Ltd t/a Upminster Nursing Home_a,Adults,Adult Services,Adult Community Team,Physical Support,RESIDENTIAL CARE INCOME
http://opendatacommunities.org/doc/london-borough-council/havering,London Borough of Havering,07/08/2017,2024.00,AUG17L1253,Havering Care Homes Ltd t/a Upminster Nursing Home_a,Adults,Adult Services,Adult Community Team,Physical Support,RESIDENTIAL PLACEMENTS - PRIVATE CONTRACTORS PAYMENT
http://opendatacommunities.org/doc/london-borough-council/havering,London Borough of Havering,07/08/2017,-1009.76,AUG17L1254,Havering Care Homes Ltd t/a Upminster Nursing Home_a,Adults,Adult Services,Adult Community Team,Physical Support,NURSING CARE INCOME
http://opendatacommunities.org/doc/london-borough-council/havering,London Borough of Havering,07/08/2017,2156.00,AUG17L1255,Havering Care Homes Ltd t/a Upminster Nursing Home_a,Adults,Adult Services,Adult Community Team,Physical Support,NURSING HOMES - PRIVATE CONTRACTORS PAYMENT
http://opendatacommunities.org/doc/london-borough-council/havering,London Borough of Havering,07/08/2017,-694.16,AUG17L1257,Parkside_a,Adults,Adult Services,Adult Community Team,Physical Support,RESIDENTIAL CARE INCOME
